Workbook

Sheet DATA
B1: 2 | C1: 3 | D1: 4 | E1: 5 | F1: 6 | G1: 7 | H1: 8 | I1: 9 | J1: 10 | K1: 15 | L1: 20 | M1: 25 | N1: 30 | O1: 35 | P1: 40 | Q1: 45 | R1: 50 | S1: 55 | T1: 60 | U1: 65 | V1: 70 | W1: 75 | X1: 80 | Y1: 85 | Z1: 90 | AA1: 95 | AB1: 100 | AC1: 110 | AD1: 120 | AE1: 130 | AF1: 140 | AG1: 150 | AH1: 160 | AI1: 170 | AJ1: 180 | AK1: 190 | AL1: 200
A2: 1 kust | B2: 1.11 | C2: 1.22 | D2: 1.3 | E2: 1.37 | F2: 1.42 | G2: 1.47 | H2: 1.51 | I2: 1.55 | J2: 1.58 | K2: 1.71 | L2: 1.8 | M2: 1.88 | N2: 1.94 | O2: 2 | P2: 2.04 | Q2: 2.09 | R2: 2.12 | S2: 2.16 | T2: 2.19 | U2: 2.22 | V2: 2.25 | W2: 2.27 | X2: 2.3 | Y2: 2.32 | Z2: 2.34 | AA2: 2.36 | AB2: 2.38 | AC2: 2.42 | AD2: 2.45 | AE2: 2.48 | AF2: 2.51 | AG2: 2.54 | AH2: 2.56 | AI2: 2.59 | AJ2: 2.61 | AK2: 2.63 | AL2: 2.65
A3: 1 onbebouwd | B3: 0.71 | C3: 0.71 | D3: 0.71 | E3: 0.78 | F3: 0.84 | G3: 0.89 | H3: 0.94 | I3: 0.98 | J3: 1.02 | K3: 1.16 | L3: 1.27 | M3: 1.36 | N3: 1.43 | O3: 1.5 | P3: 1.55 | Q3: 1.6 | R3: 1.65 | S3: 1.69 | T3: 1.73 | U3: 1.76 | V3: 1.8 | W3: 1.83 | X3: 1.86 | Y3: 1.88 | Z3: 1.91 | AA3: 1.93 | AB3: 1.96 | AC3: 2 | AD3: 2.04 | AE3: 2.08 | AF3: 2.12 | AG3: 2.15 | AH3: 2.18 | AI3: 2.21 | AJ3: 2.24 | AK3: 2.27 | AL3: 2.29
A4: 1 bebouwd | B4: 0.69 | C4: 0.69 | D4: 0.69 | E4: 0.69 | F4: 0.69 | G4: 0.69 | H4: 0.73 | I4: 0.77 | J4: 0.81 | K4: 0.96 | L4: 1.07 | M4: 1.16 | N4: 1.23 | O4: 1.3 | P4: 1.35 | Q4: 1.4 | R4: 1.45 | S4: 1.49 | T4: 1.53 | U4: 1.57 | V4: 1.6 | W4: 1.63 | X4: 1.66 | Y4: 1.69 | Z4: 1.72 | AA4: 1.74 | AB4: 1.77 | AC4: 1.81 | AD4: 1.85 | AE4: 1.89 | AF4: 1.93 | AG4: 1.96 | AH4: 2 | AI4: 2.03 | AJ4: 2.06 | AK4: 2.08 | AL4: 2.11
A5: 2 kust | B5: 0.93 | C5: 1.02 | D5: 1.09 | E5: 1.14 | F5: 1.19 | G5: 1.23 | H5: 1.26 | I5: 1.29 | J5: 1.32 | K5: 1.43 | L5: 1.51 | M5: 1.57 | N5: 1.63 | O5: 1.67 | P5: 1.71 | Q5: 1.75 | R5: 1.78 | S5: 1.81 | T5: 1.83 | U5: 1.86 | V5: 1.88 | W5: 1.9 | X5: 1.92 | Y5: 1.94 | Z5: 1.96 | AA5: 1.98 | AB5: 1.99 | AC5: 2.03 | AD5: 2.05 | AE5: 2.08 | AF5: 2.1 | AG5: 2.13 | AH5: 2.15 | AI5: 2.17 | AJ5: 2.19 | AK5: 2.2 | AL5: 2.22
A6: 2 onbebouwd | B6: 0.6 | C6: 0.6 | D6: 0.6 | E6: 0.66 | F6: 0.71 | G6: 0.75 | H6: 0.79 | I6: 0.82 | J6: 0.85 | K6: 0.98 | L6: 1.07 | M6: 1.14 | N6: 1.2 | O6: 1.25 | P6: 1.3 | Q6: 1.34 | R6: 1.38 | S6: 1.42 | T6: 1.45 | U6: 1.48 | V6: 1.5 | W6: 1.53 | X6: 1.55 | Y6: 1.58 | Z6: 1.6 | AA6: 1.62 | AB6: 1.64 | AC6: 1.68 | AD6: 1.71 | AE6: 1.74 | AF6: 1.77 | AG6: 1.8 | AH6: 1.83 | AI6: 1.85 | AJ6: 1.88 | AK6: 1.9 | AL6: 1.92
A7: 2 bebouwd | B7: 0.58 | C7: 0.58 | D7: 0.58 | E7: 0.58 | F7: 0.58 | G7: 0.58 | H7: 0.62 | I7: 0.65 | J7: 0.68 | K7: 0.8 | L7: 0.9 | M7: 0.97 | N7: 1.03 | O7: 1.09 | P7: 1.13 | Q7: 1.17 | R7: 1.21 | S7: 1.25 | T7: 1.28 | U7: 1.31 | V7: 1.34 | W7: 1.37 | X7: 1.39 | Y7: 1.42 | Z7: 1.44 | AA7: 1.46 | AB7: 1.48 | AC7: 1.52 | AD7: 1.55 | AE7: 1.59 | AF7: 1.62 | AG7: 1.65 | AH7: 1.67 | AI7: 1.7 | AJ7: 1.72 | AK7: 1.75 | AL7: 1.77
A8: 3 onbebouwd | B8: 0.49 | C8: 0.49 | D8: 0.49 | E8: 0.54 | F8: 0.58 | G8: 0.62 | H8: 0.65 | I8: 0.68 | J8: 0.7 | K8: 0.8 | L8: 0.88 | M8: 0.94 | N8: 0.99 | O8: 1.03 | P8: 1.07 | Q8: 1.11 | R8: 1.14 | S8: 1.17 | T8: 1.19 | U8: 1.22 | V8: 1.24 | W8: 1.26 | X8: 1.28 | Y8: 1.3 | Z8: 1.32 | AA8: 1.33 | AB8: 1.35 | AC8: 1.38 | AD8: 1.41 | AE8: 1.44 | AF8: 1.46 | AG8: 1.48 | AH8: 1.5 | AI8: 1.52 | AJ8: 1.54 | AK8: 1.56 | AL8: 1.58
A9: 3 bebouwd | B9: 0.48 | C9: 0.48 | D9: 0.48 | E9: 0.48 | F9: 0.48 | G9: 0.48 | H9: 0.51 | I9: 0.53 | J9: 0.56 | K9: 0.66 | L9: 0.74 | M9: 0.8 | N9: 0.85 | O9: 0.89 | P9: 0.93 | Q9: 0.97 | R9: 1 | S9: 1.03 | T9: 1.05 | U9: 1.08 | V9: 1.1 | W9: 1.13 | X9: 1.15 | Y9: 1.17 | Z9: 1.18 | AA9: 1.2 | AB9: 1.22 | AC9: 1.25 | AD9: 1.28 | AE9: 1.31 | AF9: 1.33 | AG9: 1.35 | AH9: 1.38 | AI9: 1.4 | AJ9: 1.42 | AK9: 1.44 | AL9: 1.46
B10: =B1 -> 2 | C10: 3 | D10: 4 | E10: 5 | F10: 6 | G10: 7 | H10: 8 | I10: 9 | J10: 10 | K10: 15 | L10: 20 | M10: 25 | N10: 30 | O10: 35 | P10: 40 | Q10: 45 | R10: 50 | S10: 55 | T10: 60 | U10: 65 | V10: 70 | W10: 75 | X10: 80 | Y10: 85 | Z10: 90 | AA10: 95 | AB10: 100 | AC10: 110 | AD10: 120 | AE10: 130 | AF10: 140 | AG10: 150 | AH10: 160 | AI10: 170 | AJ10: 180 | AK10: 190 | AL10: 200
A11: =INHOUD!C16 -> 2 bebouwd | B11: =IF($A$11=$A$2,B2,0)+IF($A$11=$A$3,B3,0)+IF($A$11=$A$4,B4,0)+IF($A$11=$A$5,B5,0)+IF($A$11=$A$6,B6,0)+IF($A$11=$A$7,B7,0)+IF($A$11=$A$8,B8,0)+IF($A$11=$A$9,B9,0) -> 0.58 | C11: =IF($A$11=$A$2,C2,0)+IF($A$11=$A$3,C3,0)+IF($A$11=$A$4,C4,0)+IF($A$11=$A$5,C5,0)+IF($A$11=$A$6,C6,0)+IF($A$11=$A$7,C7,0)+IF($A$11=$A$8,C8,0)+IF($A$11=$A$9,C9,0) -> 0.58 | D11: 0.58 | E11: 0.58 | F11: 0.58 | G11: 0.58 | H11: 0.62 | I11: 0.65 | J11: 0.68 | K11: 0.8 | L11: 0.9 | M11: 0.97 | N11: 1.03 | O11: 1.09 | P11: 1.13 | Q11: 1.17 | R11: 1.21 | S11: 1.25 | T11: 1.28 | U11: 1.31 | V11: 1.34 | W11: 1.37 | X11: 1.39 | Y11: 1.42 | Z11: 1.44 | AA11: 1.46 | AB11: 1.48 | AC11: 1.52 | AD11: 1.55 | AE11: 1.59 | AF11: 1.62 | AG11: 1.65 | AH11: 1.67 | AI11: 1.7 | AJ11: 1.72 | AK11: 1.75 | AL11: 1.77
A12: interpoleren | B12: =(($B$13-B10)/(C10-B10))*(C11-B11)+B11 -> 0.58 | C12: 0.58 | D12: 0.58 | E12: 0.58 | F12: 0.58 | G12: 0.78 | H12: 0.74 | I12: 0.74 | J12: =(($B$13-J10)/(K10-J10))*(K11-J11)+J11 -> 0.728 | K12: =(($B$13-K10)/(L10-K10))*(L11-K11)+K11 -> 0.74 | L12: =(($B$13-L10)/(M10-L10))*(M11-L11)+L11 -> 0.788 | M12: 0.814 | N12: 0.814 | O12: 0.906 | P12: 0.906 | Q12: 0.906 | R12: 0.906 | S12: 0.992 | T12: 0.992 | U12: 0.992 | V12: 0.992 | W12: 1.118 | X12: 0.982 | Y12: 1.128 | Z12: 1.128 | AA12: 1.128 | AB12: 1.128 | AC12: 1.226 | AD12: 1.118 | AE12: 1.236 | AF12: 1.236 | AG12: 1.374 | AH12: 1.226 | AI12: 1.384 | AJ12: 1.216 | AK12: 1.394 | AL12: 0.1062
A13: Hoogte | B13: =INHOUD!C17 -> 12 | C13: [m]
A14: qp | B14: =HLOOKUP(B13,A10:AL12,3) -> 0.728 | C14: [kN/m2]
D18: klimaatklasse
C19: Type belasting | D19: I | E19: II | F19: III
B20: eigen gewicht | C20: 1 Blijvend | D20: 0.6 | E20: 0.6 | F20: 0.5 | G20: =HLOOKUP('EC5 8.11.2.2 Tandverbinding+VEd'!B16,D19:F24,2) -> 0.6
B21: opslag | C21: 2 Lang | D21: 0.7 | E21: 0.7 | F21: 0.55 | G21: =HLOOKUP('EC5 8.11.2.2 Tandverbinding+VEd'!B16,D19:F24,3) -> 0.7
B22: opgelegde vloerbelasting | C22: 3 Middellang | D22: 0.8 | E22: 0.8 | F22: 0.65 | G22: =HLOOKUP('EC5 8.11.2.2 Tandverbinding+VEd'!B16,D19:F24,4) -> 0.8
B23: wind, sneeuw | C23: 4 Kort | D23: 0.9 | E23: 0.9 | F23: 0.7 | G23: =HLOOKUP('EC5 8.11.2.2 Tandverbinding+VEd'!B16,D19:F24,5) -> 0.9
B24: bijzondere belasting | C24: 5 Zeer Kort | D24: 1.1 | E24: 1.1 | F24: 0.9 | G24: =HLOOKUP('EC5 8.11.2.2 Tandverbinding+VEd'!B16,D19:F24,6) -> 1.1
C29: kdef
C30: Klimaatklasse | E30: I | F30: II | G30: III
C31: gezaagd hout | E31: 0.6 | F31: 0.8 | G31: 2
E32: 0.6 | F32: 0.8 | G32: 2
C33: Multiplex | D33: deel 1 | E33: 0.8 | F33: - | G33: -
D34: deel 2 | E34: 0.8 | F34: 1 | G34: -
D35: deel 3 | E35: 0.8 | F35: 1 | G35: 2.5
C36: OSB | D36: EN300
D37: OSB/2 | E37: 2.25 | F37: - | G37: -
D38: OSB/3,OSB/4 | E38: 1.5 | F38: 2.25 | G38: -
C40: Sterkteklassen voor gezaagd populieren en naaldhout
B41: Grootheid | D41: Symbool | E41: C14 | F41: C16 | G41: C18 | H41: C20 | I41: C22 | J41: C24 | K41: C27 | L41: C30 | M41: C35
B42: buigsterkte | D42: fm;0;k | E42: 14 | F42: 16 | G42: 18 | H42: 20 | I42: 22 | J42: 24 | K42: 27 | L42: 30 | M42: 35
B43: volumieke massa | D43: ρk | E43: 2.9 | F43: 3.1 | G43: 3 | H43: 3.3 | I43: 3.4 | J43: 3.5 | K43: 3.7 | L43: 3.8 | M43: 4
B44: treksterkte(evenw) | D44: ft;0;k | E44: 8 | F44: 10 | G44: 11 | H44: 12 | I44: 13 | J44: 14 | K44: 16 | L44: 18 | M44: 21
B45: treksterkte(loodr) | D45: ft;90;k | E45: 0.4 | F45: 0.5 | G45: 0.5 | H45: 0.5 | I45: 0.5 | J45: 0.5 | K45: 0.6 | L45: 0.6 | M45: 0.6
B46: druksterkte(evenw) | D46: fc;0;k | E46: 16 | F46: 17 | G46: 18 | H46: 19 | I46: 20 | J46: 21 | K46: 22 | L46: 23 | M46: 25
B47: druksterke(loodr) | D47: fc;90;k | E47: 2 | F47: 2.2 | G47: 2.2 | H47: 2.3 | I47: 2.4 | J47: 2.5 | K47: 2.6 | L47: 2.7 | M47: 2.8
B48: schuifsterkte | D48: fv;0;k | E48: 1.7 | F48: 1.8 | G48: 2 | H48: 2.2 | I48: 2.4 | J48: 2.5 | K48: 2.8 | L48: 3 | M48: 3.4
B49: E-modulus in UGT | D49: E0;u;k | E49: 4700 | F49: 5400 | G49: 6000 | H49: 6400 | I49: 6700 | J49: 7400 | K49: 7700 | L49: 8000 | M49: 8700
B50: E-modulus in BGT | D50: E0;mean | E50: 7000 | F50: 8000 | G50: 9000 | H50: 9500 | I50: 10000 | J50: 11000 | K50: 11500 | L50: 12000 | M50: 13000
B51: E-moludus (loodr) | D51: E90;mean | E51: 230 | F51: 270 | G51: 300 | H51: 320 | I51: 330 | J51: 370 | K51: 380 | L51: 400 | M51: 430
B52: afschuivingsmod | D52: Gmean | E52: 440 | F52: 500 | G52: 560 | H52: 590 | I52: 630 | J52: 690 | K52: 720 | L52: 750 | M52: 810
B54: Constructiegevolgklasse
B55: CC1
B56: CC2
B57: CC3
B59: Windgebied
B60: 1 kust
B61: 1 onbebouwd
B62: 1 bebouwd
B63: 2 kust
B64: 2 onbebouwd
B65: 2 bebouwd
B66: 3 onbebouwd
B67: 3 bebouwd
B70: Moments of Inertia of SAB Roofsheets in mm4/mm1
B71: Type | C71: t = 0.63 mm | D71: t = 0.75 mm | E71: t = 0.88 mm | F71: t = 1.00 mm | G71: t = 1.13 mm | H71: t = 1.25 mm | I71: t = 1.50 mm
B72: SAB18/988 | C72: 25 | D72: 30 | E72: 36 | F72: 41
B73: SAB27/1000 | C73: 59 | D73: 71 | E73: 85 | F73: 97
B74: SAB42/960 | C74: 178 | D74: 221 | E74: 252
B75: SAB19/1050 | C75: 37 | D75: 46 | E75: 55 | F75: 63
B76: SAB30/1100 | C76: 52 | D76: 66 | E76: 82 | F76: 98
B77: SAB35/1035 | C77: 94 | D77: 120 | E77: 149 | F77: 176
B78: SAB40/915 | C78: 139 | D78: 176 | E78: 219 | F78: 260
B79: SAB45/900 | C79: 228 | D79: 288 | E79: 355 | F79: 420
B80: SAB50/1000 | C80: 184 | D80: 232 | E80: 288 | F80: 342
B81: SAB19KD/1050 | C81: 38 | D81: 46 | E81: 55 | F81: 63
B82: SAB30KD/1050 | C82: 77 | D82: 98 | E82: 122 | F82: 142
B83: SAB45KD/1000 | C83: 130 | D83: 162 | E83: 192 | F83: 219
B84: SAB58KD/945 | C84: 197 | D84: 285 | E84: 360 | F84: 429
B85: SAB35R/1035 | D85: 158 | E85: 192 | F85: 224 | H85: 282
B86: SAB40R/915 | D86: 248 | E86: 293 | F86: 335 | H86: 423
B87: SAB50R/1000 | D87: 314 | E87: 383 | F87: 448 | H87: 579
B88: SAB70R/800 | D88: 796 | E88: 972 | F88: 1118 | H88: 1410
B89: SAB85R/1120 | D89: 849 | E89: 1038 | F89: 1217 | G89: 1416 | H89: 1572 | I89: 1897
B90: SAB89R/915 | D90: 1078 | E90: 1289 | F90: 1479 | G90: 1679 | H90: 1864
B91: SAB100R/825 | D91: 1488 | E91: 1760 | F91: 2012 | H91: 2536
B92: SAB106R+/750 | D92: 1866 | E92: 2198 | F92: 2503 | H92: 3144
B93: SAB110R/1000 | D93: 1484 | E93: 1796 | F93: 2084
B94: SAB135R/930 | D94: 3230 | E94: 3540 | F94: 3830 | G94: 4350 | H94: 4830 | I94: 5830
B95: SAB153R/840 | D95: 3750 | E95: 4340 | F95: 4890 | G95: 5560 | H95: 6170 | I95: 7440
B96: SAB158R/750 | D96: 4760 | E96: 5360 | F96: 5910 | G96: 6710 | H96: 7450 | I96: 8990
B97: SAB200R/750 | D97: 7723 | E97: 9015 | F97: 10189 | G97: 12114 | H97: 13891 | I97: 16761
B98: SAB200R/840 | D98: 6460 | E98: 7728 | F98: 8916 | G98: 10221 | H98: 11439 | I98: 14014

Sheet INHOUD
A7: XSpreadsheets BETA 1
A8: Versiedatum XSpreadsheets | D8: 2024-06-20
A9: Map XML | D9: C:\TEMP\
A11: Projectgegevens
A12: Projectnumber | C12: 0
A13: Projectname | C13: Test project
A14: Constructiegevolgklasse | C14: CC2
A15: Ontwerplevensduur | C15: 50 | D15: [jaar]
A16: Windgebied | C16: 2 bebouwd
A17: Hoogte | C17: 12 | D17: [m]
A18: qp | C18: =DATA!B14 -> 0.728 | D18: [kN/m2]
A20: Comments
A21: Dit excelbestand bevat een aantal voorbeelden van parametrische constructies in XFrame2D en XFEM4U
A24: Stappenplan
A25: 1 | B25: Open het desbetreffende tabblad.
A26: 2 | B26: Vul de afmetingen van de constructie in.
A27: 3 | B27: Klik op de knop 'Open in XFrame2D' of 'Open in XFEM4U'.
A28: 4 | B28: De constructie wordt in XFrame2D of XFEM4U geopend.
A29: 5 | B29: Sla deze op en werk hierin verder en sla dit bestand op.

Sheet KELD1
A4: Kelder
H5: Geometrie | R5: Calculated values
H6: Hoogte kelder | I6: 3500 | J6: [mm] | R6: =Xval(I8) -> <X>8000</X>
H7: Breedte kelder | I7: 3500 | J7: [mm] | R7: =Yval(I7) -> <Y>3500</Y>
H8: Lengte kelder | I8: 8000 | J8: [mm] | R8: =Zval(I6) -> <Z>3500</Z>
R9: =S4U("Material",I14) -> <Material>C30/37</Material>
R10: =S4U("h",I12) -> <h>500</h>
H11: Doorsnede eigenschappen | R11: =S4U("h",I13) -> <h>200</h>
H12: Vloerdikte | I12: 500 | J12: [mm] | R12: ="<X> 0 " & I8 & "</X>" -> <X> 0 8000</X>
H13: Wanddikte | I13: 200 | J13: [mm] | R13: ="<Y> 0 " & I7 & "</Y>" -> <Y> 0 3500</Y>
H14: Betonkwaliteit | I14: C30/37 | R14: =S4U("NodeX",I8) -> <NodeX>8000</NodeX>
R15: =S4U("NodeY",I7) -> <NodeY>3500</NodeY>
H16: Belastingen | R16: =S4U("q1",-I18) -> <q1>-15</q1>
H17: Waterhoogte vanaf onderzijde | I17: 1500 | J17: [mm] | R17: =S4U("q2",0) -> <q2>0</q2>
H18: Waterdruk | I18: =I17/100 -> 15 | J18: [kN/m2] | R18: =S4U("q3",0) -> <q3>0</q3>
R19: =S4U("NodeZ",I17) -> <NodeZ>1500</NodeZ>

Sheet DAK1
A4: Sporenkap met borstwering | P4: Calculated values
F5: Geometrie
F6: Totale breedte | G6: 7000 | H6: [mm] | P6: Roof height | Q6: =G7-G9 -> 4500 | R6: [mm]
F7: Totale hoogte | G7: 6000 | H7: [mm] | P7: Roof half width | Q7: =G6/2 -> 3500 | R7: [mm]
F8: Hoogte vliering | G8: 2600 | H8: [mm] | P8: Roof pitch | Q8: =DEGREES(ATAN(Q6/Q7)) -> 52.12501635 | R8: [o]
F9: Goothoogte | G9: 1500 | H9: [mm] | P9: Length Roof Beam | Q9: =_xlfn.FLOOR.MATH(SQRT(Q6*Q6+Q7*Q7)) -> 5700 | R9: [mm]
F10: Hoh-afstand | G10: 610 | H10: [mm]
F12: Doorsnede eigenschappen | P12: Relative Z floorbeam | Q12: =G8-G9 -> 1100 | R12: [mm]
F13: Breedte balk | G13: 38 | H13: [mm] | P13: X start floorbeam | Q13: =_xlfn.FLOOR.MATH(Q12/TAN(RADIANS(Q8))) -> 855 | R13: [mm]
F14: Hoogte balk | G14: 245 | H14: [mm] | P14: Z start floorbeam | Q14: =G8 -> 2600 | R14: [mm]
F15: Houtkwaliteit | G15: C24
P16: X end floorbeam | Q16: =G6-Q13 -> 6145 | R16: [mm]
F17: Belastingen | P17: Z end floorbeam | Q17: =G8 -> 2600 | R17: [mm]
F18: Eigen gewicht dak | G18: 0.67 | H18: [kN/m2] | P18: Length floorbeam | Q18: =Q16-Q13 -> 5290 | R18: [mm]
F19: Eigen gewicht vliering | G19: 0.45 | H19: [kN/m2] | P19: String beam | Q19: =G13 & " x " &G14 -> 38 x 245
Q21: =G18*(G10/1000) -> 0.4087 | R21: [kN/m1]
Q22: =G19*(G10/1000) -> 0.2745 | R22: [kN/m1]

Sheet DAK2
A4: Sporenkap zonder borstwering | O4: Calculated values
F5: Geometrie
F6: Totale breedte | G6: 6000 | H6: [mm] | O6: Roof height | P6: =G7 -> 3500 | Q6: [mm]
F7: Totale hoogte | G7: 3500 | H7: [mm] | O7: Roof half width | P7: =G6/2 -> 3000 | Q7: [mm]
F8: Hoogte vliering | G8: 2600 | H8: [mm] | O8: Roof pitch | P8: =DEGREES(ATAN(P6/P7)) -> 49.39870535 | Q8: [o]
F9: hoh-afstand | G9: 610 | H9: [mm] | O9: Length Roof Beam | P9: =_xlfn.FLOOR.MATH(SQRT(P6*P6+P7*P7)) -> 4609 | Q9: [mm]
F11: Doorsnede eigenschappen
F12: Breedte spoor | G12: 38 | H12: [mm] | O12: Relative Z floorbeam | P12: =G8 -> 2600 | Q12: [mm]
F13: Hoogte spoor | G13: 235 | H13: [mm] | O13: X start floorbeam | P13: =_xlfn.FLOOR.MATH(P12/TAN(RADIANS(P8))) -> 2228 | Q13: [mm]
F14: Breedte vlieringbalk | G14: 38 | H14: [mm] | O14: Z start floorbeam | P14: =G8 -> 2600 | Q14: [mm]
F15: Hoogte vlieringbalk | G15: 184 | H15: [mm]
F16: Houtkwaliteit | G16: C24 | O16: X end floorbeam | P16: =G6-P13 -> 3772 | Q16: [mm]
O17: Z end floorbeam | P17: =G8 -> 2600 | Q17: [mm]
F18: Belastingen | O18: Length floorbeam | P18: =P16-P13 -> 1544 | Q18: [mm]
F19: Eigen gewicht dak | G19: 0.67 | H19: [kN/m2] | O19: String beam 1 | P19: =G12 & " x " &G13 -> 38 x 235
F20: Eigen gewicht vliering | G20: 0.45 | H20: [kN/m2] | O20: String beam 2 | P20: =G14 & " x " &G15 -> 38 x 184
P21: =G19*(G9/1000) -> 0.4087 | Q21: [kN/m1]
P22: =G20*(G9/1000) -> 0.2745 | Q22: [kN/m1]

Sheet DAK3
A4: Gording, gerberaansluiting op dubbele buiging belast
H5: Geometrie | O5: Calculated values
H6: Hoogte | I6: 5000 | J6: [mm]
H7: Breedte | I7: 5000 | J7: [mm] | O7: =Xval(I9) -> <X>5000</X> | P7: =Yval(I7*0.5) -> <Y>2500</Y> | Q7: =Zval(I6*0.5) -> <Z>2500</Z>
I8: =DEGREES(ATAN(I6/I7)) -> 45 | J8: [o] | O8: =Xval(I10+I9) -> <X>6000</X> | P8: =Yval(I7) -> <Y>5000</Y> | Q8: =Zval(I6) -> <Z>5000</Z>
H9: Hoh-afstand | I9: 5000 | J9: [mm] | O9: =Xval(I9*2) -> <X>10000</X>
H10: Afstand gerberknoop | I10: 1000 | J10: [mm] | O10: =Xval(I9*2+I10) -> <X>11000</X>
O11: =Xval(I9*3) -> <X>15000</X>
H12: Doorsnede eigenschappen
H13: Gording | O13: =Xval("0 " & I9 & " " & I10 & " " & I9-I10 & " " & I9) -> <X>0 5000 1000 4000 5000</X>
H14: Breedte | I14: 96 | J14: [mm] | O14: =Yval("0 " & I7) -> <Y>0 5000</Y>
H15: Hoogte | I15: 246 | J15: [mm] | O15: =Zval("0 " & I6) -> <Z>0 5000</Z>
H16: Houtkwaliteit | I16: C24 | J16: [mm]
H17: Spant | I17: IPE200 | J17: [mm] | O17: =S4U("Profile_name",I17) -> <Profile_name>IPE200</Profile_name>
H18: Houtkwaliteit | I18: C24 | J18: (C18/C24 etc) | O18: =S4U("Profile_name",I14 & " x " &I15) -> <Profile_name>96 x 246</Profile_name>
O19: =S4U("Material",I16) -> <Material>C24</Material>
H20: Belastingen | O20: =S4U("h",I15) -> <h>246</h>
H21: G dak | I21: 0.72 | J21: [kN/m1] | O21: =S4U("b",I14) -> <b>96</b>
O22: =S4U("NodeX",I9*3) -> <NodeX>15000</NodeX>
O23: =S4U("NodeY",I7) -> <NodeY>5000</NodeY>
O24: =S4U("NodeZ",I6) -> <NodeZ>5000</NodeZ>
O25: =S4U("q1",-I21) -> <q1>-0,72</q1>

Sheet VAK1
T1: Calculated values
U2: X | V2: Z | W2: X | X2: Z | AA2: xloc kreup stijl
T3: Node 1 | U3: 380 | V3: 0 | W3: =I11 -> 380 | X3: 0 | Y3: =Xval(W3) -> <X>380</X> | Z3: =Zval(X3) -> <Z>0</Z> | AA3: x | AB3: =I10/2 -> 3610
A4: Verbeterd Hollands Spant | T4: Node 2 | U4: 6840 | V4: 0 | W4: =I10-W3 -> 6840 | X4: 0 | Y4: =Xval(W4) -> <X>6840</X> | Z4: =Zval(X4) -> <Z>0</Z> | AA4: z | AB4: =I6-I9 -> 3700
H5: Geometrie | T5: Node 3 | U5: 0 | V5: 700 | W5: 0 | X5: =I9 -> 700 | Y5: =Xval(W5) -> <X>0</X> | Z5: =Zval(X5) -> <Z>700</Z> | AA5: zloc kreup. Stijl | AB5: =I8-I9 -> 885
H6: Hoogte | I6: 4400 | J6: [mm] | T6: Node 4 | U6: 618 | V6: 700 | W6: =AB17 -> 593.52 | X6: =I9 -> 700 | Y6: =Xval(W6) -> <X>593,52</X> | Z6: =Zval(X6) -> <Z>700</Z> | AA6: xloc kreup stijl | AB6: =ROUND((AB5/AB4)*AB3,2) -> 863.47
H7: Hoogte haanhout | I7: 2460 | J7: [mm] | T7: Node 5 | U7: 6604 | V7: 700 | W7: =I10-W6 -> 6626.48 | X7: =I9 -> 700 | Y7: =Xval(W7) -> <X>6626,48</X> | Z7: =Zval(X7) -> <Z>700</Z>
H8: Hoogte kreupele stijl | I8: 1585 | J8: [mm] | T8: Node 6 | U8: 7220 | V8: 700 | W8: =I10 -> 7220 | X8: =I9 -> 700 | Y8: =Xval(W8) -> <X>7220</X> | Z8: =Zval(X8) -> <Z>700</Z> | AA8: xloc haanhout
H9: Hoogte muurplaat/blokkeel | I9: 700 | J9: [mm] | T9: Node 7 | U9: 915 | V9: 1585 | W9: =AB6 -> 863.47 | X9: =I8 -> 1585 | Y9: =Xval(W9) -> <X>863,47</X> | Z9: =Zval(X9) -> <Z>1585</Z> | AA9: zloc haanhout | AB9: =I7-I9 -> 1760
H10: Breedte | I10: 7220 | J10: [mm] | T10: Node 8 | U10: 6305 | V10: 1585 | W10: =I10-AB6 -> 6356.53 | X10: =I8 -> 1585 | Y10: =Xval(W10) -> <X>6356,53</X> | Z10: =Zval(X10) -> <Z>1585</Z> | AA10: xloc haanhout | AB10: =ROUND((AB9/AB4)*AB3,2) -> 1717.19
H11: Start kreupele stijl | I11: 380 | J11: [mm] | T11: Node 9 | U11: 1805 | V11: 2445 | W11: =AB10 -> 1717.19 | X11: =I7 -> 2460 | Y11: =Xval(W11) -> <X>1717,19</X> | Z11: =Zval(X11) -> <Z>2460</Z>
T12: Node 10 | U12: 3610 | V12: 2445 | W12: =I10/2 -> 3610 | X12: =I7 -> 2460 | Y12: =Xval(W12) -> <X>3610</X> | Z12: =Zval(X12) -> <Z>2460</Z> | AA12: xloc blokkeel
H13: Doorsnede eigenschappen | T13: Node 11 | U13: 5415 | V13: 2445 | W13: =I10-W11 -> 5502.81 | X13: =I7 -> 2460 | Y13: =Xval(W13) -> <X>5502,81</X> | Z13: =Zval(X13) -> <Z>2460</Z> | AA13: dx kreup. Stijl | AB13: =AB6-I11 -> 483.47
H14: Houtkwaliteit | I14: C24 | J14: (C18/C24 etc) | T14: Node 12 | U14: 3610 | V14: 4190 | W14: =I10/2 -> 3610 | X14: =I6 -> 4400 | Y14: =Xval(W14) -> <X>3610</X> | Z14: =Zval(X14) -> <Z>4400</Z> | AA14: dz kreup. Stijl | AB14: =AB5+I9 -> 1585
H15: Kapspruit/spantbeen | AA15: dz blokkeel | AB15: =I9 -> 700
H16: Breedte | I16: 80 | J16: [mm] | T16: =S4U("h", I17) -> <h>230</h> | U16: =I16 & " x " &I17 -> 80 x 230 | V16: =S4U("Profile_name", U16) -> <Profile_name>80 x 230</Profile_name> | AA16: dx blokkeel | AB16: =ROUND((AB15/AB14)*AB13,2) -> 213.52
H17: Hoogte | I17: 230 | J17: [mm] | T17: =S4U("b", I16) -> <b>80</b> | AA17: x blokkeel | AB17: =AB16+I11 -> 593.52
H18: Kreupele stijl/kapstijl/kappoot
H19: Breedte | I19: 80 | J19: [mm] | T19: =S4U("h", I20) -> <h>200</h> | U19: =I19 & " x " &I20 -> 80 x 200 | V19: =S4U("Profile_name", U19) -> <Profile_name>80 x 200</Profile_name>
H20: Hoogte | I20: 200 | J20: [mm] | T20: =S4U("b", I19) -> <b>80</b>
H21: Haanhout
H22: Breedte | I22: =2*50 -> 100 | J22: [mm] | T22: =S4U("h", I23) -> <h>200</h> | U22: =I22 & " x " &I23 -> 100 x 200 | V22: =S4U("Profile_name", U22) -> <Profile_name>100 x 200</Profile_name>
H23: Hoogte | I23: 200 | J23: [mm] | T23: =S4U("b", I22) -> <b>100</b>
H24: Blokkeel
H25: Breedte | I25: =2*50 -> 100 | J25: [mm] | T25: =S4U("h", I26) -> <h>200</h> | U25: =I25 & " x " &I26 -> 100 x 200 | V25: =S4U("Profile_name", U25) -> <Profile_name>100 x 200</Profile_name>
H26: Hoogte | I26: 200 | J26: [mm] | T26: =S4U("b", I25) -> <b>100</b>
H27: Makelaar
H28: Breedte | I28: 80 | J28: [mm] | T28: =S4U("h", I29) -> <h>200</h> | U28: =I28 & " x " &I29 -> 80 x 200 | V28: =S4U("Profile_name", U28) -> <Profile_name>80 x 200</Profile_name>
H29: Hoogte | I29: 200 | J29: [mm] | T29: =S4U("b", I28) -> <b>80</b>
T30: =S4U("Material", I14) -> <Material>C24</Material>
H31: Belastingen
H32: qG | I32: -2.72 | J32: [kN/m1] | T32: ="<X>0 " & I10/2 & " " & I10/2 & "</X>" -> <X>0 3610 3610</X>
T33: ="<Z>0 " &I9 & " " & I7-I9 & " " &I6-I7 & "</Z>" -> <Z>0 700 1760 1940</Z>
T34: l | U34: =SQRT(AB3*AB3+AB4*AB4) -> 5169.342318
T35: angle | U35: =ROUND(90-DEGREES(ATAN(AB3/AB4)),0) -> 46 | V35: =-U35 -> -46
T36: =S4U("Load1",I32) -> <Load1>-2,72</Load1>
T37: =S4U("Load2",I32) -> <Load2>-2,72</Load2>
T38: =S4U("L",U34) -> <L>5169,34231793562</L>
T39: =S4U("angle",V35) -> <angle>-46</angle>
T40: =S4U("angle",U35) -> <angle>46</angle>
A42: Prof. J.G. Wattjes Deel 9 Eenvoudige dakconstructies en dakbedekkingen, Pag 236
A43: Bekijk alle boeken van Prof. J.G. Wattjes via deze link: | E43: https://github.com/DutchSailor/OpenBooks

Sheet HEK1
A4: Hekwerk
H5: Geometrie | R5: Calculated values
H6: Hoogte | I6: 1200 | J6: [mm] | R6: =Yval(I7) -> <Y>2000</Y>
H7: Hoh-afstand | I7: 2000 | J7: [mm] | R7: =Yval(I7*2) -> <Y>4000</Y>
R8: =Yval(I7*3) -> <Y>6000</Y>
H9: Doorsnede eigenschappen | R9: =Zval(I6) -> <Z>1200</Z>
H10: Balusterprofiel | I10: S80x8 | K10: (strip 80x8). Syntax aanhouden van profielendatabase Struct4U. | R10: =S4U("Profile_name",I10) -> <Profile_name>S80x8</Profile_name>
H11: Leuningprofiel | I11: HFCHS_I603X29 | K11: (Buis 60.3x29) | R11: =S4U("Profile_name",I11) -> <Profile_name>HFCHS_I603X29</Profile_name>
H12: Staalkwaliteit | I12: S235 | J12: [mm] | R12: =S4U("Material",I12) -> <Material>S235</Material>
R13: ="<Y> 0 " & I7 & " " & I7 & " " & I7 & "</Y>" -> <Y> 0 2000 2000 2000</Y>
H14: Belastingen | R14: ="<Z>+0 +" & I6 & "</Z>" -> <Z>+0 +1200</Z>
H15: Q q | I15: 0.5 | J15: [kN/m1] | K15: (Gemeenschappelijke ruimten met een woonfunctie), voor overige gevallen zie tabel NB.1 6.2 t.m. NB.4 6.10 in NEN-EN 1991-1-1 | R15: =S4U("Load1",-I15) -> <Load1>-0,5</Load1>
H16: Q F | I16: 1 | J16: [kN] | R16: =S4U("Load2",-I15) -> <Load2>-0,5</Load2>
R17: =S4U("L",I7) -> <L>2000</L>
R18: =S4U("Fx",-I16) -> <Fx>-1</Fx>
R21: <Z>+0 +5000</Z>

Sheet HSB1
A4: Sparing in HSB-wand
H5: Geometrie | R5: Calculated values
H6: Hoogte | I6: 3000 | J6: [mm] | S6: X | T6: Z | U6: X | V6: Y | W6: Z
H7: Hoh-afstand stijlen | I7: 610 | J7: [mm] | R7: 1 | S7: =Xval(U7) -> <X>0</X> | T7: =Zval(W7) -> <Z>0</Z> | U7: 0 | V7: 0 | W7: 0
H8: Breedte sparing | I8: 1500 | J8: [mm] | R8: 2 | S8: =Xval(U8) -> <X>610</X> | T8: =Zval(W8) -> <Z>0</Z> | U8: =I7 -> 610 | V8: 0 | W8: 0
H9: Hoogte sparing | I9: 1250 | J9: [mm] | R9: 3 | S9: =Xval(U9) -> <X>1220</X> | T9: =Zval(W9) -> <Z>0</Z> | U9: =I7*2 -> 1220 | V9: 0 | W9: 0
H10: Hoogte borstwering | I10: 850 | J10: [mm] | R10: 4 | S10: =Xval(U10) -> <X>1970</X> | T10: =Zval(W10) -> <Z>0</Z> | U10: =I7*2+750 -> 1970 | V10: 0 | W10: 0
R11: 5 | S11: =Xval(U11) -> <X>2720</X> | T11: =Zval(W11) -> <Z>0</Z> | U11: =I7*2+1500 -> 2720 | V11: 0 | W11: 0
H12: Doorsnede eigenschappen | R12: 6 | S12: =Xval(U12) -> <X>3330</X> | T12: =Zval(W12) -> <Z>0</Z> | U12: =U11+I7 -> 3330 | V12: 0 | W12: 0
H13: Hoogte stijl | I13: 38 | J13: [mm] | R13: 7 | S13: =Xval(U13) -> <X>3940</X> | T13: =Zval(W13) -> <Z>0</Z> | U13: =U12+I7 -> 3940 | V13: 0 | W13: 0
H14: Breedte stijl | I14: 184 | J14: [mm] | R14: 8 | S14: =Xval(U14) -> <X>1220</X> | T14: =Zval(W14) -> <Z>850</Z> | U14: =U9 -> 1220 | V14: 0 | W14: 850
H15: Hoogte zijstijl naast kozijn | I15: 76 | J15: [mm] | R15: 9 | S15: =Xval(U15) -> <X>1970</X> | T15: =Zval(W15) -> <Z>850</Z> | U15: =U10 -> 1970 | V15: 0 | W15: 850
H16: Breedte zijstijl naast kozijn | I16: 184 | J16: [mm] | R16: 10 | S16: =Xval(U16) -> <X>2720</X> | T16: =Zval(W16) -> <Z>850</Z> | U16: =U11 -> 2720 | V16: 0 | W16: 850
H17: Hoogte dorpel | I17: 76 | J17: [mm] | R17: 11 | S17: =Xval(U17) -> <X>1220</X> | T17: =Zval(W17) -> <Z>2100</Z> | U17: =U9 -> 1220 | V17: 0 | W17: 2100
H18: Breedte dorpel | I18: 184 | J18: [mm] | R18: 12 | S18: =Xval(U18) -> <X>1970</X> | T18: =Zval(W18) -> <Z>2100</Z> | U18: =U10 -> 1970 | V18: 0 | W18: 2100
H19: Houtkwaliteit | I19: C24 | J19: (C18/C24 etc) | R19: 13 | S19: =Xval(U19) -> <X>2720</X> | T19: =Zval(W19) -> <Z>2100</Z> | U19: =U11 -> 2720 | V19: 0 | W19: 2100
R20: 14 | S20: =Xval(U20) -> <X>0</X> | T20: =Zval(W20) -> <Z>3000</Z> | U20: 0 | V20: 0 | W20: 3000
H21: Belastingen | R21: 15 | S21: =Xval(U21) -> <X>610</X> | T21: =Zval(W21) -> <Z>3000</Z> | U21: =U8 -> 610 | V21: 0 | W21: 3000
H22: G bovenligger | I22: 2.5 | J22: [kN/m1] | R22: 16 | S22: =Xval(U22) -> <X>1220</X> | T22: =Zval(W22) -> <Z>3000</Z> | U22: 1220 | V22: 0 | W22: 3000
H23: Qwind | I23: =INHOUD!C18 -> 0.728 | J23: [kN/m2] | R23: 17 | S23: =Xval(U23) -> <X>1970</X> | T23: =Zval(W23) -> <Z>3000</Z> | U23: 1970 | V23: 0 | W23: 3000
R24: 18 | S24: =Xval(U24) -> <X>2720</X> | T24: =Zval(W24) -> <Z>3000</Z> | U24: 2720 | V24: 0 | W24: 3000
R25: 19 | S25: =Xval(U25) -> <X>3330</X> | T25: =Zval(W25) -> <Z>3000</Z> | U25: 3330 | V25: 0 | W25: 3000
R26: 20 | S26: =Xval(U26) -> <X>3940</X> | T26: =Zval(W26) -> <Z>3000</Z> | U26: 3940 | V26: 0 | W26: 3000
R28: =S4U("h",I14) -> <h>184</h> | S28: =I13 & " x " &I14 -> 38 x 184 | T28: =S4U("Profile_name", S28) -> <Profile_name>38 x 184</Profile_name>
R29: =S4U("b",I13) -> <b>38</b> | T29: =S4U("Material", I19) -> <Material>C24</Material>
R31: =S4U("h",I16) -> <h>184</h> | S31: =I17 & " x " &I16 -> 76 x 184 | T31: =S4U("Profile_name", S31) -> <Profile_name>76 x 184</Profile_name>
R32: =S4U("b",I15) -> <b>76</b> | T32: =S4U("Material", I19) -> <Material>C24</Material>
R34: =S4U("h",I18) -> <h>184</h> | S34: =I17 & " x " &I18 -> 76 x 184 | T34: =S4U("Profile_name", S34) -> <Profile_name>76 x 184</Profile_name>
R35: =S4U("b",I17) -> <b>76</b> | T35: =S4U("Material", I19) -> <Material>C24</Material>
R38: ="<X>0 "&I7&" "&I7&" "&I8&" "&I7&" "&I7&"</X>" -> <X>0 610 610 1500 610 610</X>
R39: ="<Z>+0 +" & I10 & " +"&I9+I10&" +"&I6&"</Z>" -> <Z>+0 +850 +2100 +3000</Z>
R41: =S4U("Load1",-I22) -> <Load1>-2,5</Load1>
R42: =S4U("Load2",-I22) -> <Load2>-2,5</Load2>
R43: =S4U("L",I8+I7*4) -> <L>3940</L>
R44: =S4U("NodeX",I8+I7*4) -> <NodeX>3940</NodeX>
R45: =S4U("NodeZ",I6) -> <NodeZ>3000</NodeZ>
R46: =S4U("q1",-I23) -> <q1>-0,728</q1>

Sheet S1
A4: Portaal doorbraak met subligger
F5: Geometrie | Q5: Calculated values
F6: Breedte portaal | H6: 6000 | I6: [mm] | Q6: X | R6: Z
F7: Hoogte portaal | H7: 2700 | I7: [mm] | Q7: 0 | R7: 0 | S7: =Zval(R7) -> <Z>0</Z>
F8: Startafstand subligger | H8: 2000 | I8: [mm] | Q8: 0 | R8: =H7 -> 2700 | S8: =Zval(R8) -> <Z>2700</Z>
F9: Lengte subligger | H9: 3000 | I9: [mm] | R9: =R8+1000 -> 3700 | S9: =Zval(R9) -> <Z>3700</Z>
Q10: =H8 -> 2000 | S10: =Xval(Q10) -> <X>2000</X>
F11: Doorsnedes | Q11: =H8+H9 -> 5000 | S11: =Xval(Q11) -> <X>5000</X>
F12: Kolom portaal | H12: HEA160 | Q12: =H6 -> 6000 | S12: =Xval(Q12) -> <X>6000</X>
F13: Ligger portaal | H13: HEA260
F14: Subligger | H14: IPE220 | Q14: ="0 " & H8 & " "& H6-H8 -> 0 2000 4000
Q15: =S4U("X",Q14) -> <X>0 2000 4000</X>
Q16: ="0 " & H7 & " 1000" -> 0 2700 1000
F17: Belastingen | H17: G | I17: Q | Q17: =S4U("Z",Q16) -> <Z>0 2700 1000</Z>
F18: q hoofdligger portaal | H18: 10 | I18: 5 | J18: [kN/m1]
F19: q subligger | H19: 5 | I19: 3 | J19: [kN/m1] | Q19: =S4U("Profile_name",H12) -> <Profile_name>HEA160</Profile_name>
F20: Fh wind | I20: 10 | J20: [kN] | Q20: =S4U("Profile_name",H13) -> <Profile_name>HEA260</Profile_name>
Q21: =S4U("Profile_name",H14) -> <Profile_name>IPE220</Profile_name>
Q23: =S4U("Load1",-H18) -> <Load1>-10</Load1>
Q24: =S4U("Load2",-H18) -> <Load2>-10</Load2>
Q25: =S4U("L",H6) -> <L>6000</L>
Q26: =S4U("Load1",-H19) -> <Load1>-5</Load1>
Q27: =S4U("Load2",-H19) -> <Load2>-5</Load2>
Q28: =Q34 -> <L>3000</L>
Q29: =S4U("Load1",-I18) -> <Load1>-5</Load1>
Q30: =S4U("Load2",-I18) -> <Load2>-5</Load2>
Q31: =Q25 -> <L>6000</L>
Q32: =S4U("Load1",-I19) -> <Load1>-3</Load1>
Q33: =S4U("Load2",-I19) -> <Load2>-3</Load2>
Q34: =S4U("L",H9) -> <L>3000</L>
Q35: =S4U("Fx",I20) -> <Fx>10</Fx>

Sheet RAV1
A4: Sparing in dak
H5: Geometrie | R5: Calculated values
H6: Hoh afstand balken | I6: 610 | J6: [mm] | R6: X | S6: Y | U6: X | V6: Y
H7: Breedte sparing | I7: 2000 | J7: [mm] | R7: =Xval(U7) -> <X>610</X> | S7: =Yval(V7) -> <Y>500</Y> | U7: =I6 -> 610 | V7: =I10 -> 500
H8: Lengte sparing | I8: 2500 | J8: [mm] | R8: =Xval(U8) -> <X>1610</X> | S8: =Yval(V8) -> <Y>3000</Y> | U8: =I6+I7/2 -> 1610 | V8: =I10+I8 -> 3000
H9: Overspanning(lov) | I9: 5000 | J9: [mm] | R9: =Xval(U9) -> <X>2610</X> | S9: =Yval(V9) -> <Y>5000</Y> | U9: =I6+I7 -> 2610 | V9: =I9 -> 5000
H10: L1 | I10: 500 | J10: [mm] | R10: =Xval(U10) -> <X>3220</X> | S10: =Yval(V10) -> <Y></Y> | U10: =U9+I6 -> 3220
S11: =Yval(V11) -> <Y></Y>
H12: Doorsnede eigenschappen | S12: =Yval(V12) -> <Y></Y>
H13: P1 breedte | I13: 71 | J13: [mm]
H14: P1 hoogte | I14: 196 | J14: [mm] | R14: =S4U("b",I13) -> <b>71</b> | S14: =I13 & " x " &I14 -> 71 x 196 | T14: =S4U("Profile_name",S14) -> <Profile_name>71 x 196</Profile_name>
H15: P2 breedte | I15: 142 | J15: [mm] | R15: =S4U("h", I14) -> <h>196</h> | T15: =S4U("Material",I17) -> <Material>C24</Material>
H16: P2 hoogte | I16: 196 | J16: [mm]
H17: Houtkwaliteit | I17: C24 | J17: (C18/C24 etc) | R17: =S4U("b",I15) -> <b>142</b> | S17: =I15 & " x "&I16 -> 142 x 196 | T17: =S4U("Profile_name",S17) -> <Profile_name>142 x 196</Profile_name>
R18: =S4U("h",I16) -> <h>196</h> | T18: =S4U("Material",I17) -> <Material>C24</Material>
H19: Belastingen
H20: G | I20: 0.52 | J20: [kN/m2]
H21: Q | I21: 1 | J21: [kN/m2] | R21: ="<X>0 "&I6&" "&I7&" "&I6&"</X>" -> <X>0 610 2000 610</X>
R22: ="<Y>0 "&I10&" "&I8&" "&I9-I8-I10&"</Y>" -> <Y>0 500 2500 2000</Y>
R24: =S4U("NodeY",I9) -> <NodeY>5000</NodeY>
R25: =S4U("NodeX",U10) -> <NodeX>3220</NodeX>
R26: =S4U("q1",-I20) -> <q1>-0,52</q1>
R27: =S4U("q1",-I21) -> <q1>-1</q1>

Sheet RAV2
A4: Sparing in dak
H5: Geometrie | R5: Calculated values
H6: Overspanning | I6: 4200 | J6: [mm] | R6: X | S6: Y
H7: Breedte raveeling | I7: 1000 | J7: [mm] | R7: =Xval(I6) -> <X>4200</X>
H8: Diepte raveeling | I8: 2000 | J8: [mm] | R8: =Xval(I7) -> <X>1000</X>
H9: hoh | I9: 610 | J9: [mm] | R9: =Xval(I8+I7) -> <X>3000</X>
H11: Doorsnede eigenschappen
H12: Raveelbalk b | I12: 80 | J12: [mm]
H13: Raveelbalk h | I13: 200 | J13: [mm]
H14: Randbalk b | I14: 160 | J14: [mm] | R14: =S4U("b",I12) -> <b>80</b> | S14: =I12 & " x " &I13 -> 80 x 200 | T14: =S4U("Profile_name",S14) -> <Profile_name>80 x 200</Profile_name>
H15: Randbalk h | I15: 200 | J15: [mm] | R15: =S4U("h", I13) -> <h>200</h> | T15: =S4U("Material",I16) -> <Material>C24</Material>
H16: Houtkwaliteit | I16: C24 | J16: (C18/C24 etc)
R17: =S4U("b",I14) -> <b>160</b> | S17: =I14 & " x "&I15 -> 160 x 200 | T17: =S4U("Profile_name",S17) -> <Profile_name>160 x 200</Profile_name>
H18: Belastingen | R18: =S4U("h",I15) -> <h>200</h> | T18: =S4U("Material",I16) -> <Material>C24</Material>
H19: G | I19: =[1]!GLOAD6v -> 0.565 | J19: [kN/m2]
H20: Q | I20: 2.55 | J20: [kN/m2] | R20: ="<X>0 "&I6 & "</X>" -> <X>0 4200</X>
S21: G | T21: Q | U21: G | V21: Q
U22: XML | X22: =S4U("q1",-I19) -> <q1>-0,565</q1>
R23: q1 | S23: =I19*(I9/2)/1000 -> 0.172325 | T23: =I20*(I9/2)/1000 -> 0.77775 | U23: =S4U("q1",-S23) -> <q1>-0,172325</q1> | V23: =S4U("q1",-T23) -> <q1>-0,77775</q1> | X23: =S4U("q1",-I20) -> <q1>-2,55</q1>
R24: q2 | S24: =S23*2 -> 0.34465 | T24: =T23*2 -> 1.5555 | U24: =S4U("q1",-S24) -> <q1>-0,34465</q1> | V24: =S4U("q1",-T24) -> <q1>-1,5555</q1>
R25: q3 | S25: =I19*(I6-I7)/2000 -> 0.904 | T25: =I20*(I6-I7)/2000 -> 4.08 | U25: =S4U("q1",-S25) -> <q1>-0,904</q1> | V25: =S4U("q1",-T25) -> <q1>-4,08</q1>
R27: =S4U("L",I7) -> <L>1000</L>
R28: =S4U("L",I6-I7) -> <L>3200</L>
R29: =S4U("L",I8) -> <L>2000</L>

Sheet B1
A4: Bedrijfsvloer op palen
H5: Vloergeometrie | R5: Calculated values
H6: Hoh afstand palen X | I6: 3000 | J6: [mm]
H7: Hoh afstand palen Y | I7: 3000 | J7: [mm] | R7: X | S7: XML-string X | T7: Y | U7: XML-string Y | V7: X | W7: Y
H8: Overstek palen X | I8: 1500 | J8: [mm] | R8: 0 | S8: ="<X>"&R8 & "</X>" -> <X>0</X> | T8: 0 | U8: ="<Y>"&T8 & "</Y>" -> <Y>0</Y>
H9: Overstek palen Y | I9: 1500 | J9: [mm] | R9: =I15/2 -> 500 | S9: ="<X>"&R9 & "</X>" -> <X>500</X> | T9: =T10-$S$25 -> 1000 | U9: ="<Y>"&T9 & "</Y>" -> <Y>1000</Y>
H10: Vloerdikte | I10: 250 | J10: [mm] | R10: =I8 -> 1500 | S10: <X>1500</X> | T10: =I9 -> 1500 | U10: <Y>1500</Y> | V10: ="<NodeX>" &R10& "</NodeX>" -> <NodeX>1500</NodeX> | W10: ="<NodeY>" &R10& "</NodeY>" -> <NodeY>1500</NodeY>
H11: Betonkwaliteit | I11: C30/37 | R11: =R10+I15/2 -> 2000 | S11: <X>2000</X> | T11: =T10+$S$25 -> 2000 | U11: <Y>2000</Y>
H12: Veerwaarde palen | I12: 35000 | J12: [kN/m1] | R12: =R13-$S$24 -> 4000 | S12: <X>4000</X> | T12: =T13-$S$25 -> 4000 | U12: <Y>4000</Y>
R13: =R10+$I$6 -> 4500 | S13: <X>4500</X> | T13: =T10+I7 -> 4500 | U13: <Y>4500</Y> | V13: ="<NodeX>" &R13& "</NodeX>" -> <NodeX>4500</NodeX> | W13: ="<NodeY>" &R13& "</NodeY>" -> <NodeY>4500</NodeY>
H14: Ponskop | R14: =R13+$S$24 -> 5000 | S14: <X>5000</X> | T14: =T13+$S$25 -> 5000 | U14: <Y>5000</Y>
H15: Breedte X | I15: 1000 | J15: [mm] | R15: =R16-$S$24 -> 7000 | S15: <X>7000</X> | T15: =T16-$S$25 -> 7000 | U15: <Y>7000</Y>
H16: Lengte Y | I16: 1000 | J16: [mm] | R16: =R13+$I$6 -> 7500 | S16: <X>7500</X> | T16: =T13+I7 -> 7500 | U16: <Y>7500</Y> | V16: ="<NodeX>" &R16& "</NodeX>" -> <NodeX>7500</NodeX> | W16: ="<NodeY>" &R16& "</NodeY>" -> <NodeY>7500</NodeY>
H17: Dikte ponskop | I17: 300 | J17: [mm] | R17: =R16+$S$24 -> 8000 | S17: <X>8000</X> | T17: =T16+$S$25 -> 8000 | U17: <Y>8000</Y>
R18: =R19-$S$24 -> 10000 | S18: <X>10000</X> | T18: =T19-$S$25 -> 10000 | U18: <Y>10000</Y>
H19: Randbalkafmeting | R19: =R16+$I$6 -> 10500 | S19: <X>10500</X> | T19: =T16+I7 -> 10500 | U19: <Y>10500</Y> | V19: ="<NodeX>" &R19& "</NodeX>" -> <NodeX>10500</NodeX> | W19: ="<NodeY>" &R19& "</NodeY>" -> <NodeY>10500</NodeY>
H20: Breedte | I20: 400 | J20: [mm] | R20: =R19+$S$24 -> 11000 | S20: <X>11000</X> | T20: =T19+$S$25 -> 11000 | U20: <Y>11000</Y>
H21: Hoogte | I21: 500 | J21: [mm] | R21: =R22-$S$24 -> 13000 | S21: <X>13000</X> | T21: =T22-$S$25 -> 13000 | U21: <Y>13000</Y>
H22: Betonkwaliteit | I22: C20/25 | R22: =R19+$I$6 -> 13500 | S22: <X>13500</X> | T22: =T19+I7 -> 13500 | U22: <Y>13500</Y> | V22: ="<NodeX>" &R22& "</NodeX>" -> <NodeX>13500</NodeX> | W22: ="<NodeY>" &R22& "</NodeY>" -> <NodeY>13500</NodeY>
H24: Belastingen | R24: X | S24: =I15/2 -> 500
H25: Verdeelde belasting | I25: 10 | J25: [kN/m2] | R25: Y | S25: =I16/2 -> 500
H26: Puntlast | I26: 50 | J26: [kN] | R26: ="<Kz>" & I12 & "</Kz>" -> <Kz>35000</Kz>
R27: ="<X>0 " & I8 & " 4x" & I6 & "</X>" -> <X>0 1500 4x3000</X>
R28: ="<Y>0 " & I9 & " 4x" & I7 & "</Y>" -> <Y>0 1500 4x3000</Y>
R29: ="<Material>" & I22 & "</Material>" -> <Material>C20/25</Material>
R30: ="<h>" &I21 & "</h>" -> <h>500</h>
R31: ="<b>" &I20 & "</b>" -> <b>400</b>
R32: ="<h>" &I10 & "</h>" -> <h>250</h>
R33: ="<h>" &I17 & "</h>" -> <h>300</h>
R34: ="<Material>" & I11 & "</Material>" -> <Material>C30/37</Material>
R35: ="<q1>-" & I25 & "</q1>" -> <q1>-10</q1>
R36: ="<Fz>-" & I26 & "</Fz>" -> <Fz>-50</Fz>

Sheet S3
A4: Sparing in stalen ligger
H5: Geometrie | N5: Calculated values
H6: Materiaal | I6: S235
H7: Stalen ligger | I7: HEA300 | J7: [mm] | O7: G | P7: Q | R7: X | S7: Y | T7: Z | U7: X | V7: Y | W7: Z
H8: b | I8: 300 | J8: [mm] | N8: q | O8: =ROUND(I19/(I8/1000),2) -> 16.67 | P8: =ROUND(I20/(I8/1000),2) -> 33.33 | Q8: 1 | R8: =Xval(U8) -> <X>0</X> | S8: =Yval(V8) -> <Y>0</Y> | T8: =Zval(W8) -> <Z>0</Z> | U8: 0 | V8: 0 | W8: 0
H9: h | I9: 290 | J9: [mm] | Q9: 2 | R9: =Xval(U9) -> <X>0</X> | S9: =Yval(I13) -> <Y>1500</Y> | T9: =T8 -> <Z>0</Z> | U9: 0 | V9: 1000 | W9: 0
H10: tf | I10: 14 | J10: [mm] | N10: =S4U("Profile_name",I7) -> <Profile_name>HEA300</Profile_name> | Q10: 3 | R10: =Xval(U10) -> <X>0</X> | S10: =Yval(I13+I14) -> <Y>1900</Y> | T10: <Z>0</Z> | U10: 0 | V10: 1400 | W10: 0
H11: tw | I11: 8.5 | J11: [mm] | N11: =S4U("Material",I6) -> <Material>S235</Material> | Q11: 4 | R11: =Xval(U11) -> <X>0</X> | S11: =Yval(I12) -> <Y>8000</Y> | T11: <Z>0</Z> | U11: 0 | V11: 6400 | W11: 0
H12: L | I12: 8000 | J12: [mm] | N12: =S4U("Load1",-I19) -> <Load1>-5</Load1> | Q12: 5 | R12: =Xval(I16) -> <X>2000</X> | S12: =S8 -> <Y>0</Y> | T12: <Z>0</Z> | U12: 2000 | V12: 0 | W12: 0
H13: l1 | I13: 1500 | J13: [mm] | N13: =S4U("Load2",-I19) -> <Load2>-5</Load2> | Q13: 67 | R13: =Xval(I16) -> <X>2000</X> | S13: =S11 -> <Y>8000</Y> | T13: <Z>0</Z> | U13: =U12 -> 2000 | V13: 6400 | W13: 0
H14: l2 | I14: 400 | J14: [mm] | N14: =S4U("L",I13) -> <L>1500</L> | Q14: 219 | R14: =Xval(I16+(I8/2)) -> <X>2150</X> | S14: =S9 -> <Y>1500</Y> | T14: <Z>0</Z> | U14: 2150 | V14: 0 | W14: 0
H15: h sparing | I15: 100 | J15: [mm] | N15: =S4U("L",I14) -> <L>400</L> | Q15: 235 | R15: =R14 -> <X>2150</X> | S15: =S10 -> <Y>1900</Y> | T15: <Z>0</Z> | U15: =U14 -> 2150 | V15: 1000 | W15: 0
H16: tussen afstand balken | I16: 2000 | J16: [mm] | N16: =S4U("L",I12) -> <L>8000</L> | Q16: 245 | R16: =R15 -> <X>2150</X> | S16: =S15 -> <Y>1900</Y> | T16: <Z>0</Z> | U16: =U15 -> 2150 | V16: 1400 | W16: 0
N17: =S4U("L",I12-I13-I14) -> <L>6100</L> | Q17: 331 | R17: =R16 -> <X>2150</X> | S17: =S13 -> <Y>8000</Y> | T17: <Z>0</Z> | U17: =U16 -> 2150 | V17: 6400 | W17: 0
H18: Belastingen | N18: =S4U("Load1",-I20) -> <Load1>-10</Load1> | Q18: 483 | R18: =Xval(I16+I8) -> <X>2300</X> | S18: =S12 -> <Y>0</Y> | T18: <Z>0</Z> | U18: 2300 | V18: 0 | W18: 0
H19: G | I19: 5 | J19: [kN/m1] | N19: =S4U("Load2",-I20) -> <Load2>-10</Load2> | Q19: 545 | R19: =R18 -> <X>2300</X> | S19: =S17 -> <Y>8000</Y> | T19: <Z>0</Z> | U19: =U18 -> 2300 | V19: 6400 | W19: 0
H20: Q | I20: 10 | J20: [kN/m1] | N20: ="<X>0 "&I16&" "&I8&"</X>" -> <X>0 2000 300</X> | Q20: 677 | R20: =R17 -> <X>2150</X> | S20: =S14 -> <Y>1500</Y> | T20: =Zval(I15) -> <Z>100</Z> | U20: =U17 -> 2150 | V20: 1000 | W20: 100
N21: ="<Y>0 "&I13&" "&I14&" "&I12&"</Y>" -> <Y>0 1500 400 8000</Y> | Q21: 687 | R21: =R17 -> <X>2150</X> | S21: =S16 -> <Y>1900</Y> | T21: =T20 -> <Z>100</Z> | U21: =U20 -> 2150 | V21: 1400 | W21: 100
Q22: 863 | R22: =R21 -> <X>2150</X> | S22: =S20 -> <Y>1500</Y> | T22: =Zval(I14/2) -> <Z>200</Z> | U22: =U21 -> 2150 | V22: 1000 | W22: 200
N23: =S4U("NodeX",U14) -> <NodeX>2150</NodeX> | Q23: 873 | R23: =R22 -> <X>2150</X> | S23: =S21 -> <Y>1900</Y> | T23: =T22 -> <Z>200</Z> | U23: =U22 -> 2150 | V23: 1400 | W23: 200
N24: =S4U("NodeZ",W24) -> <NodeZ>300</NodeZ> | Q24: 1032 | R24: =Xval(I16) -> <X>2000</X> | S24: =S18 -> <Y>0</Y> | T24: =Zval(I8) -> <Z>300</Z> | U24: =U12 -> 2000 | V24: 0 | W24: 300
N25: =S4U("NodeX",U13) -> <NodeX>2000</NodeX> | Q25: 1094 | R25: =R24 -> <X>2000</X> | S25: =S19 -> <Y>8000</Y> | T25: =T24 -> <Z>300</Z> | U25: =U12 -> 2000 | V25: 6400 | W25: 300
N26: =S4U("NodeY",I12) -> <NodeY>8000</NodeY> | Q26: 1246 | R26: =R23 -> <X>2150</X> | S26: =S24 -> <Y>0</Y> | T26: =T25 -> <Z>300</Z> | U26: =U23 -> 2150 | V26: 0 | W26: 300
N27: =S4U("NodeX",U18) -> <NodeX>2300</NodeX> | Q27: 1262 | R27: =R26 -> <X>2150</X> | S27: =S22 -> <Y>1500</Y> | T27: =T26 -> <Z>300</Z> | U27: =U23 -> 2150 | V27: 1000 | W27: 300
Q28: 1272 | R28: =R27 -> <X>2150</X> | S28: =S23 -> <Y>1900</Y> | T28: =T27 -> <Z>300</Z> | U28: =U27 -> 2150 | V28: 1400 | W28: 300
N29: =S4U("h",I10) -> <h>14</h> | Q29: 1358 | R29: =R28 -> <X>2150</X> | S29: =S25 -> <Y>8000</Y> | T29: =T28 -> <Z>300</Z> | U29: =U28 -> 2150 | V29: 6400 | W29: 300
N30: =S4U("h",I11) -> <h>8,5</h> | Q30: 1510 | R30: =Xval(I8) -> <X>300</X> | S30: =S26 -> <Y>0</Y> | T30: =Zval(I16+I8) -> <Z>2300</Z> | U30: 300 | V30: 0 | W30: 2300
N31: =S4U("q1",-O8) -> <q1>-16,67</q1> | Q31: 1572 | R31: =R19 -> <X>2300</X> | S31: =S29 -> <Y>8000</Y> | T31: =T29 -> <Z>300</Z> | U31: =U19 -> 2300 | V31: 6400 | W31: 300
N32: =S4U("q1",-P8) -> <q1>-33,33</q1>

Sheet WA
A4: Wateraccumulatie enkelvelds dak, hoofdligger voorzien van zeeg
H5: Geometrie | N5: Calculated values
H6: Overspanning | I6: 15000 | J6: [mm] | N6: X | O6: Y | P6: Z
H7: Stramienmaat | I7: 5400 | J7: [mm] | N7: =I7 -> 5400 | O7: =I6/4 -> 3750 | P7: 0 | Q7: =Xval(N7) -> <X>5400</X> | R7: =Yval(O7) -> <Y>3750</Y> | S7: =Zval(P7) -> <Z>0</Z>
H8: Zeeg | I8: 80 | J8: [mm] | N8: =I7*2 -> 10800 | O8: =I6/2 -> 7500 | P8: =P9/2 -> 40 | Q8: =Xval(N8) -> <X>10800</X> | R8: =Yval(O8) -> <Y>7500</Y> | S8: =Zval(P8) -> <Z>40</Z>
N9: =I7*3 -> 16200 | O9: =O8+O7 -> 11250 | P9: =I8 -> 80 | Q9: =Xval(N9) -> <X>16200</X> | R9: =Yval(O9) -> <Y>11250</Y> | S9: =Zval(P9) -> <Z>80</Z>
H10: Doorsnede eigenschappen | O10: =I6 -> 15000 | R10: =Yval(O10) -> <Y>15000</Y>
H11: Hoofdligger | I11: IPE550
H12: Randligger | I12: HEA140 | N12: =Xval("0 3x" &I7) -> <X>0 3x5400</X>
H13: Koppelkoker | I13: HFRHS80X80X4 | N13: =Yval("0 "&I6/2&" "&I6/2) -> <Y>0 7500 7500</Y>
H14: Iy dakplaat | I14: =DATA!F92 -> 2503 | J14: [mm4/mm1] | L14: (SAB106R t=1 mm | N14: =S4U("Profile_name",I11) -> <Profile_name>IPE550</Profile_name>
H15: Staalkwaliteit | I15: S235 | N15: =S4U("Profile_name",I12) -> <Profile_name>HEA140</Profile_name>
N16: =S4U("Profile_name",I13) -> <Profile_name>HFRHS80X80X4</Profile_name>
H17: Belastingen | N17: =S4U("Material",I15) -> <Material>S235</Material>
H18: G | I18: 0.5 | J18: [kN/m1] | N18: =S4U("NodeX",N9) -> <NodeX>16200</NodeX>
H19: dnd | I19: 50 | J19: [mm] | N19: =S4U("NodeY",O10) -> <NodeY>15000</NodeY>
N20: =S4U("NodeY",O8) -> <NodeY>7500</NodeY>
N21: =S4U("NodeZ",P9) -> <NodeZ>80</NodeZ>
N22: =S4U("q1",-I18) -> <q1>-0,5</q1>
N25: =S4U("Daan",10) -> <Daan>10</Daan>

Sheet EC5 8.11.2.2 Tandverbinding+VEd
A1: 8.11.2.2 Tandverbinding+dwarskracht
G2: formules | I2: normart.
A3: Tandverbinding: geometrie
A4: b1 | B4: 96 | C4: [mm]
A5: h1 | B5: =[2]CHV12!C8 -> 196 | C5: [mm]
A6: b2 | B6: =[2]CHV12!C9 -> 71 | C6: [mm]
A7: h2 | B7: =[2]CHV12!C10 -> 196 | C7: [mm]
A8: α | B8: =[2]CHV12!C11 -> 45 | C8: [o]
A9: β | B9: =[2]CHV12!C12 -> 90 | C9: [o]
A10: ttand | B10: =[2]CHV12!C15 -> 30 | C10: [mm]
A11: x | B11: 200 | C11: [mm]
A12: stand | B12: =B10/(TAN(RADIANS(B9-B8)))+B11 -> 230 | C12: [mm] | D12: ttand/(tan(β-α))+x
A13: lamb | B13: =B5/(SIN(RADIANS(B8))) -> 277.1858582 | C13: [mm] | D13: h1/sinα
A14: h1,b1 =spantbeen; h2,b2=trekbalk/ligger
A15: Materiaal | B15: =[2]CHV12!C20 -> C24 | F15: γm | G15: =[2]CHV12!G20 -> 1.3
A16: Klimaatklasse | B16: =[2]CHV12!C21 -> I
B17: BC1 | C17: BC2 | D17: BC3
A18: Nc;d | B18: 30 | C18: 20 | D18: 15 | E18: 15 | F18: [kN]
A19: VE;d | B19: 5 | C19: -7 | D19: -3 | E19: 5 | F19: [kN]
A20: Belastingduurklas. | B20: 4 kort | C20: 4 kort | D20: 1 Blijvend | E20: 1 Blijvend
A21: kmod | B21: =VLOOKUP(B20,DATA!C20:G24,5) -> 0.9 | C21: =VLOOKUP(C20,DATA!C20:G24,5) -> 0.9 | D21: =VLOOKUP(D20,DATA!C20:G24,5) -> 0.6 | E21: =VLOOKUP(E20,DATA!C20:G24,5) -> 0.6
A23: Spanningen tgv Normaalkracht
A24: σc;0;d | B24: =(B18*1000*COS(RADIANS(B8)))/(B10*B4) -> 7.365695637 | C24: =(C18*1000*COS(RADIANS(B8)))/(B10*B4) -> 4.910463758 | D24: =(D18*1000*COS(RADIANS(B8)))/(B10*B4) -> 3.682847819 | E24: =(E18*1000*COS(RADIANS(B8)))/(B10*B4) -> 3.682847819 | F24: [N/mm2] | G24: Nc;dcosα/(tambb) | I24: NB 8.4
A25: σc;90;d | B25: =(B18*1000*SIN(RADIANS(B8)))/(B13*B4) -> 0.7971938776 | C25: =(C18*1000*SIN(RADIANS(B8)))/(B13*B4) -> 0.531462585 | D25: =(D18*1000*SIN(RADIANS(B8)))/(B13*B4) -> 0.3985969388 | E25: =(E18*1000*SIN(RADIANS(B8)))/(B13*B4) -> 0.3985969388 | F25: [N/mm2] | G25: Nc;dsinα/(lambb) | I25: NB 8.5
A26: σv;d | B26: =(B18*1000*COS(RADIANS(B8)))/(0.8*B12*B4) -> 1.200928637 | C26: =(C18*1000*COS(RADIANS(B8)))/(0.8*B12*B4) -> 0.800619091 | D26: =(D18*1000*COS(RADIANS(B8)))/(0.8*B12*B4) -> 0.6004643183 | E26: =(E18*1000*COS(RADIANS(B8)))/(0.8*B12*B4) -> 0.6004643183 | F26: [N/mm2] | G26: Nc;dcosα/(0,8sambb) | I26: NB 8.6
A28: Spanningen tgv Dwarskracht
A29: σc;0;d | B29: =(B19*1000*SIN(RADIANS(B8)))/(B10*B4) -> 1.22761594 | C29: =(C19*1000*SIN(RADIANS(B8)))/(B10*B4) -> -1.718662315 | D29: =(D19*1000*SIN(RADIANS(B8)))/(B10*B4) -> -0.7365695637 | E29: =(E19*1000*SIN(RADIANS(B8)))/(B10*B4) -> 1.22761594 | F29: [N/mm2] | G29: VE;dsinα/(tambb)
A30: σc;90;d | B30: =(-B19*1000*COS(RADIANS(B8)))/(B13*B4) -> -0.1328656463 | C30: =(-C19*1000*COS(RADIANS(B8)))/(B13*B4) -> 0.1860119048 | D30: =(-D19*1000*COS(RADIANS(B8)))/(B13*B4) -> 0.07971938776 | E30: =(-E19*1000*COS(RADIANS(B8)))/(B13*B4) -> -0.1328656463 | F30: [N/mm2] | G30: VE;dcosα/(lambb)
A31: σv;d | B31: =(B19*1000*SIN(RADIANS(B8)))/(0.8*B12*B4) -> 0.2001547728 | C31: =(C19*1000*SIN(RADIANS(B8)))/(0.8*B12*B4) -> -0.2802166819 | D31: =(D19*1000*SIN(RADIANS(B8)))/(0.8*B12*B4) -> -0.1200928637 | E31: =(E19*1000*SIN(RADIANS(B8)))/(0.8*B12*B4) -> 0.2001547728 | F31: [N/mm2] | G31: VE;dsinα/(0,8sambb)
A32: Detaillering | F32: uc
A33: ttand | B33: =B10/B7 -> 0.1530612245 | C33: [h2] | D33: < | E33: =IF(B8>50,(1/5),(1/4)) -> 0.25 | F33: =B33/E33 -> 0.612244898 | G33: ALS(α> 50; (1/5h);(1/4h) | I33: NB 8.1
A34: 90-0.5α | B34: =90-0.5*B8 -> 67.5 | D34: </ | E34: =B9 -> 90 | F34: =B34/E34 -> 0.75 | I34: NB 8.2
A35: Β<90 | B35: =B9 -> 90 | D35: </ | E35: 90 | F35: =B35/E35 -> 1 | I35: NB 8.2
A37: Rk | B37: Rd;1 | C37: Rd;2 | D37: σ1 | E37: σ2 | F37: UC1 | G37: UC2
A38: [N/mm2] | B38: [N/mm2] | C38: [N/mm2] | D38: [N/mm2] | E38: [N/mm2]
A39: =HLOOKUP(B15,DATA!E41:M52,6) -> 21 | B39: =(A39*B21)/G15 -> 14.53846154 | C39: =(A39*C21)/G15 -> 14.53846154 | D39: =B24+B29 -> 8.593311577 | E39: 3.191801443 | F39: =D39/B39 -> 0.5910743413 | G39: 0.2195418982 | H39: (6.35)
A40: =HLOOKUP(B15,DATA!E41:M52,7) -> 2.5 | B40: =(A40*B21)/G15 -> 1.730769231 | C40: =(A40*C21)/G15 -> 1.730769231 | D40: 0.6643282313 | E40: 0.7174744898 | F40: 0.3838340892 | G40: 0.4145408163 | H40: (6.4)
A41: =HLOOKUP(B15,DATA!E41:M52,8) -> 2.5 | B41: =(A41*B21)/G15 -> 1.730769231 | C41: =(A41*C21)/G15 -> 1.730769231 | D41: 1.401083409 | E41: 0.5204024092 | F41: 0.8095148587 | G41: 0.3006769475 | H41: (6.13)
A43: Rk | B43: Rd;1 | C43: Rd;2 | D43: σ1 | E43: σ2 | F43: UC1 | G43: UC2
A44: [N/mm2] | B44: [N/mm2] | C44: [N/mm2] | D44: [N/mm2] | E44: [N/mm2]
A45: =A39 -> 21 | B45: =(A45*D21)/G15 -> 9.692307692 | C45: =(A45*E21)/G15 -> 9.692307692 | D45: =D24+D29 -> 2.946278255 | E45: 4.910463758 | F45: =D45/B45 -> 0.3039810898 | G45: 0.5066351497 | H45: (6.35)
A46: =A40 -> 2.5 | B46: =(A46*D21)/G15 -> 1.153846154 | C46: =(A46*E21)/G15 -> 1.153846154 | D46: 0.4783163265 | E46: 0.2657312925 | F46: 0.4145408163 | G46: 0.2303004535 | H46: (6.4)
A47: =A41 -> 2.5 | B47: =(A47*D21)/G15 -> 1.153846154 | C47: =(A47*E21)/G15 -> 1.153846154 | D47: 0.4803714546 | E47: 0.800619091 | F47: 0.4163219273 | G47: 0.6938698789 | H47: (6.13)

Sheet VOORBEELD
A4: Proefportaal
H5: Geometrie | R5: Calculated values
H6: Hoogte | I6: 3000 | J6: [mm]
H7: Breedte | I7: 8000 | J7: [mm] | O7: =Xval(I7) -> <X>8000</X>
O8: =Zval(I6) -> <Z>3000</Z>
H9: Doorsnede eigenschappen | O9: =S4U("Material",I12) -> <Material>C24</Material>
H10: Hoogte stijl | I10: 38 | J10: [mm]
H11: Breedte stijl | I11: 184 | J11: [mm]
H12: Houtkwaliteit | I12: C24 | J12: (C18/C24 etc)
H14: Belastingen
H15: G | I15: 2 | J15: [kN/m1]
H16: Q | I16: 2 | J16: [kN/m2]
O22: Stappenplan
O23: 1) | P23: Maak een constructie in XFEM4U of XFrame2D
O24: 2) | P24: Exporteer het XML-bestand
O25: 3) | P25: Open de XML in Firefox
O26: 4) | P26: Kopiëer de tekst van de XML
O27: 5) | P27: Plak deze in de tabblad 'VOORBEELD_1_XML'
O28: 6) | P28: Zorg dat het tabblad "_XML" achter de naam zit.
P31: Formule | Q31: Resultaat
P32: "=Xval(500)" | Q32: =Xval(500) -> <X>500</X>
P33: "=Yval(500)" | Q33: =Yval(500) -> <Y>500</Y>
P34: "=Zval(500)" | Q34: =Zval(500) -> <Z>500</Z>
P35: "=S4U("Material";"C20/25")" | Q35: =S4U("Material","C20/25") -> <Material>C20/25</Material>

Sheet VOORBEELD_XML
A1: <Frame>
A2: <ProjectName/>
A3: <ProjectNumber/>
A4: ="<ProjectName>" & INHOUD!C15 & "</ProjectName>" -> <ProjectName>50</ProjectName>
A5: ="<ProjectNumber>" & INHOUD!C14 & "</ProjectNumber>" -> <ProjectNumber>CC2</ProjectNumber>
A6: ="<ConsequenceClass>"& INHOUD!C16 & "</ConsequenceClass>" -> <ConsequenceClass>2 bebouwd</ConsequenceClass>
A7: <DesignWorkingLife>50</DesignWorkingLife>
A8: <Nodes>
A9: <Number>1</Number>
A10: <X>0</X>
A11: <Z>0</Z>
A12: <Number>2</Number>
A13: =VOORBEELD!O7 -> <X>8000</X>
A14: <Z>0</Z>
A15: <Number>3</Number>
A16: <X>0</X>
A17: =VOORBEELD!O8 -> <Z>3000</Z>
A18: <Number>4</Number>
A19: =A13 -> <X>8000</X>
A20: =A17 -> <Z>3000</Z>
A21: </Nodes>
A22: <Supports>
A23: <Number>1</Number>
A24: <Nodenumber>1</Nodenumber>
A25: <Tx>A</Tx>
A26: <Tz>A</Tz>
A27: <Ry> </Ry>
A28: <Kx>0</Kx>
A29: <Kz>0</Kz>
A30: <Cy>0</Cy>
A31: <dx>1000</dx>
A32: <dz>0</dz>
A33: <Number>2</Number>
A34: <Nodenumber>2</Nodenumber>
A35: <Tx>A</Tx>
A36: <Tz>A</Tz>
A37: <Ry> </Ry>
A38: <Kx>0</Kx>
A39: <Kz>0</Kz>
A40: <Cy>0</Cy>
A41: <dx>1000</dx>
A42: <dz>0</dz>
A43: </Supports>
A44: <Grids>
A45: <X>0 6000</X>
A46: <X_Lable>
A47: A B C D E F G H I J K L M N O P Q R S T U V W X Y Z
A48: </X_Lable>
A49: <Z>0 2500</Z>
A50: <Z_Lable/>
A51: </Grids>
A52: <Profiles>
A53: <Number>1</Number>
A54: <Profile_name>HEA160</Profile_name>
A55: <Material_type>0</Material_type>
A56: <Material>S 235</Material>
A57: <Angle>0</Angle>
A58: <Profile_shape>1</Profile_shape>
A59: <h>152</h>
A60: <b>160</b>
A61: <tf>9</tf>
A62: <tw>6</tw>
A63: <r1>0</r1>
A64: <r2>15</r2>
A65: <slope>0</slope>
A66: <Number>2</Number>
A67: <Profile_name>HEA260</Profile_name>
A68: <Material_type>0</Material_type>
A69: <Material>S 235</Material>
A70: <Angle>0</Angle>
A71: <Profile_shape>1</Profile_shape>
A72: <h>250</h>
A73: <b>260</b>
A74: <tf>12,5</tf>
A75: <tw>7,5</tw>
A76: <r1>0</r1>
A77: <r2>24</r2>
A78: <slope>0</slope>
A79: </Profiles>
A80: <Beamgroup>
A81: <Number>1</Number>
A82: <Startnode>1</Startnode>
A83: <Endnode>3</Endnode>
A84: <Number>2</Number>
A85: <Startnode>1</Startnode>
A86: <Endnode>2</Endnode>
A87: </Beamgroup>
A88: <Beams>
A89: <Number>1</Number>
A90: <Beamgroupnumber>1</Beamgroupnumber>
A91: <From_node_number>1</From_node_number>
A92: <To_node_number>3</To_node_number>
A93: <Type>1</Type>
A94: <TypeLoad>0</TypeLoad>
A95: <NumbLateralRestraints>0</NumbLateralRestraints>
A96: <Angle_profile>0</Angle_profile>
A97: <Profile_number>1</Profile_number>
A98: <Number>2</Number>
A99: <Beamgroupnumber>2</Beamgroupnumber>
A100: <From_node_number>4</From_node_number>
A101: <To_node_number>2</To_node_number>
A102: <Type>1</Type>
A103: <TypeLoad>0</TypeLoad>
A104: <NumbLateralRestraints>0</NumbLateralRestraints>
A105: <Angle_profile>0</Angle_profile>
A106: <Profile_number>1</Profile_number>
A107: <Number>3</Number>
A108: <Beamgroupnumber>2</Beamgroupnumber>
A109: <From_node_number>3</From_node_number>
A110: <To_node_number>4</To_node_number>
A111: <Type>1</Type>
A112: <TypeLoad>0</TypeLoad>
A113: <NumbLateralRestraints>0</NumbLateralRestraints>
A114: <Angle_profile>0</Angle_profile>
A115: <Profile_number>2</Profile_number>
A116: </Beams>
A117: <LoadCases>
A118: <Number>1</Number>
A119: <Description>Permanent</Description>
A120: <Type>0</Type>
A121: <psi0>1</psi0>
A122: <psi1>1</psi1>
A123: <psi2>1</psi2>
A124: <Number>2</Number>
A125: <Description>Veranderlijk</Description>
A126: <Type>1</Type>
A127: <psi0>0,4</psi0>
A128: <psi1>0,5</psi1>
A129: <psi2>0,3</psi2>
A130: </LoadCases>
A131: <BeamLoads>
A132: <LoadCaseNumber>1</LoadCaseNumber>
A133: <BeamNumber>3</BeamNumber>
A134: <Description/>
A135: <Type>1</Type>
A136: <Load1>-3</Load1>
A137: <Load2>-3</Load2>
A138: <a>0</a>
A139: <bL>False</bL>
A140: <L>6000</L>
A141: <angle>0</angle>
A142: </BeamLoads>
A143: <Combinations>
A144: <LoadCombinationNumber>1</LoadCombinationNumber>
A145: <Description>Combinatie1 (6.10a)</Description>
A146: <CombTyp>0</CombTyp>
A147: <Case>1</Case>
A148: <Psi>1</Psi>
A149: <Gamma>1,35</Gamma>
A150: <Case>2</Case>
A151: <Psi>0,4</Psi>
A152: <Gamma>1,5</Gamma>
A153: <LoadCombinationNumber>2</LoadCombinationNumber>
A154: <Description>Combinatie2 (6.10b)</Description>
A155: <CombTyp>0</CombTyp>
A156: <Case>1</Case>
A157: <Psi>1</Psi>
A158: <Gamma>1,2</Gamma>
A159: <Case>2</Case>
A160: <Psi>1</Psi>
A161: <Gamma>1,5</Gamma>
A162: <LoadCombinationNumber>3</LoadCombinationNumber>
A163: <Description>BGT Blijvend</Description>
A164: <CombTyp>4</CombTyp>
A165: <Case>1</Case>
A166: <Psi>1</Psi>
A167: <Gamma>1</Gamma>
A168: <LoadCombinationNumber>4</LoadCombinationNumber>
A169: <Description>BGT Quasi blijvend</Description>
A170: <CombTyp>2</CombTyp>
A171: <Case>1</Case>
A172: <Psi>1</Psi>
A173: <Gamma>1</Gamma>
A174: <Case>2</Case>
A175: <Psi>0,3</Psi>
A176: <Gamma>1</Gamma>
A177: <LoadCombinationNumber>5</LoadCombinationNumber>
A178: <Description>Combinatie</Description>
A179: <CombTyp>3</CombTyp>
A180: <Case>1</Case>
A181: <Psi>1</Psi>
A182: <Gamma>1</Gamma>
A183: <Case>2</Case>
A184: <Psi>1</Psi>
A185: <Gamma>1</Gamma>
A186: </Combinations>
A187: </Frame>

Sheet XML-FILES

Sheet S3_XML
A1: <Frame>
A2: ="<ProjectName>" & INHOUD!C13 & "</ProjectName>" -> <ProjectName>Test project</ProjectName>
A3: ="<ProjectNumber>" & INHOUD!C12 & "</ProjectNumber>" -> <ProjectNumber>0</ProjectNumber>
A4: ="<ConsequenceClass>"& INHOUD!C14 & "</ConsequenceClass>" -> <ConsequenceClass>CC2</ConsequenceClass>
A5: <DesignWorkingLife>50</DesignWorkingLife>
A6: <ExportDateTime>2024-05-23 21:22:57Z</ExportDateTime>
A7: <XMLExportVersion>v4.0.30319</XMLExportVersion>
A8: <Nodes>
A9: <Number>1</Number>
A10: <X>0</X>
A11: <Y>0</Y>
A12: <Z>0</Z>
A13: <Number>2</Number>
A14: <X>0</X>
A15: ='S3'!S9 -> <Y>1500</Y>
A16: <Z>0</Z>
A17: <Number>3</Number>
A18: <X>0</X>
A19: ='S3'!S15 -> <Y>1900</Y>
A20: <Z>0</Z>
A21: <Number>4</Number>
A22: <X>0</X>
A23: ='S3'!S31 -> <Y>8000</Y>
A24: <Z>0</Z>
A25: <Number>5</Number>
A26: ='S3'!R12 -> <X>2000</X>
A27: <Y>0</Y>
A28: <Z>0</Z>
A29: <Number>115</Number>
A30: =A26 -> <X>2000</X>
A31: =A23 -> <Y>8000</Y>
A32: <Z>0</Z>
A33: <Number>230</Number>
A34: ='S3'!R14 -> <X>2150</X>
A35: <Y>0</Y>
A36: <Z>0</Z>
A37: <Number>250</Number>
A38: =A34 -> <X>2150</X>
A39: ='S3'!S20 -> <Y>1500</Y>
A40: <Z>0</Z>
A41: <Number>254</Number>
A42: =A38 -> <X>2150</X>
A43: ='S3'!S21 -> <Y>1900</Y>
A44: <Z>0</Z>
A45: <Number>350</Number>
A46: =A42 -> <X>2150</X>
A47: =A31 -> <Y>8000</Y>
A48: <Z>0</Z>
A49: <Number>465</Number>
A50: ='S3'!R19 -> <X>2300</X>
A51: <Y>0</Y>
A52: <Z>0</Z>
A53: <Number>575</Number>
A54: =A50 -> <X>2300</X>
A55: ='S3'!S25 -> <Y>8000</Y>
A56: <Z>0</Z>
A57: <Number>690</Number>
A58: =A46 -> <X>2150</X>
A59: =A39 -> <Y>1500</Y>
A60: ='S3'!T20 -> <Z>100</Z>
A61: <Number>692</Number>
A62: =A58 -> <X>2150</X>
A63: ='S3'!S15 -> <Y>1900</Y>
A64: =A60 -> <Z>100</Z>
A65: <Number>820</Number>
A66: =A62 -> <X>2150</X>
A67: =A59 -> <Y>1500</Y>
A68: ='S3'!T22 -> <Z>200</Z>
A69: <Number>821</Number>
A70: =A66 -> <X>2150</X>
A71: =A63 -> <Y>1900</Y>
A72: =A68 -> <Z>200</Z>
A73: <Number>938</Number>
A74: ='S3'!R12 -> <X>2000</X>
A75: <Y>0</Y>
A76: ='S3'!T28 -> <Z>300</Z>
A77: <Number>1048</Number>
A78: =A74 -> <X>2000</X>
A79: =A55 -> <Y>8000</Y>
A80: =A76 -> <Z>300</Z>
A81: <Number>1163</Number>
A82: =A70 -> <X>2150</X>
A83: <Y>0</Y>
A84: =A80 -> <Z>300</Z>
A85: <Number>1183</Number>
A86: =A82 -> <X>2150</X>
A87: =A67 -> <Y>1500</Y>
A88: =A84 -> <Z>300</Z>
A89: <Number>1187</Number>
A90: =A86 -> <X>2150</X>
A91: =A71 -> <Y>1900</Y>
A92: =A88 -> <Z>300</Z>
A93: <Number>1283</Number>
A94: =A86 -> <X>2150</X>
A95: =A79 -> <Y>8000</Y>
A96: =A92 -> <Z>300</Z>
A97: <Number>1398</Number>
A98: ='S3'!R31 -> <X>2300</X>
A99: <Y>0</Y>
A100: =A96 -> <Z>300</Z>
A101: <Number>1508</Number>
A102: =A98 -> <X>2300</X>
A103: =A79 -> <Y>8000</Y>
A104: =A80 -> <Z>300</Z>
A105: </Nodes>
A106: <Supports>
A107: <Number>1</Number>
A108: <Nodenumber>1</Nodenumber>
A109: <Tx>A</Tx>
A110: <Ty>A</Ty>
A111: <Tz>A</Tz>
A112: <Rx> </Rx>
A113: <Ry> </Ry>
A114: <Rz> </Rz>
A115: <Kx>0</Kx>
A116: <Ky>0</Ky>
A117: <Kz>0</Kz>
A118: <Cx>0</Cx>
A119: <Cy>0</Cy>
A120: <Cz>0</Cz>
A121: <dx>0</dx>
A122: <dy>0</dy>
A123: <dz>0</dz>
A124: <Number>2</Number>
A125: <Nodenumber>4</Nodenumber>
A126: <Tx>A</Tx>
A127: <Ty>A</Ty>
A128: <Tz>A</Tz>
A129: <Rx> </Rx>
A130: <Ry> </Ry>
A131: <Rz> </Rz>
A132: <Kx>0</Kx>
A133: <Ky>0</Ky>
A134: <Kz>0</Kz>
A135: <Cx>0</Cx>
A136: <Cy>0</Cy>
A137: <Cz>0</Cz>
A138: <dx>0</dx>
A139: <dy>0</dy>
A140: <dz>0</dz>
A141: <Number>3</Number>
A142: <Nodenumber>5</Nodenumber>
A143: <Tx>A</Tx>
A144: <Ty>A</Ty>
A145: <Tz>A</Tz>
A146: <Rx> </Rx>
A147: <Ry> </Ry>
A148: <Rz> </Rz>
A149: <Kx>0</Kx>
A150: <Ky>0</Ky>
A151: <Kz>0</Kz>
A152: <Cx>0</Cx>
A153: <Cy>0</Cy>
A154: <Cz>0</Cz>
A155: <dx>0</dx>
A156: <dy>0</dy>
A157: <dz>0</dz>
A158: <Number>4</Number>
A159: <Nodenumber>115</Nodenumber>
A160: <Tx> </Tx>
A161: <Ty> </Ty>
A162: <Tz>A</Tz>
A163: <Rx> </Rx>
A164: <Ry> </Ry>
A165: <Rz> </Rz>
A166: <Kx>0</Kx>
A167: <Ky>0</Ky>
A168: <Kz>0</Kz>
A169: <Cx>0</Cx>
A170: <Cy>0</Cy>
A171: <Cz>0</Cz>
A172: <dx>0</dx>
A173: <dy>0</dy>
A174: <dz>0</dz>
A175: <Number>5</Number>
A176: <Nodenumber>230</Nodenumber>
A177: <Tx> </Tx>
A178: <Ty> </Ty>
A179: <Tz>A</Tz>
A180: <Rx> </Rx>
A181: <Ry> </Ry>
A182: <Rz> </Rz>
A183: <Kx>0</Kx>
A184: <Ky>0</Ky>
A185: <Kz>0</Kz>
A186: <Cx>0</Cx>
A187: <Cy>0</Cy>
A188: <Cz>0</Cz>
A189: <dx>0</dx>
A190: <dy>0</dy>
A191: <dz>0</dz>
A192: <Number>6</Number>
A193: <Nodenumber>350</Nodenumber>
A194: <Tx> </Tx>
A195: <Ty> </Ty>
A196: <Tz>A</Tz>
A197: <Rx> </Rx>
A198: <Ry> </Ry>
A199: <Rz> </Rz>
A200: <Kx>0</Kx>
... 473 more rows

Sheet WA_XML (hidden)
A1: <Frame>
A2: ="<ProjectName>" & INHOUD!C13 & "</ProjectName>" -> <ProjectName>Test project</ProjectName>
A3: ="<ProjectNumber>" & INHOUD!C12 & "</ProjectNumber>" -> <ProjectNumber>0</ProjectNumber>
A4: ="<ConsequenceClass>"& INHOUD!C14 & "</ConsequenceClass>" -> <ConsequenceClass>CC2</ConsequenceClass>
A5: <DesignWorkingLife>50</DesignWorkingLife>
A6: <ExportDateTime>2024-05-23 22:02:27Z</ExportDateTime>
A7: <XMLExportVersion>v4.0.30319</XMLExportVersion>
A8: <Nodes>
A9: <Number>1</Number>
A10: <X>0</X>
A11: <Y>0</Y>
A12: <Z>0</Z>
A13: <Number>2</Number>
A14: <X>0</X>
A15: =WA!R10 -> <Y>15000</Y>
A16: <Z>0</Z>
A17: <Number>17</Number>
A18: =WA!Q7 -> <X>5400</X>
A19: <Y>0</Y>
A20: <Z>0</Z>
A21: <Number>18</Number>
A22: =A18 -> <X>5400</X>
A23: =A15 -> <Y>15000</Y>
A24: <Z>0</Z>
A25: <Number>33</Number>
A26: =WA!Q8 -> <X>10800</X>
A27: <Y>0</Y>
A28: <Z>0</Z>
A29: <Number>34</Number>
A30: =A26 -> <X>10800</X>
A31: =A23 -> <Y>15000</Y>
A32: <Z>0</Z>
A33: <Number>49</Number>
A34: =WA!Q9 -> <X>16200</X>
A35: <Y>0</Y>
A36: <Z>0</Z>
A37: <Number>50</Number>
A38: =A34 -> <X>16200</X>
A39: =A31 -> <Y>15000</Y>
A40: <Z>0</Z>
A41: <Number>350</Number>
A42: <X>0</X>
A43: =WA!R9 -> <Y>11250</Y>
A44: =WA!S8 -> <Z>40</Z>
A45: <Number>360</Number>
A46: =A22 -> <X>5400</X>
A47: =A43 -> <Y>11250</Y>
A48: =A44 -> <Z>40</Z>
A49: <Number>370</Number>
A50: =WA!Q8 -> <X>10800</X>
A51: =A47 -> <Y>11250</Y>
A52: =A48 -> <Z>40</Z>
A53: <Number>380</Number>
A54: =WA!Q9 -> <X>16200</X>
A55: =A51 -> <Y>11250</Y>
A56: =A52 -> <Z>40</Z>
A57: <Number>381</Number>
A58: <X>0</X>
A59: =WA!R7 -> <Y>3750</Y>
A60: =A56 -> <Z>40</Z>
A61: <Number>389</Number>
A62: =WA!Q7 -> <X>5400</X>
A63: =A59 -> <Y>3750</Y>
A64: =A60 -> <Z>40</Z>
A65: <Number>397</Number>
A66: =A50 -> <X>10800</X>
A67: =A63 -> <Y>3750</Y>
A68: =A64 -> <Z>40</Z>
A69: <Number>405</Number>
A70: =WA!Q9 -> <X>16200</X>
A71: =WA!R7 -> <Y>3750</Y>
A72: =A68 -> <Z>40</Z>
A73: <Number>703</Number>
A74: <X>0</X>
A75: =WA!R8 -> <Y>7500</Y>
A76: =WA!S9 -> <Z>80</Z>
A77: <Number>711</Number>
A78: =WA!Q7 -> <X>5400</X>
A79: =A75 -> <Y>7500</Y>
A80: =A76 -> <Z>80</Z>
A81: <Number>719</Number>
A82: =A66 -> <X>10800</X>
A83: =A75 -> <Y>7500</Y>
A84: =A80 -> <Z>80</Z>
A85: <Number>727</Number>
A86: =WA!Q9 -> <X>16200</X>
A87: =A83 -> <Y>7500</Y>
A88: =A84 -> <Z>80</Z>
A89: </Nodes>
A90: <Supports>
A91: <Number>1</Number>
A92: <Nodenumber>1</Nodenumber>
A93: <Tx> </Tx>
A94: <Ty> </Ty>
A95: <Tz>A</Tz>
A96: <Rx> </Rx>
A97: <Ry> </Ry>
A98: <Rz> </Rz>
A99: <Kx>0</Kx>
A100: <Ky>0</Ky>
A101: <Kz>0</Kz>
A102: <Cx>0</Cx>
A103: <Cy>0</Cy>
A104: <Cz>0</Cz>
A105: <dx>0</dx>
A106: <dy>0</dy>
A107: <dz>0</dz>
A108: <Number>2</Number>
A109: <Nodenumber>2</Nodenumber>
A110: <Tx> </Tx>
A111: <Ty> </Ty>
A112: <Tz>A</Tz>
A113: <Rx> </Rx>
A114: <Ry> </Ry>
A115: <Rz> </Rz>
A116: <Kx>0</Kx>
A117: <Ky>0</Ky>
A118: <Kz>0</Kz>
A119: <Cx>0</Cx>
A120: <Cy>0</Cy>
A121: <Cz>0</Cz>
A122: <dx>0</dx>
A123: <dy>0</dy>
A124: <dz>0</dz>
A125: <Number>3</Number>
A126: <Nodenumber>17</Nodenumber>
A127: <Tx> </Tx>
A128: <Ty> </Ty>
A129: <Tz>A</Tz>
A130: <Rx> </Rx>
A131: <Ry> </Ry>
A132: <Rz> </Rz>
A133: <Kx>0</Kx>
A134: <Ky>0</Ky>
A135: <Kz>0</Kz>
A136: <Cx>0</Cx>
A137: <Cy>0</Cy>
A138: <Cz>0</Cz>
A139: <dx>0</dx>
A140: <dy>0</dy>
A141: <dz>0</dz>
A142: <Number>4</Number>
A143: <Nodenumber>18</Nodenumber>
A144: <Tx> </Tx>
A145: <Ty> </Ty>
A146: <Tz>A</Tz>
A147: <Rx> </Rx>
A148: <Ry> </Ry>
A149: <Rz> </Rz>
A150: <Kx>0</Kx>
A151: <Ky>0</Ky>
A152: <Kz>0</Kz>
A153: <Cx>0</Cx>
A154: <Cy>0</Cy>
A155: <Cz>0</Cz>
A156: <dx>0</dx>
A157: <dy>0</dy>
A158: <dz>0</dz>
A159: <Number>5</Number>
A160: <Nodenumber>33</Nodenumber>
A161: <Tx> </Tx>
A162: <Ty> </Ty>
A163: <Tz>A</Tz>
A164: <Rx> </Rx>
A165: <Ry> </Ry>
A166: <Rz> </Rz>
A167: <Kx>0</Kx>
A168: <Ky>0</Ky>
A169: <Kz>0</Kz>
A170: <Cx>0</Cx>
A171: <Cy>0</Cy>
A172: <Cz>0</Cz>
A173: <dx>0</dx>
A174: <dy>0</dy>
A175: <dz>0</dz>
A176: <Number>6</Number>
A177: <Nodenumber>34</Nodenumber>
A178: <Tx> </Tx>
A179: <Ty> </Ty>
A180: <Tz>A</Tz>
A181: <Rx> </Rx>
A182: <Ry> </Ry>
A183: <Rz> </Rz>
A184: <Kx>0</Kx>
A185: <Ky>0</Ky>
A186: <Kz>0</Kz>
A187: <Cx>0</Cx>
A188: <Cy>0</Cy>
A189: <Cz>0</Cz>
A190: <dx>0</dx>
A191: <dy>0</dy>
A192: <dz>0</dz>
A193: <Number>7</Number>
A194: <Nodenumber>49</Nodenumber>
A195: <Tx>A</Tx>
A196: <Ty> </Ty>
A197: <Tz>A</Tz>
A198: <Rx> </Rx>
A199: <Ry> </Ry>
A200: <Rz> </Rz>
... 692 more rows

Sheet RAV1_XML (hidden)
A1: <Frame>
A2: ="<ProjectName>" & INHOUD!C13 & "</ProjectName>" -> <ProjectName>Test project</ProjectName>
A3: ="<ProjectNumber>" & INHOUD!C12 & "</ProjectNumber>" -> <ProjectNumber>0</ProjectNumber>
A4: ="<ConsequenceClass>"& INHOUD!C14 & "</ConsequenceClass>" -> <ConsequenceClass>CC2</ConsequenceClass>
A5: <DesignWorkingLife>50</DesignWorkingLife>
A6: <ExportDateTime>2024-05-23 11:15:25Z</ExportDateTime>
A7: <XMLExportVersion>v4.0.30319</XMLExportVersion>
A8: <Nodes>
A9: <Number>1</Number>
A10: <X>0</X>
A11: <Y>0</Y>
A12: <Z>0</Z>
A13: <Number>2</Number>
A14: <X>0</X>
A15: ='RAV1'!S9 -> <Y>5000</Y>
A16: <Z>0</Z>
A17: <Number>3</Number>
A18: ='RAV1'!R7 -> <X>610</X>
A19: <Y>0</Y>
A20: <Z>0</Z>
A21: <Number>4</Number>
A22: =A18 -> <X>610</X>
A23: ='RAV1'!S7 -> <Y>500</Y>
A24: <Z>0</Z>
A25: <Number>5</Number>
A26: =A22 -> <X>610</X>
A27: ='RAV1'!S8 -> <Y>3000</Y>
A28: <Z>0</Z>
A29: <Number>6</Number>
A30: =A26 -> <X>610</X>
A31: <Y>5000</Y>
A32: <Z>0</Z>
A33: <Number>7</Number>
A34: ='RAV1'!R9 -> <X>2610</X>
A35: <Y>0</Y>
A36: <Z>0</Z>
A37: <Number>8</Number>
A38: =A34 -> <X>2610</X>
A39: =A23 -> <Y>500</Y>
A40: <Z>0</Z>
A41: <Number>9</Number>
A42: =A34 -> <X>2610</X>
A43: =A27 -> <Y>3000</Y>
A44: <Z>0</Z>
A45: <Number>10</Number>
A46: =A38 -> <X>2610</X>
A47: =A15 -> <Y>5000</Y>
A48: <Z>0</Z>
A49: <Number>11</Number>
A50: ='RAV1'!R10 -> <X>3220</X>
A51: <Y>0</Y>
A52: <Z>0</Z>
A53: <Number>12</Number>
A54: =A50 -> <X>3220</X>
A55: =A47 -> <Y>5000</Y>
A56: <Z>0</Z>
A57: <Number>13</Number>
A58: ='RAV1'!R8 -> <X>1610</X>
A59: =A43 -> <Y>3000</Y>
A60: <Z>0</Z>
A61: <Number>14</Number>
A62: =A58 -> <X>1610</X>
A63: =A55 -> <Y>5000</Y>
A64: <Z>0</Z>
A65: <Number>15</Number>
A66: =A62 -> <X>1610</X>
A67: <Y>0</Y>
A68: <Z>0</Z>
A69: <Number>16</Number>
A70: =A66 -> <X>1610</X>
A71: =A39 -> <Y>500</Y>
A72: <Z>0</Z>
A73: </Nodes>
A74: <Supports>
A75: <Number>1</Number>
A76: <Nodenumber>1</Nodenumber>
A77: <Tx>A</Tx>
A78: <Ty>A</Ty>
A79: <Tz>A</Tz>
A80: <Rx> </Rx>
A81: <Ry> </Ry>
A82: <Rz> </Rz>
A83: <Kx>0</Kx>
A84: <Ky>0</Ky>
A85: <Kz>0</Kz>
A86: <Cx>0</Cx>
A87: <Cy>0</Cy>
A88: <Cz>0</Cz>
A89: <dx>0</dx>
A90: <dy>0</dy>
A91: <dz>0</dz>
A92: <Number>2</Number>
A93: <Nodenumber>2</Nodenumber>
A94: <Tx> </Tx>
A95: <Ty> </Ty>
A96: <Tz>A</Tz>
A97: <Rx> </Rx>
A98: <Ry> </Ry>
A99: <Rz> </Rz>
A100: <Kx>0</Kx>
A101: <Ky>0</Ky>
A102: <Kz>0</Kz>
A103: <Cx>0</Cx>
A104: <Cy>0</Cy>
A105: <Cz>0</Cz>
A106: <dx>0</dx>
A107: <dy>0</dy>
A108: <dz>0</dz>
A109: <Number>3</Number>
A110: <Nodenumber>3</Nodenumber>
A111: <Tx> </Tx>
A112: <Ty>A</Ty>
A113: <Tz>A</Tz>
A114: <Rx> </Rx>
A115: <Ry> </Ry>
A116: <Rz> </Rz>
A117: <Kx>0</Kx>
A118: <Ky>0</Ky>
A119: <Kz>0</Kz>
A120: <Cx>0</Cx>
A121: <Cy>0</Cy>
A122: <Cz>0</Cz>
A123: <dx>0</dx>
A124: <dy>0</dy>
A125: <dz>0</dz>
A126: <Number>4</Number>
A127: <Nodenumber>6</Nodenumber>
A128: <Tx> </Tx>
A129: <Ty> </Ty>
A130: <Tz>A</Tz>
A131: <Rx> </Rx>
A132: <Ry> </Ry>
A133: <Rz> </Rz>
A134: <Kx>0</Kx>
A135: <Ky>0</Ky>
A136: <Kz>0</Kz>
A137: <Cx>0</Cx>
A138: <Cy>0</Cy>
A139: <Cz>0</Cz>
A140: <dx>0</dx>
A141: <dy>0</dy>
A142: <dz>0</dz>
A143: <Number>5</Number>
A144: <Nodenumber>7</Nodenumber>
A145: <Tx> </Tx>
A146: <Ty>A</Ty>
A147: <Tz>A</Tz>
A148: <Rx> </Rx>
A149: <Ry> </Ry>
A150: <Rz> </Rz>
A151: <Kx>0</Kx>
A152: <Ky>0</Ky>
A153: <Kz>0</Kz>
A154: <Cx>0</Cx>
A155: <Cy>0</Cy>
A156: <Cz>0</Cz>
A157: <dx>0</dx>
A158: <dy>0</dy>
A159: <dz>0</dz>
A160: <Number>6</Number>
A161: <Nodenumber>10</Nodenumber>
A162: <Tx> </Tx>
A163: <Ty> </Ty>
A164: <Tz>A</Tz>
A165: <Rx> </Rx>
A166: <Ry> </Ry>
A167: <Rz> </Rz>
A168: <Kx>0</Kx>
A169: <Ky>0</Ky>
A170: <Kz>0</Kz>
A171: <Cx>0</Cx>
A172: <Cy>0</Cy>
A173: <Cz>0</Cz>
A174: <dx>0</dx>
A175: <dy>0</dy>
A176: <dz>0</dz>
A177: <Number>7</Number>
A178: <Nodenumber>11</Nodenumber>
A179: <Tx> </Tx>
A180: <Ty>A</Ty>
A181: <Tz>A</Tz>
A182: <Rx> </Rx>
A183: <Ry> </Ry>
A184: <Rz> </Rz>
A185: <Kx>0</Kx>
A186: <Ky>0</Ky>
A187: <Kz>0</Kz>
A188: <Cx>0</Cx>
A189: <Cy>0</Cy>
A190: <Cz>0</Cz>
A191: <dx>0</dx>
A192: <dy>0</dy>
A193: <dz>0</dz>
A194: <Number>8</Number>
A195: <Nodenumber>12</Nodenumber>
A196: <Tx> </Tx>
A197: <Ty> </Ty>
A198: <Tz>A</Tz>
A199: <Rx> </Rx>
A200: <Ry> </Ry>
... 399 more rows

Sheet RAV2_XML (hidden)
A1: <Frame>
A2: ="<ProjectName>" & INHOUD!C13 & "</ProjectName>" -> <ProjectName>Test project</ProjectName>
A3: ="<ProjectNumber>" & INHOUD!C12 & "</ProjectNumber>" -> <ProjectNumber>0</ProjectNumber>
A4: ="<ConsequenceClass>"& INHOUD!C14 & "</ConsequenceClass>" -> <ConsequenceClass>CC2</ConsequenceClass>
A5: <DesignWorkingLife>50</DesignWorkingLife>
A6: <ExportDateTime>2024-05-30 09:59:07Z</ExportDateTime>
A7: <XMLExportVersion>v4.0.30319</XMLExportVersion>
A8: <Nodes>
A9: <Number>1</Number>
A10: <X>0</X>
A11: <Z>0</Z>
A12: <Number>2</Number>
A13: ='RAV2'!R8 -> <X>1000</X>
A14: <Z>0</Z>
A15: <Number>4</Number>
A16: =A13 -> <X>1000</X>
A17: <Z>1000</Z>
A18: <Number>5</Number>
A19: ='RAV2'!R9 -> <X>3000</X>
A20: <Z>1000</Z>
A21: <Number>6</Number>
A22: ='RAV2'!R7 -> <X>4200</X>
A23: <Z>0</Z>
A24: </Nodes>
A25: <Supports>
A26: <Number>1</Number>
A27: <Nodenumber>1</Nodenumber>
A28: <Tx>A</Tx>
A29: <Tz>A</Tz>
A30: <Ry> </Ry>
A31: <Kx>0</Kx>
A32: <Kz>0</Kz>
A33: <Cy>0</Cy>
A34: <dx>1000</dx>
A35: <dz>0</dz>
A36: <Number>2</Number>
A37: <Nodenumber>5</Nodenumber>
A38: <Tx>A</Tx>
A39: <Tz>A</Tz>
A40: <Ry> </Ry>
A41: <Kx>0</Kx>
A42: <Kz>0</Kz>
A43: <Cy>0</Cy>
A44: <dx>1000</dx>
A45: <dz>0</dz>
A46: <Number>3</Number>
A47: <Nodenumber>6</Nodenumber>
A48: <Tx> </Tx>
A49: <Tz>A</Tz>
A50: <Ry> </Ry>
A51: <Kx>0</Kx>
A52: <Kz>0</Kz>
A53: <Cy>0</Cy>
A54: <dx>1000</dx>
A55: <dz>0</dz>
A56: </Supports>
A57: <Grids>
A58: ='RAV2'!R20 -> <X>0 4200</X>
A59: <X_Lable>
A60: A B C D E F G H I J K L M N O P Q R S T U V W X Y Z
A61: </X_Lable>
A62: <Z>0</Z>
A63: <Z_Lable/>
A64: </Grids>
A65: <Profiles>
A66: <Number>1</Number>
A67: ='RAV2'!T14 -> <Profile_name>80 x 200</Profile_name>
A68: <Material_type>2</Material_type>
A69: ='RAV2'!T15 -> <Material>C24</Material>
A70: <Angle>0</Angle>
A71: <ServiceClass>0</ServiceClass>
A72: <Profile_shape>6</Profile_shape>
A73: ='RAV2'!R15 -> <h>200</h>
A74: ='RAV2'!R14 -> <b>80</b>
A75: <tf>200</tf>
A76: <tw>10</tw>
A77: <r1>0</r1>
A78: <r2>20</r2>
A79: <slope>0</slope>
A80: <Number>2</Number>
A81: ='RAV2'!T17 -> <Profile_name>160 x 200</Profile_name>
A82: <Material_type>2</Material_type>
A83: ='RAV2'!T18 -> <Material>C24</Material>
A84: <Angle>0</Angle>
A85: <ServiceClass>0</ServiceClass>
A86: <Profile_shape>6</Profile_shape>
A87: ='RAV2'!R18 -> <h>200</h>
A88: ='RAV2'!R17 -> <b>160</b>
A89: <tf>200</tf>
A90: <tw>10</tw>
A91: <r1>0</r1>
A92: <r2>20</r2>
A93: <slope>0</slope>
A94: </Profiles>
A95: <Beamgroup>
A96: <Number>1</Number>
A97: <Startnode>2</Startnode>
A98: <Endnode>4</Endnode>
A99: <Number>2</Number>
A100: <Startnode>4</Startnode>
A101: <Endnode>5</Endnode>
A102: <Number>3</Number>
A103: <Startnode>1</Startnode>
A104: <Endnode>2</Endnode>
A105: <Number>4</Number>
A106: <Startnode>1</Startnode>
A107: <Endnode>6</Endnode>
A108: </Beamgroup>
A109: <Beams>
A110: <Number>2</Number>
A111: <Beamgroupnumber>1</Beamgroupnumber>
A112: <From_node_number>2</From_node_number>
A113: <To_node_number>4</To_node_number>
A114: <Type>3</Type>
A115: <TypeLoad>0</TypeLoad>
A116: <NumbLateralRestraints>0</NumbLateralRestraints>
A117: <Angle_profile>0</Angle_profile>
A118: <Profile_number>1</Profile_number>
A119: <Number>3</Number>
A120: <Beamgroupnumber>2</Beamgroupnumber>
A121: <From_node_number>4</From_node_number>
A122: <To_node_number>5</To_node_number>
A123: <Type>1</Type>
A124: <TypeLoad>0</TypeLoad>
A125: <NumbLateralRestraints>0</NumbLateralRestraints>
A126: <Angle_profile>0</Angle_profile>
A127: <Profile_number>2</Profile_number>
A128: <Number>4</Number>
A129: <Beamgroupnumber>3</Beamgroupnumber>
A130: <From_node_number>1</From_node_number>
A131: <To_node_number>2</To_node_number>
A132: <Type>1</Type>
A133: <TypeLoad>0</TypeLoad>
A134: <NumbLateralRestraints>0</NumbLateralRestraints>
A135: <Angle_profile>0</Angle_profile>
A136: <Profile_number>1</Profile_number>
A137: <Number>5</Number>
A138: <Beamgroupnumber>4</Beamgroupnumber>
A139: <From_node_number>2</From_node_number>
A140: <To_node_number>6</To_node_number>
A141: <Type>1</Type>
A142: <TypeLoad>0</TypeLoad>
A143: <NumbLateralRestraints>0</NumbLateralRestraints>
A144: <Angle_profile>0</Angle_profile>
A145: <Profile_number>1</Profile_number>
A146: </Beams>
A147: <LoadCases>
A148: <Number>1</Number>
A149: <Description>Dead load</Description>
A150: <Type>0</Type>
A151: <psi0>1</psi0>
A152: <psi1>1</psi1>
A153: <psi2>1</psi2>
A154: <Number>2</Number>
A155: <Description>Live load</Description>
A156: <Type>1</Type>
A157: <psi0>0,4</psi0>
A158: <psi1>0,5</psi1>
A159: <psi2>0,3</psi2>
A160: </LoadCases>
A161: <BeamLoads>
A162: <LoadCaseNumber>1</LoadCaseNumber>
A163: <BeamNumber>4</BeamNumber>
A164: <Description/>
A165: <Type>1</Type>
A166: ='RAV2'!U23 -> <q1>-0,172325</q1>
A167: =A166 -> <q1>-0,172325</q1>
A168: <a>0</a>
A169: <bL>False</bL>
A170: ='RAV2'!R27 -> <L>1000</L>
A171: <angle>0</angle>
A172: <LoadCaseNumber>1</LoadCaseNumber>
A173: <BeamNumber>5</BeamNumber>
A174: <Description/>
A175: <Type>1</Type>
A176: ='RAV2'!U24 -> <q1>-0,34465</q1>
A177: =A176 -> <q1>-0,34465</q1>
A178: <a>0</a>
A179: <bL>False</bL>
A180: ='RAV2'!R28 -> <L>3200</L>
A181: <angle>0</angle>
A182: <LoadCaseNumber>1</LoadCaseNumber>
A183: <BeamNumber>3</BeamNumber>
A184: <Description/>
A185: <Type>1</Type>
A186: ='RAV2'!U25 -> <q1>-0,904</q1>
A187: =A186 -> <q1>-0,904</q1>
A188: <a>0</a>
A189: <bL>False</bL>
A190: ='RAV2'!R29 -> <L>2000</L>
A191: <angle>0</angle>
A192: <LoadCaseNumber>2</LoadCaseNumber>
A193: <BeamNumber>4</BeamNumber>
A194: <Description/>
A195: <Type>1</Type>
A196: ='RAV2'!V23 -> <q1>-0,77775</q1>
A197: =A196 -> <q1>-0,77775</q1>
A198: <a>0</a>
A199: <bL>False</bL>
A200: =A170 -> <L>1000</L>
... 67 more rows

Sheet B1_XML (hidden)
A1: <Frame>
A2: ="<ProjectName>" & INHOUD!C13 & "</ProjectName>" -> <ProjectName>Test project</ProjectName>
A3: ="<ProjectNumber>" & INHOUD!C12 & "</ProjectNumber>" -> <ProjectNumber>0</ProjectNumber>
A4: ="<ConsequenceClass>"& INHOUD!C14 & "</ConsequenceClass>" -> <ConsequenceClass>CC2</ConsequenceClass>
A5: <DesignWorkingLife>50</DesignWorkingLife>
A6: <ExportDateTime>2023-12-02 22:04:05Z</ExportDateTime>
A7: <XMLExportVersion>v4.0.30319</XMLExportVersion>
A8: <Nodes>
A9: <Number>1</Number>
A10: <X>0</X>
A11: <Y>0</Y>
A12: <Z>0</Z>
A13: <Number>3</Number>
A14: <X>0</X>
A15: ='B1'!U9 -> <Y>1000</Y>
A16: <Z>0</Z>
A17: <Number>89</Number>
A18: <X>0</X>
A19: ='B1'!U22 -> <Y>13500</Y>
A20: <Z>0</Z>
A21: <Number>312</Number>
A22: ='B1'!S9 -> <X>500</X>
A23: ='B1'!U9 -> <Y>1000</Y>
A24: <Z>0</Z>
A25: <Number>318</Number>
A26: =A22 -> <X>500</X>
A27: ='B1'!U11 -> <Y>2000</Y>
A28: <Z>0</Z>
A29: <Number>330</Number>
A30: =A26 -> <X>500</X>
A31: ='B1'!U12 -> <Y>4000</Y>
A32: <Z>0</Z>
A33: <Number>336</Number>
A34: =A30 -> <X>500</X>
A35: ='B1'!U14 -> <Y>5000</Y>
A36: <Z>0</Z>
A37: <Number>348</Number>
A38: =A34 -> <X>500</X>
A39: ='B1'!U15 -> <Y>7000</Y>
A40: <Z>0</Z>
A41: <Number>354</Number>
A42: =A38 -> <X>500</X>
A43: ='B1'!U17 -> <Y>8000</Y>
A44: <Z>0</Z>
A45: <Number>366</Number>
A46: =A42 -> <X>500</X>
A47: ='B1'!U18 -> <Y>10000</Y>
A48: <Z>0</Z>
A49: <Number>372</Number>
A50: =A46 -> <X>500</X>
A51: ='B1'!U20 -> <Y>11000</Y>
A52: <Z>0</Z>
A53: <Number>382</Number>
A54: =A50 -> <X>500</X>
A55: <Y>12000</Y>
A56: <Z>0</Z>
A57: <Number>384</Number>
A58: =A50 -> <X>500</X>
A59: ='B1'!U21 -> <Y>13000</Y>
A60: <Z>0</Z>
A61: <Number>388</Number>
A62: =A58 -> <X>500</X>
A63: ='B1'!U22 -> <Y>13500</Y>
A64: <Z>0</Z>
A65: <Number>525</Number>
A66: ='B1'!S10 -> <X>1500</X>
A67: ='B1'!U10 -> <Y>1500</Y>
A68: <Z>0</Z>
A69: <Number>526</Number>
A70: =A66 -> <X>1500</X>
A71: ='B1'!U13 -> <Y>4500</Y>
A72: <Z>0</Z>
A73: <Number>527</Number>
A74: =A70 -> <X>1500</X>
A75: ='B1'!U16 -> <Y>7500</Y>
A76: <Z>0</Z>
A77: <Number>528</Number>
A78: =A74 -> <X>1500</X>
A79: ='B1'!U19 -> <Y>10500</Y>
A80: <Z>0</Z>
A81: <Number>530</Number>
A82: =A78 -> <X>1500</X>
A83: ='B1'!U22 -> <Y>13500</Y>
A84: <Z>0</Z>
A85: <Number>633</Number>
A86: <X>1336,2</X>
A87: <Y>12729,9</Y>
A88: <Z>0</Z>
A89: <Number>654</Number>
A90: ='B1'!S11 -> <X>2000</X>
A91: ='B1'!U9 -> <Y>1000</Y>
A92: <Z>0</Z>
A93: <Number>660</Number>
A94: ='B1'!S11 -> <X>2000</X>
A95: ='B1'!U11 -> <Y>2000</Y>
A96: <Z>0</Z>
A97: <Number>661</Number>
A98: ='B1'!S11 -> <X>2000</X>
A99: ='B1'!U12 -> <Y>4000</Y>
A100: <Z>0</Z>
A101: <Number>667</Number>
A102: ='B1'!S11 -> <X>2000</X>
A103: ='B1'!U14 -> <Y>5000</Y>
A104: <Z>0</Z>
A105: <Number>668</Number>
A106: ='B1'!S11 -> <X>2000</X>
A107: ='B1'!U15 -> <Y>7000</Y>
A108: <Z>0</Z>
A109: <Number>674</Number>
A110: ='B1'!S11 -> <X>2000</X>
A111: ='B1'!U17 -> <Y>8000</Y>
A112: <Z>0</Z>
A113: <Number>675</Number>
A114: ='B1'!S11 -> <X>2000</X>
A115: ='B1'!U18 -> <Y>10000</Y>
A116: <Z>0</Z>
A117: <Number>681</Number>
A118: ='B1'!S11 -> <X>2000</X>
A119: ='B1'!U20 -> <Y>11000</Y>
A120: <Z>0</Z>
A121: <Number>682</Number>
A122: ='B1'!S11 -> <X>2000</X>
A123: ='B1'!U21 -> <Y>13000</Y>
A124: <Z>0</Z>
A125: <Number>686</Number>
A126: ='B1'!S11 -> <X>2000</X>
A127: ='B1'!U22 -> <Y>13500</Y>
A128: <Z>0</Z>
A129: <Number>902</Number>
A130: <X>2492,2</X>
A131: <Y>5655,6</Y>
A132: <Z>0</Z>
A133: <Number>1159</Number>
A134: ='B1'!S12 -> <X>4000</X>
A135: ='B1'!U9 -> <Y>1000</Y>
A136: <Z>0</Z>
A137: <Number>1165</Number>
A138: ='B1'!S12 -> <X>4000</X>
A139: ='B1'!U11 -> <Y>2000</Y>
A140: <Z>0</Z>
A141: <Number>1177</Number>
A142: ='B1'!S12 -> <X>4000</X>
A143: ='B1'!U12 -> <Y>4000</Y>
A144: <Z>0</Z>
A145: <Number>1183</Number>
A146: ='B1'!S12 -> <X>4000</X>
A147: ='B1'!U14 -> <Y>5000</Y>
A148: <Z>0</Z>
A149: <Number>1184</Number>
A150: ='B1'!S12 -> <X>4000</X>
A151: ='B1'!U15 -> <Y>7000</Y>
A152: <Z>0</Z>
A153: <Number>1190</Number>
A154: ='B1'!S12 -> <X>4000</X>
A155: ='B1'!U17 -> <Y>8000</Y>
A156: <Z>0</Z>
A157: <Number>1191</Number>
A158: ='B1'!S12 -> <X>4000</X>
A159: ='B1'!U18 -> <Y>10000</Y>
A160: <Z>0</Z>
A161: <Number>1197</Number>
A162: ='B1'!S12 -> <X>4000</X>
A163: ='B1'!U20 -> <Y>11000</Y>
A164: <Z>0</Z>
A165: <Number>1198</Number>
A166: ='B1'!S12 -> <X>4000</X>
A167: ='B1'!U21 -> <Y>13000</Y>
A168: <Z>0</Z>
A169: <Number>1202</Number>
A170: ='B1'!S12 -> <X>4000</X>
A171: ='B1'!U22 -> <Y>13500</Y>
A172: <Z>0</Z>
A173: <Number>1315</Number>
A174: ='B1'!S13 -> <X>4500</X>
A175: ='B1'!U10 -> <Y>1500</Y>
A176: <Z>0</Z>
A177: <Number>1333</Number>
A178: ='B1'!S13 -> <X>4500</X>
A179: ='B1'!U13 -> <Y>4500</Y>
A180: <Z>0</Z>
A181: <Number>1340</Number>
A182: ='B1'!S13 -> <X>4500</X>
A183: ='B1'!U16 -> <Y>7500</Y>
A184: <Z>0</Z>
A185: <Number>1347</Number>
A186: ='B1'!S13 -> <X>4500</X>
A187: ='B1'!U19 -> <Y>10500</Y>
A188: <Z>0</Z>
A189: <Number>1355</Number>
A190: ='B1'!S13 -> <X>4500</X>
A191: ='B1'!U22 -> <Y>13500</Y>
A192: <Z>0</Z>
A193: <Number>1461</Number>
A194: ='B1'!S14 -> <X>5000</X>
A195: ='B1'!U9 -> <Y>1000</Y>
A196: <Z>0</Z>
A197: <Number>1467</Number>
A198: ='B1'!S14 -> <X>5000</X>
A199: ='B1'!U11 -> <Y>2000</Y>
A200: <Z>0</Z>
... 2272 more rows

Sheet HSB1_XML (hidden)
A1: <Frame>
A2: ="<ProjectName>" & INHOUD!C13 & "</ProjectName>" -> <ProjectName>Test project</ProjectName>
A3: ="<ProjectNumber>" & INHOUD!C12 & "</ProjectNumber>" -> <ProjectNumber>0</ProjectNumber>
A4: ="<ConsequenceClass>"& INHOUD!C14 & "</ConsequenceClass>" -> <ConsequenceClass>CC2</ConsequenceClass>
A5: <DesignWorkingLife>50</DesignWorkingLife>
A6: <ExportDateTime>2024-05-17 22:37:09Z</ExportDateTime>
A7: <XMLExportVersion>v4.0.30319</XMLExportVersion>
A8: <Nodes>
A9: <Number>1</Number>
A10: <X>0</X>
A11: <Y>0</Y>
A12: <Z>0</Z>
A13: <Number>2</Number>
A14: ='HSB1'!S8 -> <X>610</X>
A15: <Y>0</Y>
A16: <Z>0</Z>
A17: <Number>3</Number>
A18: ='HSB1'!S9 -> <X>1220</X>
A19: <Y>0</Y>
A20: <Z>0</Z>
A21: <Number>4</Number>
A22: ='HSB1'!S10 -> <X>1970</X>
A23: <Y>0</Y>
A24: <Z>0</Z>
A25: <Number>5</Number>
A26: ='HSB1'!S11 -> <X>2720</X>
A27: <Y>0</Y>
A28: <Z>0</Z>
A29: <Number>6</Number>
A30: ='HSB1'!S12 -> <X>3330</X>
A31: <Y>0</Y>
A32: <Z>0</Z>
A33: <Number>7</Number>
A34: ='HSB1'!S13 -> <X>3940</X>
A35: <Y>0</Y>
A36: <Z>0</Z>
A37: <Number>8</Number>
A38: =A18 -> <X>1220</X>
A39: <Y>0</Y>
A40: ='HSB1'!T14 -> <Z>850</Z>
A41: <Number>9</Number>
A42: =A22 -> <X>1970</X>
A43: <Y>0</Y>
A44: =A40 -> <Z>850</Z>
A45: <Number>10</Number>
A46: =A26 -> <X>2720</X>
A47: <Y>0</Y>
A48: =A40 -> <Z>850</Z>
A49: <Number>11</Number>
A50: =A38 -> <X>1220</X>
A51: <Y>0</Y>
A52: ='HSB1'!T17 -> <Z>2100</Z>
A53: <Number>12</Number>
A54: =A42 -> <X>1970</X>
A55: <Y>0</Y>
A56: =A52 -> <Z>2100</Z>
A57: <Number>13</Number>
A58: =A46 -> <X>2720</X>
A59: <Y>0</Y>
A60: =A56 -> <Z>2100</Z>
A61: <Number>14</Number>
A62: <X>0</X>
A63: <Y>0</Y>
A64: ='HSB1'!T20 -> <Z>3000</Z>
A65: <Number>15</Number>
A66: =A14 -> <X>610</X>
A67: <Y>0</Y>
A68: =A64 -> <Z>3000</Z>
A69: <Number>16</Number>
A70: =A50 -> <X>1220</X>
A71: <Y>0</Y>
A72: =A68 -> <Z>3000</Z>
A73: <Number>17</Number>
A74: =A54 -> <X>1970</X>
A75: <Y>0</Y>
A76: =A72 -> <Z>3000</Z>
A77: <Number>18</Number>
A78: =A58 -> <X>2720</X>
A79: <Y>0</Y>
A80: =A76 -> <Z>3000</Z>
A81: <Number>19</Number>
A82: =A30 -> <X>3330</X>
A83: <Y>0</Y>
A84: =A80 -> <Z>3000</Z>
A85: <Number>20</Number>
A86: =A34 -> <X>3940</X>
A87: <Y>0</Y>
A88: =A84 -> <Z>3000</Z>
A89: </Nodes>
A90: <Supports>
A91: <Number>1</Number>
A92: <Nodenumber>1</Nodenumber>
A93: <Tx> </Tx>
A94: <Ty>A</Ty>
A95: <Tz>A</Tz>
A96: <Rx> </Rx>
A97: <Ry> </Ry>
A98: <Rz> </Rz>
A99: <Kx>0</Kx>
A100: <Ky>0</Ky>
A101: <Kz>0</Kz>
A102: <Cx>0</Cx>
A103: <Cy>0</Cy>
A104: <Cz>0</Cz>
A105: <dx>0</dx>
A106: <dy>0</dy>
A107: <dz>0</dz>
A108: <Number>2</Number>
A109: <Nodenumber>2</Nodenumber>
A110: <Tx> </Tx>
A111: <Ty>A</Ty>
A112: <Tz>A</Tz>
A113: <Rx> </Rx>
A114: <Ry> </Ry>
A115: <Rz> </Rz>
A116: <Kx>0</Kx>
A117: <Ky>0</Ky>
A118: <Kz>0</Kz>
A119: <Cx>0</Cx>
A120: <Cy>0</Cy>
A121: <Cz>0</Cz>
A122: <dx>0</dx>
A123: <dy>0</dy>
A124: <dz>0</dz>
A125: <Number>3</Number>
A126: <Nodenumber>3</Nodenumber>
A127: <Tx> </Tx>
A128: <Ty>A</Ty>
A129: <Tz>A</Tz>
A130: <Rx> </Rx>
A131: <Ry> </Ry>
A132: <Rz> </Rz>
A133: <Kx>0</Kx>
A134: <Ky>0</Ky>
A135: <Kz>0</Kz>
A136: <Cx>0</Cx>
A137: <Cy>0</Cy>
A138: <Cz>0</Cz>
A139: <dx>0</dx>
A140: <dy>0</dy>
A141: <dz>0</dz>
A142: <Number>4</Number>
A143: <Nodenumber>4</Nodenumber>
A144: <Tx> </Tx>
A145: <Ty>A</Ty>
A146: <Tz>A</Tz>
A147: <Rx> </Rx>
A148: <Ry> </Ry>
A149: <Rz> </Rz>
A150: <Kx>0</Kx>
A151: <Ky>0</Ky>
A152: <Kz>0</Kz>
A153: <Cx>0</Cx>
A154: <Cy>0</Cy>
A155: <Cz>0</Cz>
A156: <dx>0</dx>
A157: <dy>0</dy>
A158: <dz>0</dz>
A159: <Number>5</Number>
A160: <Nodenumber>5</Nodenumber>
A161: <Tx> </Tx>
A162: <Ty>A</Ty>
A163: <Tz>A</Tz>
A164: <Rx> </Rx>
A165: <Ry> </Ry>
A166: <Rz> </Rz>
A167: <Kx>0</Kx>
A168: <Ky>0</Ky>
A169: <Kz>0</Kz>
A170: <Cx>0</Cx>
A171: <Cy>0</Cy>
A172: <Cz>0</Cz>
A173: <dx>0</dx>
A174: <dy>0</dy>
A175: <dz>0</dz>
A176: <Number>6</Number>
A177: <Nodenumber>6</Nodenumber>
A178: <Tx> </Tx>
A179: <Ty>A</Ty>
A180: <Tz>A</Tz>
A181: <Rx> </Rx>
A182: <Ry> </Ry>
A183: <Rz> </Rz>
A184: <Kx>0</Kx>
A185: <Ky>0</Ky>
A186: <Kz>0</Kz>
A187: <Cx>0</Cx>
A188: <Cy>0</Cy>
A189: <Cz>0</Cz>
A190: <dx>0</dx>
A191: <dy>0</dy>
A192: <dz>0</dz>
A193: <Number>7</Number>
A194: <Nodenumber>7</Nodenumber>
A195: <Tx>A</Tx>
A196: <Ty>A</Ty>
A197: <Tz>A</Tz>
A198: <Rx> </Rx>
A199: <Ry> </Ry>
A200: <Rz> </Rz>
... 523 more rows

Sheet HEK1_XML (hidden)
A1: <Frame>
A2: ="<ProjectName>" & INHOUD!C13 & "</ProjectName>" -> <ProjectName>Test project</ProjectName>
A3: ="<ProjectNumber>" & INHOUD!C12 & "</ProjectNumber>" -> <ProjectNumber>0</ProjectNumber>
A4: ="<ConsequenceClass>"& INHOUD!C14 & "</ConsequenceClass>" -> <ConsequenceClass>CC2</ConsequenceClass>
A5: <DesignWorkingLife>50</DesignWorkingLife>
A6: <ExportDateTime>2024-05-16 23:52:25Z</ExportDateTime>
A7: <XMLExportVersion>v4.0.30319</XMLExportVersion>
A8: <Nodes>
A9: <Number>1</Number>
A10: <X>0</X>
A11: <Y>0</Y>
A12: <Z>0</Z>
A13: <Number>2</Number>
A14: <X>0</X>
A15: ='HEK1'!R6 -> <Y>2000</Y>
A16: <Z>0</Z>
A17: <Number>3</Number>
A18: <X>0</X>
A19: ='HEK1'!R7 -> <Y>4000</Y>
A20: <Z>0</Z>
A21: <Number>4</Number>
A22: <X>0</X>
A23: <Y>0</Y>
A24: ='HEK1'!R9 -> <Z>1200</Z>
A25: <Number>5</Number>
A26: <X>0</X>
A27: =A15 -> <Y>2000</Y>
A28: =A24 -> <Z>1200</Z>
A29: <Number>6</Number>
A30: <X>0</X>
A31: =A19 -> <Y>4000</Y>
A32: =A28 -> <Z>1200</Z>
A33: <Number>7</Number>
A34: <X>0</X>
A35: ='HEK1'!R8 -> <Y>6000</Y>
A36: <Z>0</Z>
A37: <Number>8</Number>
A38: <X>0</X>
A39: =A35 -> <Y>6000</Y>
A40: =A32 -> <Z>1200</Z>
A41: </Nodes>
A42: <Supports>
A43: <Number>1</Number>
A44: <Nodenumber>1</Nodenumber>
A45: <Tx>A</Tx>
A46: <Ty>A</Ty>
A47: <Tz>A</Tz>
A48: <Rx>A</Rx>
A49: <Ry>A</Ry>
A50: <Rz>A</Rz>
A51: <Kx>0</Kx>
A52: <Ky>0</Ky>
A53: <Kz>0</Kz>
A54: <Cx>0</Cx>
A55: <Cy>0</Cy>
A56: <Cz>0</Cz>
A57: <dx>0</dx>
A58: <dy>0</dy>
A59: <dz>0</dz>
A60: <Number>2</Number>
A61: <Nodenumber>2</Nodenumber>
A62: <Tx>A</Tx>
A63: <Ty>A</Ty>
A64: <Tz>A</Tz>
A65: <Rx>A</Rx>
A66: <Ry>A</Ry>
A67: <Rz>A</Rz>
A68: <Kx>0</Kx>
A69: <Ky>0</Ky>
A70: <Kz>0</Kz>
A71: <Cx>0</Cx>
A72: <Cy>0</Cy>
A73: <Cz>0</Cz>
A74: <dx>0</dx>
A75: <dy>0</dy>
A76: <dz>0</dz>
A77: <Number>3</Number>
A78: <Nodenumber>3</Nodenumber>
A79: <Tx>A</Tx>
A80: <Ty>A</Ty>
A81: <Tz>A</Tz>
A82: <Rx>A</Rx>
A83: <Ry>A</Ry>
A84: <Rz>A</Rz>
A85: <Kx>0</Kx>
A86: <Ky>0</Ky>
A87: <Kz>0</Kz>
A88: <Cx>0</Cx>
A89: <Cy>0</Cy>
A90: <Cz>0</Cz>
A91: <dx>0</dx>
A92: <dy>0</dy>
A93: <dz>0</dz>
A94: <Number>4</Number>
A95: <Nodenumber>7</Nodenumber>
A96: <Tx>A</Tx>
A97: <Ty>A</Ty>
A98: <Tz>A</Tz>
A99: <Rx>A</Rx>
A100: <Ry>A</Ry>
A101: <Rz>A</Rz>
A102: <Kx>0</Kx>
A103: <Ky>0</Ky>
A104: <Kz>0</Kz>
A105: <Cx>0</Cx>
A106: <Cy>0</Cy>
A107: <Cz>0</Cz>
A108: <dx>0</dx>
A109: <dy>0</dy>
A110: <dz>0</dz>
A111: </Supports>
A112: <Grids>
A113: <X>0</X>
A114: <X_Lable>
A115: A B C D E F G H I J K L M N O P Q R S T U V W X Y Z
A116: </X_Lable>
A117: ='HEK1'!R13 -> <Y> 0 2000 2000 2000</Y>
A118: <Y_Lable>
A119: 1 2 3 4 5 6 7 8 9 10 11 12 13 14 15 16 17 18 19 20 21 22 23 24 25
A120: </Y_Lable>
A121: ='HEK1'!R14 -> <Z>+0 +1200</Z>
A122: <Z_Lable>+0</Z_Lable>
A123: </Grids>
A124: <Profiles>
A125: <Number>1</Number>
A126: ='HEK1'!R10 -> <Profile_name>S80x8</Profile_name>
A127: <Material_type>0</Material_type>
A128: ='HEK1'!R12 -> <Material>S235</Material>
A129: <Angle>0</Angle>
A130: <Profile_shape>6</Profile_shape>
A131: <h>0</h>
A132: <b>80</b>
A133: <tf>8</tf>
A134: <tw>0</tw>
A135: <r1>0</r1>
A136: <r2>0</r2>
A137: <slope>0</slope>
A138: <Number>2</Number>
A139: ='HEK1'!R11 -> <Profile_name>HFCHS_I603X29</Profile_name>
A140: <Material_type>0</Material_type>
A141: ='HEK1'!R12 -> <Material>S235</Material>
A142: <Angle>0</Angle>
A143: <Profile_shape>5</Profile_shape>
A144: <h>60</h>
A145: <b>60</b>
A146: <tf>2,9</tf>
A147: <tw>2,9</tw>
A148: <r1>0</r1>
A149: <r2>0</r2>
A150: <slope>0</slope>
A151: </Profiles>
A152: <Beamgroup>
A153: <Number>1</Number>
A154: <Startnode>3</Startnode>
A155: <Endnode>6</Endnode>
A156: <Number>2</Number>
A157: <Startnode>6</Startnode>
A158: <Endnode>5</Endnode>
A159: <Number>3</Number>
A160: <Startnode>5</Startnode>
A161: <Endnode>4</Endnode>
A162: <Number>4</Number>
A163: <Startnode>4</Startnode>
A164: <Endnode>1</Endnode>
A165: <Number>5</Number>
A166: <Startnode>2</Startnode>
A167: <Endnode>5</Endnode>
A168: <Number>6</Number>
A169: <Startnode>7</Startnode>
A170: <Endnode>8</Endnode>
A171: <Number>7</Number>
A172: <Startnode>8</Startnode>
A173: <Endnode>6</Endnode>
A174: </Beamgroup>
A175: <Beams>
A176: <Number>1</Number>
A177: <Beamgroupnumber>1</Beamgroupnumber>
A178: <From_node_number>3</From_node_number>
A179: <To_node_number>6</To_node_number>
A180: <BeamRestraintsBegin>aaaaaa</BeamRestraintsBegin>
A181: <BeamRestraintsEnd>aaaaaa</BeamRestraintsEnd>
A182: <NumbLateralRestraints>0</NumbLateralRestraints>
A183: <Angle>0</Angle>
A184: <Angle_profile>0</Angle_profile>
A185: <Profile_number>1</Profile_number>
A186: <Z>0</Z>
A187: <Top_Center_Bottom>Center</Top_Center_Bottom>
A188: <Number>2</Number>
A189: <Beamgroupnumber>2</Beamgroupnumber>
A190: <From_node_number>6</From_node_number>
A191: <To_node_number>5</To_node_number>
A192: <BeamRestraintsBegin>aaaaaa</BeamRestraintsBegin>
A193: <BeamRestraintsEnd>aaaaaa</BeamRestraintsEnd>
A194: <NumbLateralRestraints>0</NumbLateralRestraints>
A195: <Angle>0</Angle>
A196: <Angle_profile>0</Angle_profile>
A197: <Profile_number>2</Profile_number>
A198: <Z>0</Z>
A199: <Top_Center_Bottom>Center</Top_Center_Bottom>
A200: <Number>3</Number>
... 257 more rows

Sheet KELD1_XML (hidden)
A1: <Frame>
A2: ="<ProjectName>" & INHOUD!C13 & "</ProjectName>" -> <ProjectName>Test project</ProjectName>
A3: ="<ProjectNumber>" & INHOUD!C12 & "</ProjectNumber>" -> <ProjectNumber>0</ProjectNumber>
A4: ="<ConsequenceClass>"& INHOUD!C14 & "</ConsequenceClass>" -> <ConsequenceClass>CC2</ConsequenceClass>
A5: <DesignWorkingLife>50</DesignWorkingLife>
A6: <ExportDateTime>2024-05-17 19:59:31Z</ExportDateTime>
A7: <XMLExportVersion>v4.0.30319</XMLExportVersion>
A8: <Nodes>
A9: <Number>1</Number>
A10: =KELD1!R6 -> <X>8000</X>
A11: <Y>0</Y>
A12: <Z>0</Z>
A13: <Number>2</Number>
A14: <X>0</X>
A15: <Y>0</Y>
A16: <Z>0</Z>
A17: <Number>3</Number>
A18: <X>0</X>
A19: =KELD1!R7 -> <Y>3500</Y>
A20: <Z>0</Z>
A21: <Number>4</Number>
A22: =A10 -> <X>8000</X>
A23: =A19 -> <Y>3500</Y>
A24: <Z>0</Z>
A25: <Number>154</Number>
A26: <X>0</X>
A27: =A23 -> <Y>3500</Y>
A28: =KELD1!R8 -> <Z>3500</Z>
A29: <Number>155</Number>
A30: =A22 -> <X>8000</X>
A31: =A23 -> <Y>3500</Y>
A32: =A28 -> <Z>3500</Z>
A33: <Number>622</Number>
A34: <X>0</X>
A35: <Y>0</Y>
A36: =A32 -> <Z>3500</Z>
A37: <Number>623</Number>
A38: =A30 -> <X>8000</X>
A39: <Y>0</Y>
A40: =A32 -> <Z>3500</Z>
A41: </Nodes>
A42: <Supports>
A43: <Number>1</Number>
A44: <Nodenumber>3</Nodenumber>
A45: <Tx>A</Tx>
A46: <Ty>A</Ty>
A47: <Tz> </Tz>
A48: <Rx> </Rx>
A49: <Ry> </Ry>
A50: <Rz> </Rz>
A51: <Kx>0</Kx>
A52: <Ky>0</Ky>
A53: <Kz>0</Kz>
A54: <Cx>0</Cx>
A55: <Cy>0</Cy>
A56: <Cz>0</Cz>
A57: <dx>0</dx>
A58: <dy>0</dy>
A59: <dz>0</dz>
A60: <Number>2</Number>
A61: <Nodenumber>4</Nodenumber>
A62: <Tx>A</Tx>
A63: <Ty>A</Ty>
A64: <Tz> </Tz>
A65: <Rx> </Rx>
A66: <Ry> </Ry>
A67: <Rz> </Rz>
A68: <Kx>0</Kx>
A69: <Ky>0</Ky>
A70: <Kz>0</Kz>
A71: <Cx>0</Cx>
A72: <Cy>0</Cy>
A73: <Cz>0</Cz>
A74: <dx>0</dx>
A75: <dy>0</dy>
A76: <dz>0</dz>
A77: </Supports>
A78: <Grids>
A79: =KELD1!R12 -> <X> 0 8000</X>
A80: <X_Lable>
A81: A B C D E F G H I J K L M N O P Q R S T U V W X Y Z
A82: </X_Lable>
A83: =KELD1!R13 -> <Y> 0 3500</Y>
A84: <Y_Lable>
A85: 1 2 3 4 5 6 7 8 9 10 11 12 13 14 15 16 17 18 19 20 21 22 23 24 25
A86: </Y_Lable>
A87: <Z>0</Z>
A88: <Z_Lable>+0</Z_Lable>
A89: </Grids>
A90: <Profiles/>
A91: <Plates>
A92: <Number>1</Number>
A93: <Node>1</Node>
A94: <Node>2</Node>
A95: <Node>3</Node>
A96: <Node>4</Node>
A97: =KELD1!R10 -> <h>500</h>
A98: <Material_type>Concrete</Material_type>
A99: =KELD1!R9 -> <Material>C30/37</Material>
A100: <Z>0</Z>
A101: <Top_Center_Bottom>Center</Top_Center_Bottom>
A102: <Number>2</Number>
A103: <Node>154</Node>
A104: <Node>3</Node>
A105: <Node>4</Node>
A106: <Node>155</Node>
A107: =KELD1!R11 -> <h>200</h>
A108: <Material_type>Concrete</Material_type>
A109: =KELD1!R9 -> <Material>C30/37</Material>
A110: <Z>0</Z>
A111: <Top_Center_Bottom>Center</Top_Center_Bottom>
A112: <Number>3</Number>
A113: <Node>2</Node>
A114: <Node>622</Node>
A115: <Node>623</Node>
A116: <Node>1</Node>
A117: =A107 -> <h>200</h>
A118: <Material_type>Concrete</Material_type>
A119: =KELD1!R9 -> <Material>C30/37</Material>
A120: <Z>0</Z>
A121: <Top_Center_Bottom>Center</Top_Center_Bottom>
A122: <Number>4</Number>
A123: <Node>3</Node>
A124: <Node>154</Node>
A125: <Node>622</Node>
A126: <Node>2</Node>
A127: =A117 -> <h>200</h>
A128: <Material_type>Concrete</Material_type>
A129: =A119 -> <Material>C30/37</Material>
A130: <Z>0</Z>
A131: <Top_Center_Bottom>Center</Top_Center_Bottom>
A132: <Number>5</Number>
A133: <Node>1</Node>
A134: <Node>623</Node>
A135: <Node>155</Node>
A136: <Node>4</Node>
A137: =A127 -> <h>200</h>
A138: <Material_type>Concrete</Material_type>
A139: =A129 -> <Material>C30/37</Material>
A140: <Z>0</Z>
A141: <Top_Center_Bottom>Center</Top_Center_Bottom>
A142: </Plates>
A143: <LoadCases>
A144: <Number>1</Number>
A145: <Description>Dead load</Description>
A146: <Type>0</Type>
A147: <psi0>1</psi0>
A148: <psi1>1</psi1>
A149: <psi2>1</psi2>
A150: <Number>2</Number>
A151: <Description>Live load</Description>
A152: <Type>5</Type>
A153: <psi0>1</psi0>
A154: <psi1>0,9</psi1>
A155: <psi2>0,8</psi2>
A156: </LoadCases>
A157: <SurfaceLoads>
A158: <LoadCaseNumber>2</LoadCaseNumber>
A159: <Number>1</Number>
A160: <Description/>
A161: <NodeX>0</NodeX>
A162: <NodeY>0</NodeY>
A163: <NodeZ>0</NodeZ>
A164: =KELD1!R14 -> <NodeX>8000</NodeX>
A165: <NodeY>0</NodeY>
A166: <NodeZ>0</NodeZ>
A167: =A164 -> <NodeX>8000</NodeX>
A168: =KELD1!R15 -> <NodeY>3500</NodeY>
A169: <NodeZ>0</NodeZ>
A170: <NodeX>0</NodeX>
A171: =A168 -> <NodeY>3500</NodeY>
A172: <NodeZ>0</NodeZ>
A173: <Coordinate_system>Local</Coordinate_system>
A174: <Direction>Z</Direction>
A175: <LoadBearingDirection>X</LoadBearingDirection>
A176: =KELD1!R16 -> <q1>-15</q1>
A177: <q2>0</q2>
A178: <q3>0</q3>
A179: <LoadConstantOrLinear>constant</LoadConstantOrLinear>
A180: <iq1>-1</iq1>
A181: <iq2>-1</iq2>
A182: <iq3>-1</iq3>
A183: <LoadCaseNumber>2</LoadCaseNumber>
A184: <Number>2</Number>
A185: <Description/>
A186: <NodeX>0</NodeX>
A187: <NodeY>0</NodeY>
A188: <NodeZ>0</NodeZ>
A189: <NodeX>0</NodeX>
A190: <NodeY>0</NodeY>
A191: =KELD1!R19 -> <NodeZ>1500</NodeZ>
A192: =KELD1!R14 -> <NodeX>8000</NodeX>
A193: <NodeY>0</NodeY>
A194: =KELD1!R19 -> <NodeZ>1500</NodeZ>
A195: =KELD1!R14 -> <NodeX>8000</NodeX>
A196: <NodeY>0</NodeY>
A197: <NodeZ>0</NodeZ>
A198: <Coordinate_system>Local</Coordinate_system>
A199: <Direction>Z</Direction>
A200: <LoadBearingDirection>X</LoadBearingDirection>
... 145 more rows

Sheet DAK1_XML (hidden)
A1: <Frame>
A2: ="<ProjectName>" & INHOUD!C13 & "</ProjectName>" -> <ProjectName>Test project</ProjectName>
A3: ="<ProjectNumber>" & INHOUD!C12 & "</ProjectNumber>" -> <ProjectNumber>0</ProjectNumber>
A4: ="<ConsequenceClass>"& INHOUD!C14 & "</ConsequenceClass>" -> <ConsequenceClass>CC2</ConsequenceClass>
A5: <DesignWorkingLife>50</DesignWorkingLife>
A6: <ExportDateTime></ExportDateTime>
A7: <XMLExportVersion>v4.0.30319</XMLExportVersion>
A8: <Nodes>
A9: <Number>1</Number>
A10: <X>0</X>
A11: <Z>0</Z>
A12: <Number>2</Number>
A13: ="<X>" & 'DAK1'!G6 & "</X>" -> <X>7000</X>
A14: <Z>0</Z>
A15: <Number>3</Number>
A16: <X>0</X>
A17: ="<Z>" & 'DAK1'!G9 & "</Z>" -> <Z>1500</Z>
A18: <Number>4</Number>
A19: ="<X>" & 'DAK1'!G6 & "</X>" -> <X>7000</X>
A20: ="<Z>" & 'DAK1'!G9 & "</Z>" -> <Z>1500</Z>
A21: <Number>5</Number>
A22: ="<X>" &'DAK1'!Q13 & "</X>" -> <X>855</X>
A23: ="<Z>" &'DAK1'!G8 & "</Z>" -> <Z>2600</Z>
A24: <Number>6</Number>
A25: ="<X>" &'DAK1'!Q16 & "</X>" -> <X>6145</X>
A26: ="<Z>" &'DAK1'!G8 & "</Z>" -> <Z>2600</Z>
A27: <Number>7</Number>
A28: ="<X>" &'DAK1'!G6/2 & "</X>" -> <X>3500</X>
A29: ="<Z>" & 'DAK1'!G7& "</Z>" -> <Z>6000</Z>
A30: </Nodes>
A31: <Supports>
A32: <Number>1</Number>
A33: <Nodenumber>1</Nodenumber>
A34: <Tx>A</Tx>
A35: <Tz>A</Tz>
A36: <Ry> </Ry>
A37: <Kx>0</Kx>
A38: <Kz>0</Kz>
A39: <Cy>0</Cy>
A40: <dx>1000</dx>
A41: <dz>0</dz>
A42: <Number>2</Number>
A43: <Nodenumber>2</Nodenumber>
A44: <Tx>A</Tx>
A45: <Tz>A</Tz>
A46: <Ry> </Ry>
A47: <Kx>0</Kx>
A48: <Kz>0</Kz>
A49: <Cy>0</Cy>
A50: <dx>1000</dx>
A51: <dz>0</dz>
A52: </Supports>
A53: <Grids>
A54: ="<X> 0 " & 'DAK1'!G6/2 & " " & 'DAK1'!G6/2 & "</X>" -> <X> 0 3500 3500</X>
A55: <X_Lable>
A56: A B C D E F G H I J K L M N O P Q R S T U V W X Y Z
A57: </X_Lable>
A58: <Y>0</Y>
A59: <Y_Lable>
A60: 1 2 3 4 5 6 7 8 9 10 11 12 13 14 15 16 17 18 19 20 21 22 23 24 25
A61: </Y_Lable>
A62: ="<Z> 0 " & 'DAK1'!G9 & " " & 'DAK1'!G8-'DAK1'!G9 & " " & 'DAK1'!G7-'DAK1'!G8 &"</Z>" -> <Z> 0 1500 1100 3400</Z>
A63: <Z_Lable/>
A64: </Grids>
A65: <Profiles>
A66: <Number>1</Number>
A67: ="<Profile_name>" & 'DAK1'!Q19 & "</Profile_name>" -> <Profile_name>38 x 245</Profile_name>
A68: <Material_type>2</Material_type>
A69: ="<Material>" &'DAK1'!G15 & "</Material>" -> <Material>C24</Material>
A70: <Angle>0</Angle>
A71: <ServiceClass>0</ServiceClass>
A72: <Profile_shape>6</Profile_shape>
A73: <h>0</h>
A74: ="<b>" & 'DAK1'!G13 & "</b>" -> <b>38</b>
A75: ="<tf>" & 'DAK1'!G14 & "</tf>" -> <tf>245</tf>
A76: <tw>0</tw>
A77: <r1>0</r1>
A78: <r2>0</r2>
A79: <slope>0</slope>
A80: </Profiles>
A81: <Beamgroup>
A82: <Number>1</Number>
A83: <Startnode>1</Startnode>
A84: <Endnode>2</Endnode>
A85: <Number>2</Number>
A86: <Startnode>2</Startnode>
A87: <Endnode>3</Endnode>
A88: <Number>3</Number>
A89: <Startnode>3</Startnode>
A90: <Endnode>4</Endnode>
A91: <Number>4</Number>
A92: <Startnode>5</Startnode>
A93: <Endnode>4</Endnode>
A94: <Number>5</Number>
A95: <Startnode>6</Startnode>
A96: <Endnode>7</Endnode>
A97: </Beamgroup>
A98: <Beams>
A99: <Number>1</Number>
A100: <Beamgroupnumber>1</Beamgroupnumber>
A101: <From_node_number>1</From_node_number>
A102: <To_node_number>3</To_node_number>
A103: <Type>1</Type>
A104: <TypeLoad>2</TypeLoad>
A105: <NumbLateralRestraints>0</NumbLateralRestraints>
A106: <Angle_profile>0</Angle_profile>
A107: <Profile_number>1</Profile_number>
A108: <Number>2</Number>
A109: <Beamgroupnumber>2</Beamgroupnumber>
A110: <From_node_number>2</From_node_number>
A111: <To_node_number>4</To_node_number>
A112: <Type>1</Type>
A113: <TypeLoad>3</TypeLoad>
A114: <NumbLateralRestraints>0</NumbLateralRestraints>
A115: <Angle_profile>0</Angle_profile>
A116: <Profile_number>1</Profile_number>
A117: <Number>3</Number>
A118: <Beamgroupnumber>3</Beamgroupnumber>
A119: <From_node_number>5</From_node_number>
A120: <To_node_number>6</To_node_number>
A121: <Type>3</Type>
A122: <TypeLoad>1</TypeLoad>
A123: <NumbLateralRestraints>0</NumbLateralRestraints>
A124: <Angle_profile>0</Angle_profile>
A125: <Profile_number>1</Profile_number>
A126: <Number>4</Number>
A127: <Beamgroupnumber>4</Beamgroupnumber>
A128: <From_node_number>3</From_node_number>
A129: <To_node_number>7</To_node_number>
A130: <Type>1</Type>
A131: <TypeLoad>4</TypeLoad>
A132: <NumbLateralRestraints>4</NumbLateralRestraints>
A133: <Angle_profile>0</Angle_profile>
A134: <Profile_number>1</Profile_number>
A135: <Number>5</Number>
A136: <Beamgroupnumber>5</Beamgroupnumber>
A137: <From_node_number>7</From_node_number>
A138: <To_node_number>4</To_node_number>
A139: <Type>1</Type>
A140: <TypeLoad>4</TypeLoad>
A141: <NumbLateralRestraints>4</NumbLateralRestraints>
A142: <Angle_profile>0</Angle_profile>
A143: <Profile_number>1</Profile_number>
A144: </Beams>
A145: <LoadCases>
A146: <Number>1</Number>
A147: <Description>Permanent</Description>
A148: <Type>0</Type>
A149: <psi0>1</psi0>
A150: <psi1>1</psi1>
A151: <psi2>1</psi2>
A152: <Number>2</Number>
A153: <Description>Veranderlijk</Description>
A154: <Type>1</Type>
A155: <psi0>0,4</psi0>
A156: <psi1>0,5</psi1>
A157: <psi2>0,3</psi2>
A158: </LoadCases>
A159: <BeamLoads>
A160: <LoadCaseNumber>1</LoadCaseNumber>
A161: <BeamNumber>3</BeamNumber>
A162: <Description/>
A163: <Type>1</Type>
A164: ="<Load1>" & "-" & 'DAK1'!Q22 & "</Load1>" -> <Load1>-0,2745</Load1>
A165: ="<Load2>" & "-" & 'DAK1'!Q22 & "</Load2>" -> <Load2>-0,2745</Load2>
A166: <a>0</a>
A167: <bL>False</bL>
A168: ="<L>" & 'DAK1'!Q18 & "</L>" -> <L>5290</L>
A169: <angle>0</angle>
A170: <LoadCaseNumber>1</LoadCaseNumber>
A171: <BeamNumber>4</BeamNumber>
A172: <Description/>
A173: <Type>1</Type>
A174: ="<Load1>" & "-" & 'DAK1'!Q21 & "</Load1>" -> <Load1>-0,4087</Load1>
A175: ="<Load2>" & "-" & 'DAK1'!Q21 & "</Load2>" -> <Load2>-0,4087</Load2>
A176: <a>0</a>
A177: <bL>False</bL>
A178: ="<L>" & 'DAK1'!Q9 & "</L>" -> <L>5700</L>
A179: ="<angle>-" & 'DAK1'!Q8 & "</angle>" -> <angle>-52,1250163489018</angle>
A180: <LoadCaseNumber>1</LoadCaseNumber>
A181: <BeamNumber>5</BeamNumber>
A182: <Description/>
A183: <Type>1</Type>
A184: ="<Load1>" & "-" & 'DAK1'!Q21 & "</Load1>" -> <Load1>-0,4087</Load1>
A185: ="<Load2>" & "-" & 'DAK1'!Q21 & "</Load2>" -> <Load2>-0,4087</Load2>
A186: <a>0</a>
A187: <bL>False</bL>
A188: ="<L>" & 'DAK1'!Q9 & "</L>" -> <L>5700</L>
A189: ="<angle>" & 'DAK1'!Q8 & "</angle>" -> <angle>52,1250163489018</angle>
A190: </BeamLoads>
A191: <Combinations>
A192: <LoadCombinationNumber>1</LoadCombinationNumber>
A193: <Description>Combinatie1 (6.10a)</Description>
A194: <CombTyp>0</CombTyp>
A195: <Case>1</Case>
A196: <Psi>1</Psi>
A197: <Gamma>1,22</Gamma>
A198: <Case>2</Case>
A199: <Psi>0,4</Psi>
A200: <Gamma>1,35</Gamma>
... 35 more rows

Sheet DAK2_XML (hidden)
A1: <Frame>
A2: ="<ProjectName>" & INHOUD!C13 & "</ProjectName>" -> <ProjectName>Test project</ProjectName>
A3: ="<ProjectNumber>" & INHOUD!C12 & "</ProjectNumber>" -> <ProjectNumber>0</ProjectNumber>
A4: ="<ConsequenceClass>"& INHOUD!C14 & "</ConsequenceClass>" -> <ConsequenceClass>CC2</ConsequenceClass>
A5: <DesignWorkingLife>50</DesignWorkingLife>
A6: <ExportDateTime>2023-12-02 13:56:06Z</ExportDateTime>
A7: <XMLExportVersion>v4.0.30319</XMLExportVersion>
A8: <Nodes>
A9: <Number>1</Number>
A10: <X>0</X>
A11: <Z>0</Z>
A12: <Number>2</Number>
A13: ="<X>" & 'DAK2'!G6 & "</X>" -> <X>6000</X>
A14: <Z>0</Z>
A15: <Number>3</Number>
A16: ="<X>" &'DAK2'!P13 & "</X>" -> <X>2228</X>
A17: ="<Z>" &'DAK2'!G8 & "</Z>" -> <Z>2600</Z>
A18: <Number>4</Number>
A19: ="<X>" &'DAK2'!P16 & "</X>" -> <X>3772</X>
A20: ="<Z>" &'DAK2'!G8 & "</Z>" -> <Z>2600</Z>
A21: <Number>5</Number>
A22: ="<X>" & 'DAK2'!G6/2 & "</X>" -> <X>3000</X>
A23: ="<Z>" & 'DAK2'!G7& "</Z>" -> <Z>3500</Z>
A24: </Nodes>
A25: <Supports>
A26: <Number>1</Number>
A27: <Nodenumber>1</Nodenumber>
A28: <Tx>A</Tx>
A29: <Tz>A</Tz>
A30: <Ry> </Ry>
A31: <Kx>0</Kx>
A32: <Kz>0</Kz>
A33: <Cy>0</Cy>
A34: <dx>1000</dx>
A35: <dz>0</dz>
A36: <Number>2</Number>
A37: <Nodenumber>2</Nodenumber>
A38: <Tx>A</Tx>
A39: <Tz>A</Tz>
A40: <Ry> </Ry>
A41: <Kx>0</Kx>
A42: <Kz>0</Kz>
A43: <Cy>0</Cy>
A44: <dx>1000</dx>
A45: <dz>0</dz>
A46: </Supports>
A47: <Grids>
A48: ="<X> 0 " & 'DAK2'!G6/2 & " " & 'DAK2'!G6/2 & "</X>" -> <X> 0 3000 3000</X>
A49: <X_Lable>
A50: A B C D E F G H I J K L M N O P Q R S T U V W X Y Z
A51: </X_Lable>
A52: <Y>0</Y>
A53: <Y_Lable>
A54: 1 2 3 4 5 6 7 8 9 10 11 12 13 14 15 16 17 18 19 20 21 22 23 24 25
A55: </Y_Lable>
A56: ="<Z> 0 " & 'DAK2'!G9 & " " & 'DAK2'!G8-'DAK2'!G9 & " " & 'DAK2'!G7-'DAK2'!G8 &"</Z>" -> <Z> 0 610 1990 900</Z>
A57: <Z_Lable/>
A58: </Grids>
A59: <Profiles>
A60: <Number>1</Number>
A61: ="<Profile_name>" & 'DAK2'!P19 & "</Profile_name>" -> <Profile_name>38 x 235</Profile_name>
A62: <Material_type>2</Material_type>
A63: ="<Material>" &'DAK2'!G16 & "</Material>" -> <Material>C24</Material>
A64: <Angle>0</Angle>
A65: <ServiceClass>0</ServiceClass>
A66: <Profile_shape>6</Profile_shape>
A67: <h>0</h>
A68: ="<b>" & 'DAK2'!G12 & "</b>" -> <b>38</b>
A69: ="<tf>" & 'DAK2'!G13 & "</tf>" -> <tf>235</tf>
A70: <tw>0</tw>
A71: <r1>0</r1>
A72: <r2>0</r2>
A73: <slope>0</slope>
A74: <Number>2</Number>
A75: ="<Profile_name>" & 'DAK2'!P20 & "</Profile_name>" -> <Profile_name>38 x 184</Profile_name>
A76: <Material_type>2</Material_type>
A77: <Material>C24</Material>
A78: <Angle>0</Angle>
A79: <ServiceClass>0</ServiceClass>
A80: <Profile_shape>6</Profile_shape>
A81: <h>0</h>
A82: ="<b>" & 'DAK2'!G14 & "</b>" -> <b>38</b>
A83: ="<tf>" & 'DAK2'!G15 & "</tf>" -> <tf>184</tf>
A84: <tw>0</tw>
A85: <r1>0</r1>
A86: <r2>0</r2>
A87: <slope>0</slope>
A88: </Profiles>
A89: <Beamgroup>
A90: <Number>1</Number>
A91: <Startnode>1</Startnode>
A92: <Endnode>5</Endnode>
A93: <Number>2</Number>
A94: <Startnode>5</Startnode>
A95: <Endnode>2</Endnode>
A96: <Number>3</Number>
A97: <Startnode>3</Startnode>
A98: <Endnode>4</Endnode>
A99: </Beamgroup>
A100: <Beams>
A101: <Number>1</Number>
A102: <Beamgroupnumber>1</Beamgroupnumber>
A103: <From_node_number>1</From_node_number>
A104: <To_node_number>5</To_node_number>
A105: <Type>1</Type>
A106: <TypeLoad>4</TypeLoad>
A107: <NumbLateralRestraints>4</NumbLateralRestraints>
A108: <Angle_profile>0</Angle_profile>
A109: <Profile_number>1</Profile_number>
A110: <Number>2</Number>
A111: <Beamgroupnumber>2</Beamgroupnumber>
A112: <From_node_number>5</From_node_number>
A113: <To_node_number>2</To_node_number>
A114: <Type>1</Type>
A115: <TypeLoad>4</TypeLoad>
A116: <NumbLateralRestraints>4</NumbLateralRestraints>
A117: <Angle_profile>0</Angle_profile>
A118: <Profile_number>1</Profile_number>
A119: <Number>3</Number>
A120: <Beamgroupnumber>3</Beamgroupnumber>
A121: <From_node_number>3</From_node_number>
A122: <To_node_number>4</To_node_number>
A123: <Type>3</Type>
A124: <TypeLoad>0</TypeLoad>
A125: <NumbLateralRestraints>0</NumbLateralRestraints>
A126: <Angle_profile>0</Angle_profile>
A127: <Profile_number>2</Profile_number>
A128: </Beams>
A129: <LoadCases>
A130: <Number>1</Number>
A131: <Description>Permanent</Description>
A132: <Type>0</Type>
A133: <psi0>1</psi0>
A134: <psi1>1</psi1>
A135: <psi2>1</psi2>
A136: <Number>2</Number>
A137: <Description>Veranderlijk</Description>
A138: <Type>1</Type>
A139: <psi0>0,4</psi0>
A140: <psi1>0,5</psi1>
A141: <psi2>0,3</psi2>
A142: </LoadCases>
A143: <BeamLoads>
A144: <LoadCaseNumber>1</LoadCaseNumber>
A145: <BeamNumber>1</BeamNumber>
A146: <Description/>
A147: <Type>1</Type>
A148: ="<Load1>" & "-" & 'DAK2'!P21 & "</Load1>" -> <Load1>-0,4087</Load1>
A149: ="<Load2>" & "-" & 'DAK2'!P21 & "</Load2>" -> <Load2>-0,4087</Load2>
A150: <a>0</a>
A151: <bL>False</bL>
A152: ="<L>" & 'DAK2'!P9 & "</L>" -> <L>4609</L>
A153: ="<angle>-" & 'DAK2'!P8 & "</angle>" -> <angle>-49,3987053549955</angle>
A154: <LoadCaseNumber>1</LoadCaseNumber>
A155: <BeamNumber>2</BeamNumber>
A156: <Description/>
A157: <Type>1</Type>
A158: ="<Load1>" & "-" & 'DAK2'!P21 & "</Load1>" -> <Load1>-0,4087</Load1>
A159: ="<Load2>" & "-" & 'DAK2'!P21 & "</Load2>" -> <Load2>-0,4087</Load2>
A160: <a>0</a>
A161: <bL>False</bL>
A162: ="<L>" & 'DAK2'!P9 & "</L>" -> <L>4609</L>
A163: ="<angle>" & 'DAK2'!P8 & "</angle>" -> <angle>49,3987053549955</angle>
A164: <LoadCaseNumber>1</LoadCaseNumber>
A165: <BeamNumber>3</BeamNumber>
A166: <Description/>
A167: <Type>1</Type>
A168: ="<Load1>" & "-" & 'DAK2'!P22 & "</Load1>" -> <Load1>-0,2745</Load1>
A169: ="<Load2>" & "-" & 'DAK2'!P22 & "</Load2>" -> <Load2>-0,2745</Load2>
A170: <a>0</a>
A171: <bL>False</bL>
A172: ="<L>" & 'DAK2'!P18 & "</L>" -> <L>1544</L>
A173: <angle>0</angle>
A174: </BeamLoads>
A175: <Combinations>
A176: <LoadCombinationNumber>1</LoadCombinationNumber>
A177: <Description>Combinatie1 (6.10a)</Description>
A178: <CombTyp>0</CombTyp>
A179: <Case>1</Case>
A180: <Psi>1</Psi>
A181: <Gamma>1,22</Gamma>
A182: <Case>2</Case>
A183: <Psi>0,4</Psi>
A184: <Gamma>1,35</Gamma>
A185: <LoadCombinationNumber>2</LoadCombinationNumber>
A186: <Description>Combinatie2 (6.10b)</Description>
A187: <CombTyp>0</CombTyp>
A188: <Case>1</Case>
A189: <Psi>1</Psi>
A190: <Gamma>1,08</Gamma>
A191: <Case>2</Case>
A192: <Psi>1</Psi>
A193: <Gamma>1,35</Gamma>
A194: <LoadCombinationNumber>3</LoadCombinationNumber>
A195: <Description>BGT Blijvend</Description>
A196: <CombTyp>4</CombTyp>
A197: <Case>1</Case>
A198: <Psi>1</Psi>
A199: <Gamma>1</Gamma>
A200: <LoadCombinationNumber>4</LoadCombinationNumber>
... 19 more rows

Sheet DAK3_XML (hidden)
A1: <Frame>
A2: ="<ProjectName>" & INHOUD!C13 & "</ProjectName>" -> <ProjectName>Test project</ProjectName>
A3: ="<ProjectNumber>" & INHOUD!C12 & "</ProjectNumber>" -> <ProjectNumber>0</ProjectNumber>
A4: ="<ConsequenceClass>"& INHOUD!C14 & "</ConsequenceClass>" -> <ConsequenceClass>CC2</ConsequenceClass>
A5: <DesignWorkingLife>50</DesignWorkingLife>
A6: <ExportDateTime>2024-05-18 21:53:22Z</ExportDateTime>
A7: <XMLExportVersion>v4.0.30319</XMLExportVersion>
A8: <Nodes>
A9: <Number>1</Number>
A10: <X>0</X>
A11: ='DAK3'!P8 -> <Y>5000</Y>
A12: <Z>0</Z>
A13: <Number>2</Number>
A14: ='DAK3'!O7 -> <X>5000</X>
A15: =A11 -> <Y>5000</Y>
A16: <Z>0</Z>
A17: <Number>3</Number>
A18: ='DAK3'!O8 -> <X>6000</X>
A19: =A11 -> <Y>5000</Y>
A20: <Z>0</Z>
A21: <Number>4</Number>
A22: ='DAK3'!O9 -> <X>10000</X>
A23: =A19 -> <Y>5000</Y>
A24: <Z>0</Z>
A25: <Number>5</Number>
A26: ='DAK3'!O10 -> <X>11000</X>
A27: =A23 -> <Y>5000</Y>
A28: <Z>0</Z>
A29: <Number>6</Number>
A30: ='DAK3'!O11 -> <X>15000</X>
A31: =A27 -> <Y>5000</Y>
A32: <Z>0</Z>
A33: <Number>7</Number>
A34: <X>0</X>
A35: ='DAK3'!P7 -> <Y>2500</Y>
A36: ='DAK3'!Q7 -> <Z>2500</Z>
A37: <Number>8</Number>
A38: =A30 -> <X>15000</X>
A39: =A35 -> <Y>2500</Y>
A40: =A36 -> <Z>2500</Z>
A41: <Number>9</Number>
A42: =A14 -> <X>5000</X>
A43: =A39 -> <Y>2500</Y>
A44: =A40 -> <Z>2500</Z>
A45: <Number>10</Number>
A46: =A22 -> <X>10000</X>
A47: =A43 -> <Y>2500</Y>
A48: =A44 -> <Z>2500</Z>
A49: <Number>11</Number>
A50: =A18 -> <X>6000</X>
A51: =A47 -> <Y>2500</Y>
A52: =A48 -> <Z>2500</Z>
A53: <Number>12</Number>
A54: =A26 -> <X>11000</X>
A55: =A51 -> <Y>2500</Y>
A56: =A52 -> <Z>2500</Z>
A57: <Number>13</Number>
A58: <X>0</X>
A59: <Y>0</Y>
A60: ='DAK3'!Q8 -> <Z>5000</Z>
A61: <Number>14</Number>
A62: =A42 -> <X>5000</X>
A63: <Y>0</Y>
A64: =A60 -> <Z>5000</Z>
A65: <Number>15</Number>
A66: =A50 -> <X>6000</X>
A67: <Y>0</Y>
A68: =A64 -> <Z>5000</Z>
A69: <Number>16</Number>
A70: =A46 -> <X>10000</X>
A71: <Y>0</Y>
A72: =A68 -> <Z>5000</Z>
A73: <Number>17</Number>
A74: =A54 -> <X>11000</X>
A75: <Y>0</Y>
A76: =A72 -> <Z>5000</Z>
A77: <Number>18</Number>
A78: =A38 -> <X>15000</X>
A79: <Y>0</Y>
A80: =A76 -> <Z>5000</Z>
A81: </Nodes>
A82: <Supports>
A83: <Number>1</Number>
A84: <Nodenumber>1</Nodenumber>
A85: <Tx> </Tx>
A86: <Ty>A</Ty>
A87: <Tz>A</Tz>
A88: <Rx> </Rx>
A89: <Ry> </Ry>
A90: <Rz> </Rz>
A91: <Kx>0</Kx>
A92: <Ky>0</Ky>
A93: <Kz>0</Kz>
A94: <Cx>0</Cx>
A95: <Cy>0</Cy>
A96: <Cz>0</Cz>
A97: <dx>0</dx>
A98: <dy>0</dy>
A99: <dz>0</dz>
A100: <Number>2</Number>
A101: <Nodenumber>2</Nodenumber>
A102: <Tx> </Tx>
A103: <Ty>A</Ty>
A104: <Tz>A</Tz>
A105: <Rx> </Rx>
A106: <Ry> </Ry>
A107: <Rz> </Rz>
A108: <Kx>0</Kx>
A109: <Ky>0</Ky>
A110: <Kz>0</Kz>
A111: <Cx>0</Cx>
A112: <Cy>0</Cy>
A113: <Cz>0</Cz>
A114: <dx>0</dx>
A115: <dy>0</dy>
A116: <dz>0</dz>
A117: <Number>3</Number>
A118: <Nodenumber>4</Nodenumber>
A119: <Tx> </Tx>
A120: <Ty>A</Ty>
A121: <Tz>A</Tz>
A122: <Rx> </Rx>
A123: <Ry> </Ry>
A124: <Rz> </Rz>
A125: <Kx>0</Kx>
A126: <Ky>0</Ky>
A127: <Kz>0</Kz>
A128: <Cx>0</Cx>
A129: <Cy>0</Cy>
A130: <Cz>0</Cz>
A131: <dx>0</dx>
A132: <dy>0</dy>
A133: <dz>0</dz>
A134: <Number>4</Number>
A135: <Nodenumber>6</Nodenumber>
A136: <Tx>A</Tx>
A137: <Ty>A</Ty>
A138: <Tz>A</Tz>
A139: <Rx> </Rx>
A140: <Ry> </Ry>
A141: <Rz> </Rz>
A142: <Kx>0</Kx>
A143: <Ky>0</Ky>
A144: <Kz>0</Kz>
A145: <Cx>0</Cx>
A146: <Cy>0</Cy>
A147: <Cz>0</Cz>
A148: <dx>0</dx>
A149: <dy>0</dy>
A150: <dz>0</dz>
A151: <Number>5</Number>
A152: <Nodenumber>13</Nodenumber>
A153: <Tx> </Tx>
A154: <Ty>A</Ty>
A155: <Tz>A</Tz>
A156: <Rx> </Rx>
A157: <Ry> </Ry>
A158: <Rz> </Rz>
A159: <Kx>0</Kx>
A160: <Ky>0</Ky>
A161: <Kz>0</Kz>
A162: <Cx>0</Cx>
A163: <Cy>0</Cy>
A164: <Cz>0</Cz>
A165: <dx>0</dx>
A166: <dy>0</dy>
A167: <dz>0</dz>
A168: <Number>6</Number>
A169: <Nodenumber>14</Nodenumber>
A170: <Tx> </Tx>
A171: <Ty>A</Ty>
A172: <Tz>A</Tz>
A173: <Rx> </Rx>
A174: <Ry> </Ry>
A175: <Rz> </Rz>
A176: <Kx>0</Kx>
A177: <Ky>0</Ky>
A178: <Kz>0</Kz>
A179: <Cx>0</Cx>
A180: <Cy>0</Cy>
A181: <Cz>0</Cz>
A182: <dx>0</dx>
A183: <dy>0</dy>
A184: <dz>0</dz>
A185: <Number>7</Number>
A186: <Nodenumber>16</Nodenumber>
A187: <Tx> </Tx>
A188: <Ty>A</Ty>
A189: <Tz>A</Tz>
A190: <Rx> </Rx>
A191: <Ry> </Ry>
A192: <Rz> </Rz>
A193: <Kx>0</Kx>
A194: <Ky>0</Ky>
A195: <Kz>0</Kz>
A196: <Cx>0</Cx>
A197: <Cy>0</Cy>
A198: <Cz>0</Cz>
A199: <dx>0</dx>
A200: <dy>0</dy>
... 318 more rows

Sheet DAK6_XML (hidden)
A1: <Frame>
A2: ="<ProjectName>" & INHOUD!C13 & "</ProjectName>" -> <ProjectName>Test project</ProjectName>
A3: ="<ProjectNumber>" & INHOUD!C12 & "</ProjectNumber>" -> <ProjectNumber>0</ProjectNumber>
A4: ="<ConsequenceClass>"& INHOUD!C14 & "</ConsequenceClass>" -> <ConsequenceClass>CC2</ConsequenceClass>
A5: <DesignWorkingLife>50</DesignWorkingLife>
A6: <ExportDateTime>2024-05-18 21:23:49Z</ExportDateTime>
A7: <XMLExportVersion>v4.0.30319</XMLExportVersion>
A8: <Nodes>
A9: <Number>1</Number>
A10: <X>0</X>
A11: <Y>0</Y>
A12: <Z>0</Z>
A13: <Number>2</Number>
A14: <X>0</X>
A15: <Y>8000</Y>
A16: <Z>0</Z>
A17: <Number>3</Number>
A18: <X>610</X>
A19: <Y>0</Y>
A20: <Z>0</Z>
A21: <Number>4</Number>
A22: <X>610</X>
A23: <Y>8000</Y>
A24: <Z>0</Z>
A25: <Number>5</Number>
A26: <X>1000</X>
A27: <Y>0</Y>
A28: <Z>0</Z>
A29: <Number>6</Number>
A30: <X>1130</X>
A31: <Y>8000</Y>
A32: <Z>0</Z>
A33: <Number>7</Number>
A34: <X>1220</X>
A35: <Y>0</Y>
A36: <Z>0</Z>
A37: <Number>8</Number>
A38: <X>1740</X>
A39: <Y>8000</Y>
A40: <Z>0</Z>
A41: <Number>9</Number>
A42: <X>1830</X>
A43: <Y>0</Y>
A44: <Z>0</Z>
A45: <Number>10</Number>
A46: <X>2350</X>
A47: <Y>8000</Y>
A48: <Z>0</Z>
A49: <Number>11</Number>
A50: <X>2440</X>
A51: <Y>0</Y>
A52: <Z>0</Z>
A53: <Number>12</Number>
A54: <X>2960</X>
A55: <Y>8000</Y>
A56: <Z>0</Z>
A57: <Number>13</Number>
A58: <X>3050</X>
A59: <Y>0</Y>
A60: <Z>0</Z>
A61: <Number>14</Number>
A62: <X>3570</X>
A63: <Y>8000</Y>
A64: <Z>0</Z>
A65: <Number>15</Number>
A66: <X>3660</X>
A67: <Y>0</Y>
A68: <Z>0</Z>
A69: <Number>16</Number>
A70: <X>4180</X>
A71: <Y>8000</Y>
A72: <Z>0</Z>
A73: <Number>17</Number>
A74: <X>4270</X>
A75: <Y>0</Y>
A76: <Z>0</Z>
A77: <Number>18</Number>
A78: <X>4400</X>
A79: <Y>0</Y>
A80: <Z>0</Z>
A81: <Number>19</Number>
A82: <X>4790</X>
A83: <Y>0</Y>
A84: <Z>0</Z>
A85: <Number>20</Number>
A86: <X>4790</X>
A87: <Y>8000</Y>
A88: <Z>0</Z>
A89: <Number>21</Number>
A90: <X>4880</X>
A91: <Y>0</Y>
A92: <Z>0</Z>
A93: <Number>22</Number>
A94: <X>5400</X>
A95: <Y>0</Y>
A96: <Z>0</Z>
A97: <Number>23</Number>
A98: <X>5400</X>
A99: <Y>8000</Y>
A100: <Z>0</Z>
A101: <Number>24</Number>
A102: <X>1000</X>
A103: <Y>999,999999999997</Y>
A104: <Z>999,999999999997</Z>
A105: <Number>25</Number>
A106: <X>1220</X>
A107: <Y>999,999999999997</Y>
A108: <Z>999,999999999997</Z>
A109: <Number>26</Number>
A110: <X>1830</X>
A111: <Y>999,999999999997</Y>
A112: <Z>999,999999999997</Z>
A113: <Number>27</Number>
A114: <X>2440</X>
A115: <Y>999,999999999997</Y>
A116: <Z>999,999999999997</Z>
A117: <Number>28</Number>
A118: <X>3050</X>
A119: <Y>999,999999999997</Y>
A120: <Z>999,999999999997</Z>
A121: <Number>29</Number>
A122: <X>3660</X>
A123: <Y>999,999999999997</Y>
A124: <Z>999,999999999997</Z>
A125: <Number>30</Number>
A126: <X>4270</X>
A127: <Y>999,999999999997</Y>
A128: <Z>999,999999999997</Z>
A129: <Number>31</Number>
A130: <X>4400</X>
A131: <Y>999,999999999997</Y>
A132: <Z>999,999999999997</Z>
A133: <Number>32</Number>
A134: <X>1000</X>
A135: <Y>1610</Y>
A136: <Z>1610</Z>
A137: <Number>33</Number>
A138: <X>4400</X>
A139: <Y>1610</Y>
A140: <Z>1610</Z>
A141: <Number>34</Number>
A142: <X>1000</X>
A143: <Y>2220</Y>
A144: <Z>2220</Z>
A145: <Number>35</Number>
A146: <X>4400</X>
A147: <Y>2220</Y>
A148: <Z>2220</Z>
A149: <Number>36</Number>
A150: <X>1000</X>
A151: <Y>2700</Y>
A152: <Z>2700</Z>
A153: <Number>38</Number>
A154: <X>1130</X>
A155: <Y>2700</Y>
A156: <Z>2700</Z>
A157: <Number>42</Number>
A158: <X>1740</X>
A159: <Y>2700</Y>
A160: <Z>2700</Z>
A161: <Number>46</Number>
A162: <X>2350</X>
A163: <Y>2700</Y>
A164: <Z>2700</Z>
A165: <Number>50</Number>
A166: <X>2960</X>
A167: <Y>2700</Y>
A168: <Z>2700</Z>
A169: <Number>54</Number>
A170: <X>3570</X>
A171: <Y>2700</Y>
A172: <Z>2700</Z>
A173: <Number>58</Number>
A174: <X>4180</X>
A175: <Y>2700</Y>
A176: <Z>2700</Z>
A177: <Number>60</Number>
A178: <X>4400</X>
A179: <Y>2700</Y>
A180: <Z>2700</Z>
A181: <Number>62</Number>
A182: <X>1000</X>
A183: <Y>2220</Y>
A184: <Z>2700</Z>
A185: <Number>65</Number>
A186: <X>4400</X>
A187: <Y>2220</Y>
A188: <Z>2700</Z>
A189: <Number>73</Number>
A190: <X>1000</X>
A191: <Y>1610</Y>
A192: <Z>2700</Z>
A193: <Number>76</Number>
A194: <X>4400</X>
A195: <Y>1610</Y>
A196: <Z>2700</Z>
A197: <Number>77</Number>
A198: <X>1000</X>
A199: <Y>1000</Y>
A200: <Z>2700</Z>
... 1483 more rows

Sheet VAK1_XML (hidden)
A1: <Frame>
A2: ="<ProjectName>" & INHOUD!C13 & "</ProjectName>" -> <ProjectName>Test project</ProjectName>
A3: ="<ProjectNumber>" & INHOUD!C12 & "</ProjectNumber>" -> <ProjectNumber>0</ProjectNumber>
A4: ="<ConsequenceClass>"& INHOUD!C14 & "</ConsequenceClass>" -> <ConsequenceClass>CC2</ConsequenceClass>
A5: <DesignWorkingLife>50</DesignWorkingLife>
A6: <ExportDateTime>2024-05-20 21:34:41Z</ExportDateTime>
A7: <XMLExportVersion>v4.0.30319</XMLExportVersion>
A8: <Nodes>
A9: <Number>1</Number>
A10: ='VAK1'!Y3 -> <X>380</X>
A11: ='VAK1'!Z3 -> <Z>0</Z>
A12: <Number>2</Number>
A13: ='VAK1'!Y4 -> <X>6840</X>
A14: ='VAK1'!Z4 -> <Z>0</Z>
A15: <Number>3</Number>
A16: ='VAK1'!Y5 -> <X>0</X>
A17: ='VAK1'!Z5 -> <Z>700</Z>
A18: <Number>4</Number>
A19: ='VAK1'!Y6 -> <X>593,52</X>
A20: ='VAK1'!Z6 -> <Z>700</Z>
A21: <Number>5</Number>
A22: ='VAK1'!Y7 -> <X>6626,48</X>
A23: ='VAK1'!Z7 -> <Z>700</Z>
A24: <Number>6</Number>
A25: ='VAK1'!Y8 -> <X>7220</X>
A26: ='VAK1'!Z8 -> <Z>700</Z>
A27: <Number>7</Number>
A28: ='VAK1'!Y9 -> <X>863,47</X>
A29: ='VAK1'!Z9 -> <Z>1585</Z>
A30: <Number>8</Number>
A31: ='VAK1'!Y10 -> <X>6356,53</X>
A32: ='VAK1'!Z10 -> <Z>1585</Z>
A33: <Number>9</Number>
A34: ='VAK1'!Y11 -> <X>1717,19</X>
A35: ='VAK1'!Z11 -> <Z>2460</Z>
A36: <Number>10</Number>
A37: ='VAK1'!Y12 -> <X>3610</X>
A38: ='VAK1'!Z12 -> <Z>2460</Z>
A39: <Number>11</Number>
A40: ='VAK1'!Y13 -> <X>5502,81</X>
A41: ='VAK1'!Z13 -> <Z>2460</Z>
A42: <Number>12</Number>
A43: ='VAK1'!Y14 -> <X>3610</X>
A44: ='VAK1'!Z14 -> <Z>4400</Z>
A45: </Nodes>
A46: <Supports>
A47: <Number>1</Number>
A48: <Nodenumber>1</Nodenumber>
A49: <Tx>A</Tx>
A50: <Tz>A</Tz>
A51: <Ry> </Ry>
A52: <Kx>0</Kx>
A53: <Kz>0</Kz>
A54: <Cy>0</Cy>
A55: <dx>1000</dx>
A56: <dz>0</dz>
A57: <Number>2</Number>
A58: <Nodenumber>2</Nodenumber>
A59: <Tx>A</Tx>
A60: <Tz>A</Tz>
A61: <Ry> </Ry>
A62: <Kx>0</Kx>
A63: <Kz>0</Kz>
A64: <Cy>0</Cy>
A65: <dx>1000</dx>
A66: <dz>0</dz>
A67: <Number>3</Number>
A68: <Nodenumber>3</Nodenumber>
A69: <Tx> </Tx>
A70: <Tz>A</Tz>
A71: <Ry> </Ry>
A72: <Kx>0</Kx>
A73: <Kz>0</Kz>
A74: <Cy>0</Cy>
A75: <dx>1000</dx>
A76: <dz>0</dz>
A77: <Number>4</Number>
A78: <Nodenumber>6</Nodenumber>
A79: <Tx> </Tx>
A80: <Tz>A</Tz>
A81: <Ry> </Ry>
A82: <Kx>0</Kx>
A83: <Kz>0</Kz>
A84: <Cy>0</Cy>
A85: <dx>1000</dx>
A86: <dz>0</dz>
A87: </Supports>
A88: <Grids>
A89: ='VAK1'!T32 -> <X>0 3610 3610</X>
A90: <X_Lable>
A91: A B C D E F G H I J K L M N O P Q R S T U V W X Y Z
A92: </X_Lable>
A93: ='VAK1'!T33 -> <Z>0 700 1760 1940</Z>
A94: <Z_Lable/>
A95: </Grids>
A96: <Profiles>
A97: <Number>1</Number>
A98: ='VAK1'!V16 -> <Profile_name>80 x 230</Profile_name>
A99: <Material_type>2</Material_type>
A100: ='VAK1'!T30 -> <Material>C24</Material>
A101: <Angle>0</Angle>
A102: <ServiceClass>0</ServiceClass>
A103: <Profile_shape>6</Profile_shape>
A104: ='VAK1'!T16 -> <h>230</h>
A105: ='VAK1'!T17 -> <b>80</b>
A106: <tf>230</tf>
A107: <tw>10</tw>
A108: <r1>0</r1>
A109: <r2>20</r2>
A110: <slope>0</slope>
A111: <Number>2</Number>
A112: ='VAK1'!V19 -> <Profile_name>80 x 200</Profile_name>
A113: <Material_type>2</Material_type>
A114: ='VAK1'!T30 -> <Material>C24</Material>
A115: <Angle>0</Angle>
A116: <ServiceClass>0</ServiceClass>
A117: <Profile_shape>6</Profile_shape>
A118: ='VAK1'!T19 -> <h>200</h>
A119: ='VAK1'!T20 -> <b>80</b>
A120: <tf>200</tf>
A121: <tw>10</tw>
A122: <r1>0</r1>
A123: <r2>20</r2>
A124: <slope>0</slope>
A125: <Number>3</Number>
A126: ='VAK1'!V22 -> <Profile_name>100 x 200</Profile_name>
A127: <Material_type>2</Material_type>
A128: ='VAK1'!T30 -> <Material>C24</Material>
A129: <Angle>0</Angle>
A130: <ServiceClass>0</ServiceClass>
A131: <Profile_shape>6</Profile_shape>
A132: ='VAK1'!T22 -> <h>200</h>
A133: ='VAK1'!T23 -> <b>100</b>
A134: <tf>200</tf>
A135: <tw>10</tw>
A136: <r1>0</r1>
A137: <r2>20</r2>
A138: <slope>0</slope>
A139: <Number>4</Number>
A140: ='VAK1'!V25 -> <Profile_name>100 x 200</Profile_name>
A141: <Material_type>2</Material_type>
A142: ='VAK1'!T30 -> <Material>C24</Material>
A143: <Angle>0</Angle>
A144: <ServiceClass>0</ServiceClass>
A145: <Profile_shape>6</Profile_shape>
A146: ='VAK1'!T25 -> <h>200</h>
A147: ='VAK1'!T26 -> <b>100</b>
A148: <tf>200</tf>
A149: <tw>10</tw>
A150: <r1>0</r1>
A151: <r2>20</r2>
A152: <slope>0</slope>
A153: <Number>5</Number>
A154: ='VAK1'!V28 -> <Profile_name>80 x 200</Profile_name>
A155: <Material_type>2</Material_type>
A156: ='VAK1'!T30 -> <Material>C24</Material>
A157: <Angle>0</Angle>
A158: <ServiceClass>0</ServiceClass>
A159: <Profile_shape>6</Profile_shape>
A160: ='VAK1'!T28 -> <h>200</h>
A161: ='VAK1'!T29 -> <b>80</b>
A162: <tf>200</tf>
A163: <tw>10</tw>
A164: <r1>0</r1>
A165: <r2>20</r2>
A166: <slope>0</slope>
A167: </Profiles>
A168: <Beamgroup>
A169: <Number>1</Number>
A170: <Startnode>3</Startnode>
A171: <Endnode>4</Endnode>
A172: <Number>2</Number>
A173: <Startnode>6</Startnode>
A174: <Endnode>5</Endnode>
A175: <Number>3</Number>
A176: <Startnode>1</Startnode>
A177: <Endnode>7</Endnode>
A178: <Number>4</Number>
A179: <Startnode>2</Startnode>
A180: <Endnode>8</Endnode>
A181: <Number>5</Number>
A182: <Startnode>3</Startnode>
A183: <Endnode>12</Endnode>
A184: <Number>6</Number>
A185: <Startnode>9</Startnode>
A186: <Endnode>11</Endnode>
A187: <Number>7</Number>
A188: <Startnode>12</Startnode>
A189: <Endnode>6</Endnode>
A190: <Number>8</Number>
A191: <Startnode>10</Startnode>
A192: <Endnode>12</Endnode>
A193: </Beamgroup>
A194: <Beams>
A195: <Number>1</Number>
A196: <Beamgroupnumber>1</Beamgroupnumber>
A197: <From_node_number>3</From_node_number>
A198: <To_node_number>4</To_node_number>
A199: <Type>3</Type>
A200: <TypeLoad>0</TypeLoad>
... 148 more rows

Sheet S1_XML (hidden)
A1: <Frame>
A2: ="<ProjectName>" & INHOUD!C13 & "</ProjectName>" -> <ProjectName>Test project</ProjectName>
A3: ="<ProjectNumber>" & INHOUD!C12 & "</ProjectNumber>" -> <ProjectNumber>0</ProjectNumber>
A4: ="<ConsequenceClass>"& INHOUD!C14 & "</ConsequenceClass>" -> <ConsequenceClass>CC2</ConsequenceClass>
A5: <DesignWorkingLife>50</DesignWorkingLife>
A6: <ExportDateTime>2024-05-22 00:23:23Z</ExportDateTime>
A7: <XMLExportVersion>v4.0.30319</XMLExportVersion>
A8: <Nodes>
A9: <Number>1</Number>
A10: <X>0</X>
A11: <Z>0</Z>
A12: <Number>2</Number>
A13: ='S1'!S12 -> <X>6000</X>
A14: <Z>0</Z>
A15: <Number>3</Number>
A16: <X>0</X>
A17: ='S1'!S8 -> <Z>2700</Z>
A18: <Number>4</Number>
A19: ='S1'!S10 -> <X>2000</X>
A20: =A17 -> <Z>2700</Z>
A21: <Number>5</Number>
A22: =A13 -> <X>6000</X>
A23: =A20 -> <Z>2700</Z>
A24: <Number>6</Number>
A25: =A19 -> <X>2000</X>
A26: ='S1'!S9 -> <Z>3700</Z>
A27: <Number>7</Number>
A28: ='S1'!S11 -> <X>5000</X>
A29: =A26 -> <Z>3700</Z>
A30: </Nodes>
A31: <Supports>
A32: <Number>1</Number>
A33: <Nodenumber>1</Nodenumber>
A34: <Tx>A</Tx>
A35: <Tz>A</Tz>
A36: <Ry> </Ry>
A37: <Kx>0</Kx>
A38: <Kz>0</Kz>
A39: <Cy>0</Cy>
A40: <dx>1000</dx>
A41: <dz>0</dz>
A42: <Number>2</Number>
A43: <Nodenumber>2</Nodenumber>
A44: <Tx>A</Tx>
A45: <Tz>A</Tz>
A46: <Ry> </Ry>
A47: <Kx>0</Kx>
A48: <Kz>0</Kz>
A49: <Cy>0</Cy>
A50: <dx>1000</dx>
A51: <dz>0</dz>
A52: <Number>3</Number>
A53: <Nodenumber>7</Nodenumber>
A54: <Tx>A</Tx>
A55: <Tz>A</Tz>
A56: <Ry> </Ry>
A57: <Kx>0</Kx>
A58: <Kz>0</Kz>
A59: <Cy>0</Cy>
A60: <dx>1000</dx>
A61: <dz>0</dz>
A62: </Supports>
A63: <Grids>
A64: ='S1'!Q15 -> <X>0 2000 4000</X>
A65: <X_Lable>
A66: A B C D E F G H I J K L M N O P Q R S T U V W X Y Z
A67: </X_Lable>
A68: ='S1'!Q17 -> <Z>0 2700 1000</Z>
A69: <Z_Lable/>
A70: </Grids>
A71: <Profiles>
A72: <Number>1</Number>
A73: ='S1'!Q19 -> <Profile_name>HEA160</Profile_name>
A74: <Material_type>0</Material_type>
A75: <Material>S 235</Material>
A76: <Angle>0</Angle>
A77: <Profile_shape>1</Profile_shape>
A78: <h>152</h>
A79: <b>160</b>
A80: <tf>9</tf>
A81: <tw>6</tw>
A82: <r1>0</r1>
A83: <r2>15</r2>
A84: <slope>0</slope>
A85: <Number>2</Number>
A86: ='S1'!Q20 -> <Profile_name>HEA260</Profile_name>
A87: <Material_type>0</Material_type>
A88: <Material>S 235</Material>
A89: <Angle>0</Angle>
A90: <Profile_shape>1</Profile_shape>
A91: <h>250</h>
A92: <b>260</b>
A93: <tf>12,5</tf>
A94: <tw>7,5</tw>
A95: <r1>0</r1>
A96: <r2>24</r2>
A97: <slope>0</slope>
A98: <Number>3</Number>
A99: ='S1'!Q21 -> <Profile_name>IPE220</Profile_name>
A100: <Material_type>0</Material_type>
A101: <Material>S 235</Material>
A102: <Angle>0</Angle>
A103: <Profile_shape>1</Profile_shape>
A104: <h>220</h>
A105: <b>110</b>
A106: <tf>9,2</tf>
A107: <tw>5,9</tw>
A108: <r1>0</r1>
A109: <r2>12</r2>
A110: <slope>0</slope>
A111: </Profiles>
A112: <Beamgroup>
A113: <Number>1</Number>
A114: <Startnode>1</Startnode>
A115: <Endnode>3</Endnode>
A116: <Number>2</Number>
A117: <Startnode>2</Startnode>
A118: <Endnode>5</Endnode>
A119: <Number>3</Number>
A120: <Startnode>3</Startnode>
A121: <Endnode>5</Endnode>
A122: <Number>4</Number>
A123: <Startnode>4</Startnode>
A124: <Endnode>6</Endnode>
A125: <Number>5</Number>
A126: <Startnode>6</Startnode>
A127: <Endnode>7</Endnode>
A128: </Beamgroup>
A129: <Beams>
A130: <Number>1</Number>
A131: <Beamgroupnumber>1</Beamgroupnumber>
A132: <From_node_number>1</From_node_number>
A133: <To_node_number>3</To_node_number>
A134: <Type>1</Type>
A135: <TypeLoad>0</TypeLoad>
A136: <NumbLateralRestraints>0</NumbLateralRestraints>
A137: <Angle_profile>0</Angle_profile>
A138: <Profile_number>1</Profile_number>
A139: <Number>2</Number>
A140: <Beamgroupnumber>2</Beamgroupnumber>
A141: <From_node_number>2</From_node_number>
A142: <To_node_number>5</To_node_number>
A143: <Type>1</Type>
A144: <TypeLoad>0</TypeLoad>
A145: <NumbLateralRestraints>0</NumbLateralRestraints>
A146: <Angle_profile>0</Angle_profile>
A147: <Profile_number>1</Profile_number>
A148: <Number>3</Number>
A149: <Beamgroupnumber>3</Beamgroupnumber>
A150: <From_node_number>3</From_node_number>
A151: <To_node_number>5</To_node_number>
A152: <Type>1</Type>
A153: <TypeLoad>0</TypeLoad>
A154: <NumbLateralRestraints>0</NumbLateralRestraints>
A155: <Angle_profile>0</Angle_profile>
A156: <Profile_number>2</Profile_number>
A157: <Number>4</Number>
A158: <Beamgroupnumber>4</Beamgroupnumber>
A159: <From_node_number>4</From_node_number>
A160: <To_node_number>6</To_node_number>
A161: <Type>3</Type>
A162: <TypeLoad>0</TypeLoad>
A163: <NumbLateralRestraints>0</NumbLateralRestraints>
A164: <Angle_profile>0</Angle_profile>
A165: <Profile_number>1</Profile_number>
A166: <Number>5</Number>
A167: <Beamgroupnumber>5</Beamgroupnumber>
A168: <From_node_number>6</From_node_number>
A169: <To_node_number>7</To_node_number>
A170: <Type>1</Type>
A171: <TypeLoad>0</TypeLoad>
A172: <NumbLateralRestraints>2</NumbLateralRestraints>
A173: <Angle_profile>0</Angle_profile>
A174: <Profile_number>3</Profile_number>
A175: </Beams>
A176: <LoadCases>
A177: <Number>1</Number>
A178: <Description>Permanent</Description>
A179: <Type>0</Type>
A180: <psi0>1</psi0>
A181: <psi1>1</psi1>
A182: <psi2>1</psi2>
A183: <Number>2</Number>
A184: <Description>Veranderlijk</Description>
A185: <Type>1</Type>
A186: <psi0>0,4</psi0>
A187: <psi1>0,5</psi1>
A188: <psi2>0,3</psi2>
A189: <Number>3</Number>
A190: <Description>Wind</Description>
A191: <Type>10</Type>
A192: <psi0>0</psi0>
A193: <psi1>0,2</psi1>
A194: <psi2>0</psi2>
A195: </LoadCases>
A196: <BeamLoads>
A197: <LoadCaseNumber>1</LoadCaseNumber>
A198: <BeamNumber>3</BeamNumber>
A199: <Description/>
A200: <Type>1</Type>
... 114 more rows
